{"text_format":"1","workbook":"xlsx","n_sheets":11,"sheets":["AnaSayfa","Bilgiler","ÖncekiDönemMizan","CariDönemMizan","GELİR TAB","e-gt","BİLANÇO-A","Vergi","e-aktif","BİLANÇO-P","e-pasif"],"not_rendered":{"charts":0,"images":2,"macros":1,"external_links":0,"defined_names":14,"comments":0,"pivot_tables":0},"unopened":[],"bounds":{"document_bytes":16777216,"sheet_cells":100000,"rows_first":2000,"rows_last":500,"rows_between":2000,"halvings":0,"cell_chars":16384,"cell_head_chars":4096},"cells_cut":0,"cells_raw":0,"read":"whole","date_system":"1900"}

{"sheet":"AnaSayfa","index":0,"n_rows":6,"n_cols":5,"rows_kept":6,"cut":false,"hidden":false,"merged":[]}
[]
[]
[]
[]
[]
[null,null,null,null,"© Burçin SARIHAN - 2014"]

{"sheet":"Bilgiler","index":1,"n_rows":1090,"n_cols":104,"rows_kept":1090,"cut":false,"hidden":true,"merged":[[129,2,129,4],[130,0,130,1]]}
["Firma Adı:",null,"2014-01-28T10:32:00",1,null,null,"vdad","vdil","vdkod",null,null,null,null,null,"İLLER"]
["Vergi Dairesi:",null,null,null,null,null,"19 MAL MÜDÜRLÜĞÜ","SAMSUN",55110,null,null,null,null,null,"ADANA"]
["Vergi No:",null,null,null,null,null,"19 MAYIS VERGİ DAİRESİ","SAMSUN",55251,null,null,null,null,null,"ADIYAMAN"]
["İştigal Konusu:",null,null,null,null,null,"2 EYLÜL VERGİ DAİRESİ","ESKİŞEHİR",26253,null,null,null,null,null,"AFYON"]
["Kanuni Adresi:",null,null,null,null,null,"23 TEMMUZ VERGİ DAİRESİ","HATAY",31201,null,null,null,null,null,"AĞRI"]
["İlçe:",null,null,null,null,null,"30 AĞUSTOS VERGİ DAİRESİ","KÜTAHYA",43201,null,null,null,null,null,"AKSARAY"]
["İl:","BURSA",null,null,null,null,"5 OCAK VERGİ DAİRESİ","ADANA",1251,null,null,null,null,null,"AMASYA"]
["Telefon:",null,null,null,null,null,"9 EYLÜL VERGİ DAİRESİ","İZMİR",35251,null,null,null,null,null,"ANKARA"]
["Faks:",null,null,null,null,null,"ABANA MAL MÜDÜRLÜĞÜ","KASTAMONU",37112,null,null,null,null,null,"ANTALYA"]
["Ticaret Sicil No:",null,null,null,null,null,"ACIGÖL MAL MÜDÜRLÜĞÜ","NEVŞEHİR",50107,null,null,null,null,null,"ARDAHAN"]
["Önceki Dönem:","31.12.2012",null,null,null,null,"ACIPAYAM VERGİ DAİRESİ","DENİZLİ",20261,null,null,null,null,null,"ARTVİN"]
["Cari Dönem:","31.12.2013",null,null,null,null,"ACISU VERGİ DAİRESİ","KOCAELİ",41290,null,null,null,null,null,"AYDIN"]
[null,"Önceki Dönem","Cari Dönem",null,null,null,"ADAKLI MAL MÜDÜRLÜĞÜ","BİNGÖL",12105,null,null,null,null,null,"BALIKESİR"]
[null,{"$f":"B11","v":"31.12.2012"},{"$f":"B12","v":"31.12.2013"},null,null,null,"ADALAR VERGİ DAİRESİ","İSTANBUL",34295,null,null,null,null,null,"BARTIN"]
["İlaveler (K.K.E.G.)",0,0,null,null,null,"ADİLCEVAZ MAL MÜDÜRLÜĞÜ","BİTLİS",13101,null,null,null,null,null,"BATMAN"]
["Dönem Karı ve Yasal Yük. Karş. (-)",0,0,null,null,null,"ADIYAMAN VERGİ DAİRESİ","ADIYAMAN",2260,null,null,null,null,null,"BAYBURT"]
["Önceki Yıllarda Ayrılan 1.Tertip Kan.Yed.Akçe",0,0,null,null," ","AFŞİN VERGİ DAİRESİ","K.MARAŞ",46261,null,null,null,null,null,"BİLECİK"]
["Genel Kurul'un Tespit Ettiği Toplam Dağıtılacak Kar",0,0,null,null,null,"AĞAÇÖREN MAL MÜDÜRLÜĞÜ","AKSARAY",68101,null,null,null,null,null,"BİNGÖL"]
["Personele Verilecek Temettü",0,0,null,null,null,"AĞIN MAL MÜDÜRLÜĞÜ","ELAZIĞ",23101,null,null,null,null,null,"BİTLİS"]
["Yönetim Kuruluna Verilecek Temettü",0,0,null,null,null,"AĞLASUN MAL MÜDÜRLÜĞÜ","BURDUR",15101,null,null,null,null,null,"BOLU"]
["Yedeklerden Dağıtım",0,0,null,null,null,"AĞLI MAL MÜDÜRLÜĞÜ","KASTAMONU",37116,null,null,null,null,null,"BURDUR"]
["1 Hisse Bedeli",1,1,null,null,null,"AĞRI VERGİ DAİRESİ","AĞRI",4260,null,null,null,null,null,"BURSA"]
["Dönem Başı Yarı Mamül Stoğu",0,0,null,null,null,"AHIRLI MAL MÜDÜRLÜĞÜ","KONYA",42124,null,null,null,null,null,"ÇANAKKALE"]
["Dönem Başı Mamül Stoğu",0,0,null,null,null,"AHLAT MAL MÜDÜRLÜĞÜ","BİTLİS",13102,null,null,null,null,null,"ÇANKIRI"]
["Dönem Başı Ticari Mal Stoğu",0,0,null,null,null,"AHMETLİ MAL MÜDÜRLÜĞÜ","MANİSA",45113,null,null,null,null,null,"ÇORUM"]
["Mali Tablolarda Kullanılacak Para Birimi","TL",null,null,null,null,"AKÇAABAT VERGİ DAİRESİ","TRABZON",61260,null,null,null,null,null,"DENİZLİ",null,null,null,null,null,null,null,null,null,null,null,null,null,null,null,null,null,null,null,null,null,null,null,null,null,null,null,null,null,null,null,null,null,null,null,null,null,null,null,null,null,null,null,null,null,null,null,null,null,null,null,null,null,null,null,null,null,null,null,null,null,null,null,null,null,null,null,null,null,null,null,null,null,null,null,null,null,null,null,null,null,null,null,"2005-09-30",null,null,null,null,"BİRİM BİLGİ TEKNOLOJİLERİ TİC. A.Ş. "]
["Ticari Kar",{"$f":"#REF!","v":{"$error":"#REF!"}},{"$f":"#REF!","v":{"$error":"#REF!"}}]
["İlaveler (KKEG)",{"$f":"Bilgiler!B15","v":0},{"$f":"Bilgiler!C15","v":0}]
["Kurumlar Vergisi Matrahı",{"$f":"B27+B28","v":{"$error":"#REF!"}},{"$f":"C27+C28","v":{"$error":"#REF!"}}]
["Kurumlar Vergisi",{"$f":"B29*20%","v":{"$error":"#REF!"}},{"$f":"C29*20%","v":{"$error":"#REF!"}}]
["Ödenmiş Sermaye",{"$f":"'BİLANÇO-P'!D94-'BİLANÇO-P'!D95","v":160000},{"$f":"'BİLANÇO-P'!F94-'BİLANÇO-P'!F95","v":160000}]
["1.Tertip Kanuni Yedek Akçe Tavanı  (Ödenmiş Sermaye x %20)",{"$f":"B31*20%","v":32000},{"$f":"C31*20%","v":32000}]
["Geçmiş Yıl Zararları",{"$f":"'BİLANÇO-P'!D113","v":0},{"$f":"'BİLANÇO-P'!F113","v":0}]
["Geçmiş Yıl Zararları Mahsubundan Sonra Kalan Tutar",{"$f":"IF(#REF!>B33,#REF!-B33,0)","v":{"$error":"#REF!"}},{"$f":"IF(#REF!>C33,#REF!-C33,0)","v":{"$error":"#REF!"}}]
["Önceki Yıllarda Ayrılan 1.Tertip Kan.Yed.Akçe",{"$f":"Bilgiler!B17","v":0},{"$f":"Bilgiler!C17","v":0}]
["Ayrılabilir 1.tertip Yedek Akçe  (1.Ter.Yed.Akçe-Önc.Yıll.Ayrılan 1.Ter.Yed.Akçe)",{"$f":"IF(B32-B35<0,0,B32-B35)","v":32000},{"$f":"IF(C32-C35<0,0,C32-C35)","v":32000}]
["Dönem 1.Tertip Yedek Akçe (Net Kar x %5) ",{"$f":"IF(B34*5%<=B36,B34*5%,B36)","v":{"$error":"#REF!"}},{"$f":"IF(C34*5%<=C36,C34*5%,C36)","v":{"$error":"#REF!"}}]
["Genel Kurul Kararı Dağıtılacak Toplam Brüt Kar",{"$f":"Bilgiler!B18","v":0},{"$f":"Bilgiler!C18","v":0}]
["ORTAKLARA 1. TEMETTÜ HESAPLAMASI"]
["Ödenmiş Sermayenin %5'i",{"$f":"B31*5%","v":8000},{"$f":"C31*5%","v":8000}]
["1. Temettü",{"$f":"IF(B38*5%>B40,B40,B38)","v":0},{"$f":"IF(C38*5%>C40,C40,C38)","v":0}]
["Personele Verilecek Temettü",{"$f":"Bilgiler!B19","v":0},{"$f":"Bilgiler!C19","v":0}]
["Yönetim Kuruluna Verilecek Temettü",{"$f":"Bilgiler!B20","v":0},{"$f":"Bilgiler!C20","v":0}]
["Dağıtılacak 2. Temettü Matrahı",{"$f":"#REF!-(#REF!+B43+B42)","v":{"$error":"#REF!"}},{"$f":"#REF!-(#REF!+C43+C42)","v":{"$error":"#REF!"}}]
["2. Yasal Yedek Akçe",{"$f":"B46*0.1","v":{"$error":"#REF!"}},{"$f":"C46*0.1","v":{"$error":"#REF!"}}]
["2. Temettü",{"$f":"IF(#REF!>0,B44/1.1,0)","v":{"$error":"#REF!"}},{"$f":"IF(#REF!>0,C44/1.1,0)","v":{"$error":"#REF!"}}]
["Yedeklerden Dağıtım",{"$f":"B61","v":0},{"$f":"C61","v":0}]
["2.TERTİP YASAL YEDEKLER",{"$f":"B47*0.1","v":0},{"$f":"C47*0.1","v":0}]
["Toplam Dağıtım",{"$f":"B46+B47","v":{"$error":"#REF!"}},{"$f":"C46+C47","v":{"$error":"#REF!"}}]
["Dağıtılabilir Net Dönem Karı",{"$f":"#REF!","v":{"$error":"#REF!"}},{"$f":"#REF!","v":{"$error":"#REF!"}}]
["Ortaklar Haricindeki Dağıtılan Temettü",{"$f":"B42+B43","v":0},{"$f":"C42+C43","v":0}]
["Ortaklara toplam dağıtılan",{"$f":"#REF!+#REF!","v":{"$error":"#REF!"}},{"$f":"#REF!+#REF!","v":{"$error":"#REF!"}}]
["Olağanüstü yedeklere alınacak kısım",{"$f":"(#REF!-#REF!-#REF!-#REF!-#REF!-#REF!-#REF!)","v":{"$error":"#REF!"}},{"$f":"(#REF!-#REF!-#REF!-#REF!-#REF!-#REF!-#REF!)","v":{"$error":"#REF!"}}]
["1.YASAL YEDEK AKÇE",{"$f":"B37","v":{"$error":"#REF!"}},{"$f":"C37","v":{"$error":"#REF!"}}]
["1.TEMETTÜ",{"$f":"B41","v":0},{"$f":"C41","v":0}]
["2. TEMETTÜ",{"$f":"B47+B46","v":{"$error":"#REF!"}},{"$f":"C47+C46","v":{"$error":"#REF!"}}]
["2.TERTİP YASAL YEDEKLER",{"$f":"B45+B48","v":{"$error":"#REF!"}},{"$f":"C45+C48","v":{"$error":"#REF!"}}]
["Yedeklerden Dağıtım",{"$f":"Bilgiler!B21","v":0},{"$f":"Bilgiler!C21","v":0}]
["İkinci Yasal Yedeklerden Dağıtımın %10'u  yasal yedek akçe",{"$f":"B61*10%","v":0},{"$f":"C61*10%","v":0}]
["Ortaklar Haricindeki Dağıtılan Temettü",{"$f":"#REF!+#REF!","v":{"$error":"#REF!"}},{"$f":"#REF!+#REF!","v":{"$error":"#REF!"}}]
["2. Tertip  temettü",{"$f":"IF(B58>0,B58/1.1,0)","v":0},{"$f":"IF(C58>0,C58/1.1,0)","v":0}]
["1 Hisse Bedeli",{"$f":"Bilgiler!B22","v":1},{"$f":"Bilgiler!C22","v":1}]
["Hisse Adedi",{"$f":"IF(ISERROR(B31/B62)=TRUE,0,B31/B62)","v":160000},{"$f":"IF(ISERROR(C31/C62)=TRUE,0,C31/C62)","v":160000}]
["Toplam Dağıtılan Kar Payları",{"$f":"B55+B56","v":{"$error":"#REF!"}},{"$f":"C55+C56","v":{"$error":"#REF!"}}]
["Hisse senedi  sahiplerine --- HİSSE BAŞINA KAR",{"$f":"IF(ISERROR(#REF!/B63)=TRUE,0,#REF!/B63)","v":0},{"$f":"IF(ISERROR(#REF!/C63)=TRUE,0,#REF!/C63)","v":0}]
["Hisse senedi  başına --------- KAR YÜZDESİ",{"$f":"IF(ISERROR(B65/B62)=TRUE,0,B65/B62)","v":0},{"$f":"IF(ISERROR(C65/C62)=TRUE,0,C65/C62)","v":0}]
["Hisse  senedi sahiplarine temettü",{"$f":"IF(ISERROR(B49/B63)=TRUE,0,B49/B63)","v":0},{"$f":"IF(ISERROR(C49/C63)=TRUE,0,C49/C63)","v":0}]
["Hisse  senedi sahiplarine temettü yüzdesi",{"$f":"IF(ISERROR(B67/B62)=TRUE,0,B67/B62)","v":0},{"$f":"IF(ISERROR(C67/C62)=TRUE,0,C67/C62)","v":0}]
[]
["YAPILACAK KAYITLAR"]
["2007 yılı karından",{"$f":"B72+B73+B74+B75","v":{"$error":"#REF!"}},{"$f":"C72+C73+C74+C75","v":{"$error":"#REF!"}}]
["1.yasal yedek akçenin ayrılması     ",{"$f":"#REF!","v":{"$error":"#REF!"}},{"$f":"#REF!","v":{"$error":"#REF!"}}]
["1.temettü",{"$f":"#REF!","v":{"$error":"#REF!"}},{"$f":"#REF!","v":{"$error":"#REF!"}}]
["2.temettü",{"$f":"#REF!","v":{"$error":"#REF!"}},{"$f":"#REF!","v":{"$error":"#REF!"}}]
["2.yasal yedek akçe",{"$f":"#REF!","v":{"$error":"#REF!"}},{"$f":"#REF!","v":{"$error":"#REF!"}}]
["Yedeklerden dağıtım",{"$f":"B77+B78","v":{"$error":"#REF!"}},{"$f":"C77+C78","v":{"$error":"#REF!"}}]
["Ortaklara pay",{"$f":"#REF!","v":{"$error":"#REF!"}},{"$f":"#REF!","v":{"$error":"#REF!"}}]
["2 yasal yedek akçe",{"$f":"#REF!","v":{"$error":"#REF!"}},{"$f":"#REF!","v":{"$error":"#REF!"}}]
["Toplam",{"$f":"B71+B76","v":{"$error":"#REF!"}},{"$f":"C71+C76","v":{"$error":"#REF!"}}]
["mizandaki tutar","eski","eski",null,null,null,"AKÇAKALE MAL MÜDÜRLÜĞÜ","Ş.URFA",63101,null,null,null,null,null,"DÜZCE",null,null,null,null,null,null,null,null,null,null,null,null,null,null,null,null,null,null,null,null,null,null,null,null,null,null,null,null,null,null,null,null,null,null,null,null,null,null,null,null,null,null,null,null,null,null,null,null,null,null,null,null,null,null,null,null,null,null,null,null,null,null,null,null,null,null,null,null,null,null,null,null,null,null,null,null,null,null,null,null,null,null,null,"2006-03-31",null,null,null,null,"D.M.S. MAKİNA SAN. VE TİC. A.Ş. "]
["540 01",34937.85,34937.85,null,null,null,"AKÇAKENT MAL MÜDÜRLÜĞÜ","KIRŞEHİR",40105,null,null,null,null,null,"DÜZCE",null,null,null,null,null,null,null,null,null,null,null,null,null,null,null,null,null,null,null,null,null,null,null,null,null,null,null,null,null,null,null,null,null,null,null,null,null,null,null,null,null,null,null,null,null,null,null,null,null,null,null,null,null,null,null,null,null,null,null,null,null,null,null,null,null,null,null,null,null,null,null,null,null,null,null,null,null,null,null,null,null,null,null,"2006-06-30",null,null,null,null,"DENİZ PORTFÖY YÖNETİM A.Ş. "]
["540 99",9247.42,9247.42,null,null,null,"AKÇAKOCA VERGİ DAİRESİ","DÜZCE",81261,null,null,null,null,null,"EDİRNE",null,null,null,null,null,null,null,null,null,null,null,null,null,null,null,null,null,null,null,null,null,null,null,null,null,null,null,null,null,null,null,null,null,null,null,null,null,null,null,null,null,null,null,null,null,null,null,null,null,null,null,null,null,null,null,null,null,null,null,null,null,null,null,null,null,null,null,null,null,null,null,null,null,null,null,null,null,null,null,null,null,null,null,"2006-09-30",null,null,null,null,"DENİZ TÜREV MENKUL DEĞERLER A.Ş. "]
[540,null,null,null,null,null,"AKDAĞMADENİ MAL MÜDÜRLÜĞÜ","YOZGAT",66101,null,null,null,null,null,"ELAZIĞ"]
["542 01",31969.85,31969.85,null,null,null,"AKDENİZ VERGİ DAİRESİ","HATAY",31281,null,null,null,null,null,"ERZİNCAN",null,null,null,null,null,null,null,null,null,null,null,null,null,null,null,null,null,null,null,null,null,null,null,null,null,null,null,null,null,null,null,null,null,null,null,null,null,null,null,null,null,null,null,null,null,null,null,null,null,null,null,null,null,null,null,null,null,null,null,null,null,null,null,null,null,null,null,null,null,null,null,null,null,null,null,null,null,null,null,null,null,null,null,"2008-09-30",null,null,null,null,"GÖKYILDIZ PETROL TURİZM VE İNŞAAT SAN. VE TİC. LTD. ŞTİ. "]
["542 02",187539.59,187539.59,null,null,null,"AKHİSAR VERGİ DAİRESİ","MANİSA",45201,null,null,null,null,null,"ERZURUM",null,null,null,null,null,null,null,null,null,null,null,null,null,null,null,null,null,null,null,null,null,null,null,null,null,null,null,null,null,null,null,null,null,null,null,null,null,null,null,null,null,null,null,null,null,null,null,null,null,null,null,null,null,null,null,null,null,null,null,null,null,null,null,null,null,null,null,null,null,null,null,null,null,null,null,null,null,null,null,null,null,null,null,"2008-12-31",null,null,null,null,"GÖKYILDIZ TEKSTİL VE KONFEKSİYON SAN. VE TİC. LTD. ŞTİ. "]
["542 06",23834.73,23834.73,null,null,null,"AKINCILAR MAL MÜDÜRLÜĞÜ","SİVAS",58112,null,null,null,null,null,"ESKİŞEHİR",null,null,null,null,null,null,null,null,null,null,null,null,null,null,null,null,null,null,null,null,null,null,null,null,null,null,null,null,null,null,null,null,null,null,null,null,null,null,null,null,null,null,null,null,null,null,null,null,null,null,null,null,null,null,null,null,null,null,null,null,null,null,null,null,null,null,null,null,null,null,null,null,null,null,null,null,null,null,null,null,null,null,null,"2009-03-31",null,null,null,null,"HÜRTEKSTİL SAN. VE TİC. LTD. ŞTİ. "]
["542 07",382475.08,382475.08,null,null,null,"AKKIŞLA MAL MÜDÜRLÜĞÜ","KAYSERİ",38111,null,null,null,null,null,"GAZİANTEP",null,null,null,null,null,null,null,null,null,null,null,null,null,null,null,null,null,null,null,null,null,null,null,null,null,null,null,null,null,null,null,null,null,null,null,null,null,null,null,null,null,null,null,null,null,null,null,null,null,null,null,null,null,null,null,null,null,null,null,null,null,null,null,null,null,null,null,null,null,null,null,null,null,null,null,null,null,null,null,null,null,null,null,"2009-06-30",null,null,null,null,"KS FLOK TEKSTİL KİMYA SAN. VE TİC. A.Ş. "]
[542,null,null,null,null,null,"AKKÖY MAL MÜDÜRLÜĞÜ","DENİZLİ",20115,null,null,null,null,null,"GİRESUN",null,null,null,null,null,null,null,null,null,null,null,null,null,null,null,null,null,null,null,null,null,null,null,null,null,null,null,null,null,null,null,null,null,null,null,null,null,null,null,null,null,null,null,null,null,null,null,null,null,null,null,null,null,null,null,null,null,null,null,null,null,null,null,null,null,null,null,null,null,null,null,null,null,null,null,null,null,null,null,null,null,null,null,"2009-09-30",null,null,null,null,"KÜÇÜKÇALIK İNŞAAT TURİZM SAN. VE TİC. A.Ş."]
["570 07",221098.08,221098.08,null,null,null,"AKKUŞ MAL MÜDÜRLÜĞÜ","ORDU",52101,null,null,null,null,null,"GÜMÜŞHANE",null,null,null,null,null,null,null,null,null,null,null,null,null,null,null,null,null,null,null,null,null,null,null,null,null,null,null,null,null,null,null,null,null,null,null,null,null,null,null,null,null,null,null,null,null,null,null,null,null,null,null,null,null,null,null,null,null,null,null,null,null,null,null,null,null,null,null,null,null,null,null,null,null,null,null,null,null,null,null,null,null,null,null,"2009-12-31",null,null,null,null,"KÜÇÜKÇALIK İTHALAT İHRACAT A.Ş."]
["570 97",6813.14,6813.14,null,null,null,"AKÖREN MAL MÜDÜRLÜĞÜ","KONYA",42118,null,null,null,null,null,"HAKKARİ",null,null,null,null,null,null,null,null,null,null,null,null,null,null,null,null,null,null,null,null,null,null,null,null,null,null,null,null,null,null,null,null,null,null,null,null,null,null,null,null,null,null,null,null,null,null,null,null,null,null,null,null,null,null,null,null,null,null,null,null,null,null,null,null,null,null,null,null,null,null,null,null,null,null,null,null,null,null,null,null,null,null,null,"2010-03-31",null,null,null,null,"KÜÇÜKÇALIK MEFRUŞAT TİC. VE SAN. A.Ş. "]
["570 97",null,null,null,null,null,"AKPINAR MAL MÜDÜRLÜĞÜ","KIRŞEHİR",40104,null,null,null,null,null,"HATAY",null,null,null,null,null,null,null,null,null,null,null,null,null,null,null,null,null,null,null,null,null,null,null,null,null,null,null,null,null,null,null,null,null,null,null,null,null,null,null,null,null,null,null,null,null,null,null,null,null,null,null,null,null,null,null,null,null,null,null,null,null,null,null,null,null,null,null,null,null,null,null,null,null,null,null,null,null,null,null,null,null,null,null,"2010-06-30",null,null,null,null,"KÜÇÜKÇALIK TEKSTİL SAN. VE TİC. A.Ş.                     "]
[null,null,null,null,null,null,"AKSARAY VERGİ DAİRESİ","AKSARAY",68201,null,null,null,null,null,"IĞDIR",null,null,null,null,null,null,null,null,null,null,null,null,null,null,null,null,null,null,null,null,null,null,null,null,null,null,null,null,null,null,null,null,null,null,null,null,null,null,null,null,null,null,null,null,null,null,null,null,null,null,null,null,null,null,null,null,null,null,null,null,null,null,null,null,null,null,null,null,null,null,null,null,null,null,null,null,null,null,null,null,null,null,null,"2010-09-30",null,null,null,null,"SİLCOTEX TEKSTİL TİCARET A.Ş. "]
[null,{"$f":"SUM(B84:B92)","v":853730.47},{"$f":"SUM(C84:C92)","v":853730.47},null,null,null,"AKŞEHİR VERGİ DAİRESİ","KONYA",42201,null,null,null,null,null,"ISPARTA",null,null,null,null,null,null,null,null,null,null,null,null,null,null,null,null,null,null,null,null,null,null,null,null,null,null,null,null,null,null,null,null,null,null,null,null,null,null,null,null,null,null,null,null,null,null,null,null,null,null,null,null,null,null,null,null,null,null,null,null,null,null,null,null,null,null,null,null,null,null,null,null,null,null,null,null,null,null,null,null,null,null,null,"2010-12-31",null,null,null,null,"STARWOOD ORMAN ÜRÜNLERİ SANAYİİ A.Ş. "]
[]
["Kuruma Bağlı İşyerlerinin türü ve sayısı","İşyeri sayısını aşağıda belirtilen şubeler bazında belirtiniz.",{"$f":"B96+B102+B103+B104+B105+B106","v":0},null,null,"İşyeri Adresleri","AKSEKİ MAL MÜDÜRLÜĞÜ","ANTALYA",7101,null,null,null,null,null,"İÇEL",null,null,null,null,null,null,null,null,null,null,null,null,null,null,null,null,null,null,null,null,null,null,null,null,null,null,null,null,null,null,null,null,null,null,null,null,null,null,null,null,null,null,null,null,null,null,null,null,null,null,null,null,null,null,null,null,null,null,null,null,null,null,null,null,null,null,null,null,null,null,null,null,null,null,null,null,null,null,null,null,null,null,null,"2011-03-31",null,null,null,null,"ŞEKERCİOĞLU KIRTASİYE VE BÜRO MAL. SAN. VE TİC. A.Ş.              "]
["Şube",null,null,null,null,null,"AKSU MAL MÜDÜRLÜĞÜ","ISPARTA",32110,null,null,null,null,null,"İSTANBUL",null,null,null,null,null,null,null,null,null,null,null,null,null,null,null,null,null,null,null,null,null,null,null,null,null,null,null,null,null,null,null,null,null,null,null,null,null,null,null,null,null,null,null,null,null,null,null,null,null,null,null,null,null,null,null,null,null,null,null,null,null,null,null,null,null,null,null,null,null,null,null,null,null,null,null,null,null,null,null,null,null,null,null,"2011-06-30",null,null,null,null,"TEKNİK MALZEME TİC. VE SAN. A.Ş."]
["Şube",null,null,null,null,null,"AKSU VERGİ DAİRESİ","KAHRAMANMARAŞ",46280,null,null,null,null,null,"İZMİR"]
["Şube",null,null,null,null,null,"AKYAKA MAL MÜDÜRLÜĞÜ","KARS",36115,null,null,null,null,null,"KAHRAMANMARAŞ"]
["Şube",null,null,null,null,null,"AKYAZI VERGİ DAİRESİ","SAKARYA",54201,null,null,null,null,null,"KARABÜK"]
["Depo",null,null,null,null,null,"AKYURT MAL MÜDÜRLÜĞÜ","ANKARA",6125,null,null,null,null,null,"KARAMAN"]
["Shrow-",null,null,null,null,null,"ALAADDİN VERGİ DAİRESİ","KONYA",42254,null,null,null,null,null,"KARS"]
["İmalat Yeri",null,null,null,null,null,"ALACA MAL MÜDÜRLÜĞÜ","ÇORUM",19101,null,null,null,null,null,"KASTAMONU",null,null,null,null,null,null,null,null,null,null,null,null,null,null,null,null,null,null,null,null,null,null,null,null,null,null,null,null,null,null,null,null,null,null,null,null,null,null,null,null,null,null,null,null,null,null,null,null,null,null,null,null,null,null,null,null,null,null,null,null,null,null,null,null,null,null,null,null,null,null,null,null,null,null,null,null,null,null,null,null,null,null,null,"2011-09-30",null,null,null,null,"VESTEL-BİRİM-DATASEL ADİ ORTAKLIĞI "]
["Çıkış Yeri",null,null,null,null,null,"ALACAKAYA MAL MÜDÜRLÜĞÜ","ELAZIĞ",23110,null,null,null,null,null,"KAYSERİ",null,null,null,null,null,null,null,null,null,null,null,null,null,null,null,null,null,null,null,null,null,null,null,null,null,null,null,null,null,null,null,null,null,null,null,null,null,null,null,null,null,null,null,null,null,null,null,null,null,null,null,null,null,null,null,null,null,null,null,null,null,null,null,null,null,null,null,null,null,null,null,null,null,null,null,null,null,null,null,null,null,null,null,"2011-12-31",null,null,null,null,"VONATEKS DIŞ TİCARET LTD. ŞTİ. "]
["Ajanlık",null,null,null,null,null,"ALAÇAM MAL MÜDÜRLÜĞÜ","SAMSUN",55101,null,null,null,null,null,"KIRIKKALE",null,null,null,null,null,null,null,null,null,null,null,null,null,null,null,null,null,null,null,null,null,null,null,null,null,null,null,null,null,null,null,null,null,null,null,null,null,null,null,null,null,null,null,null,null,null,null,null,null,null,null,null,null,null,null,null,null,null,null,null,null,null,null,null,null,null,null,null,null,null,null,null,null,null,null,null,null,null,null,null,null,null,null,null,null,null,null,null,"ZORLU DOĞALGAZ İTH. İHR. VE TOPTAN TİC. A.Ş."]
["Satış yeri",null,null,null,null,null,"ALADAĞ MAL MÜDÜRLÜĞÜ","ADANA",1114,null,null,null,null,null,"KIRKLARELİ"]
["Sair",null,null,null,null,null,"ALANYA VERGİ DAİRESİ","ANTALYA",7201,null,null,null,null,null,"KIRŞEHİR"]
["TOPLAM  SAYI",{"$f":"C95","v":0},null,null,null,null,"ALAPLI MAL MÜDÜRLÜĞÜ","ZONGULDAK",67110,null,null,null,null,null,"KİLİS"]
["Ödenmiş Sermaye Tutarı",5103000,null,null,null,null,"ALAŞEHİR VERGİ DAİRESİ","MANİSA",45202,null,null,null,null,null,"KOCAELİ"]
["ORTAKLIK YAPISI","Enson Yapılan Genel Kurulda Hazirun Cetveline göre","Hisse Oranı ","Sermaye Tutarı","Hisse adedi","Ortakların Adresleri","ALAYBEY VERGİ DAİRESİ","MANİSA",45251,null,null,null,null,null,"KONYA"]
["KURUMLAR","Dar Mükellefler varsa Temsilcileri için ayrıca bilgi veriniz.  !!!!!",null,null,null,null,"ALEMDAR VERGİ DAİRESİ","KOCAELİ",41253,null,null,null,null,null,"KÜTAHYA"]
["I-Tam Mükellef Kurumlar",null,{"$f":"+C112+C113+C114","v":49.964444},{"$f":"+D113+D114+D112","v":2549685.6},{"$f":"+E112+E113+E114","v":254968560},null,"ALİ FUAT CEBESOY VERGİ DAİRESİ","SAKARYA",54252,null,null,null,null,null,"MALATYA"]
["Ortak","ORHAN HOLDİNG A.Ş",{"$f":"ROUND((D111/D127*100),6)","v":49.964444},2549685.6,{"$f":"D112/B128","v":254968560},null,"ALİAĞA VERGİ DAİRESİ","İZMİR",35213,null,null,null,null,null,"MANİSA"]
["Ortak",null,{"$f":"ROUND((D113/D127*100),6)","v":0},null,{"$f":"D113*B128","v":0},null,"ALMUS MAL MÜDÜRLÜĞÜ","TOKAT",60101,null,null,null,null,null,"MARDİN"]
["Ortak",null,{"$f":"ROUND((D114/D127*100),6)","v":0},null,{"$f":"D114*B127","v":0},null,"ALPU MAL MÜDÜRLÜĞÜ","ESKİŞEHİR",26107,null,null,null,null,null,"MUĞLA"]
["II-Dar Mükellefler",null,{"$f":"ROUND((D115/D127*100),6)","v":50},{"$f":"+D116+D117","v":2551500},{"$f":"+E116+E117","v":255150000},null,"ALTINEKİN MAL MÜDÜRLÜĞÜ","KONYA",42119,null,null,null,null,null,"MUŞ"]
["Ortak","FAURECIA  INVESTMENTS",{"$f":"ROUND((D116/D127*100),6)","v":50},2551500,{"$f":"D116/B128","v":255150000},null,"ALTINOVA MAL MÜDÜRLÜĞÜ","YALOVA",77101,null,null,null,null,null,"NEVŞEHİR"]
["Ortak",null,{"$f":"ROUND((D117/D127*100),6)","v":0},null,{"$f":"D117/B128","v":0},null,"ALTINÖZÜ MAL MÜDÜRLÜĞÜ","HATAY",31101,null,null,null,null,null,"NİĞDE"]
["Varsa Daimi temsilcilerini yazınız..>","YOK",{"$f":"ROUND((D118/D128*100),6)","v":0},null,null,null,"ALTINTAŞ MAL MÜDÜRLÜĞÜ","KÜTAHYA",43101,null,null,null,null,null,"ORDU"]
["III-Gerçek Kişiler",null,{"$f":"ROUND((D119/D127*100),6)","v":3.5555999999999997E-2},{"$f":"D120+D121+D122+D123+D124+D125+D126","v":1814.4},{"$f":"E120+E121+E122+E123+E124+E125+E126","v":181440},null,"ALTINYAYLA MAL MÜDÜRLÜĞÜ","BURDUR",15108,null,null,null,null,null,"OSMANİYE"]
["Yönetim Kurulu Başkanı","İBRAHİM ORHAN",{"$f":"ROUND((D120/D127*100),6)","v":8.8889999999999993E-3},453.6,{"$f":"D120/B128","v":45360},null,"ALTINYAYLA MAL MÜDÜRLÜĞÜ","SİVAS",58113,null,null,null,null,null,"RİZE"]
["Yönetim K. Baş Vekili","H.MURAT ORHAN",{"$f":"ROUND((D121/D127*100),6)","v":8.8889999999999993E-3},453.6,{"$f":"D121/B128","v":45360},null,"ALTUNHİSAR MAL MÜDÜRLÜĞÜ","NİĞDE",51106,null,null,null,null,null,"SAKARYA"]
["Yönetim Kurulu  Üyesi",null,{"$f":"ROUND((D122/D127*100),6)","v":0},null,{"$f":"D122/B128","v":0},null,"ALUCRA MAL MÜDÜRLÜĞÜ","GİRESUN",28101,null,null,null,null,null,"SAMSUN"]
["Ortak","NECLA ORHAN",{"$f":"ROUND((D123/D127*100),6)","v":8.8889999999999993E-3},453.6,{"$f":"D123/B128","v":45360},null,"AMASRA MAL MÜDÜRLÜĞÜ","BARTIN",74101,null,null,null,null,null,"SİİRT"]
["Ortak","AYŞEGÜL DONAT",{"$f":"ROUND((D124/D127*100),6)","v":8.8889999999999993E-3},453.6,{"$f":"D124/B128","v":45360},null,"AMASYA VERGİ DAİRESİ","AMASYA",5260,null,null,null,null,null,"SİNOP"]
["Ortak",null,{"$f":"ROUND((D125/D127*100),6)","v":0},null,{"$f":"D125/B128","v":0},null,"ANADOLU KURUMLAR VERGİ DAİRESİ BAŞKANLIĞI","İSTANBUL",34244,null,null,null,null,null,"SİVAS"]
["Ortak",null,{"$f":"ROUND((D126/D127*100),6)","v":0},null,{"$f":"D126/B128","v":0},null,"ANAMUR VERGİ DAİRESİ","MERSİN",33203,null,null,null,null,null,"ŞANLIURFA"]
["TOPLAM",null,{"$f":"+C111+C115+C119","v":100},{"$f":"D111+D115+D119","v":5103000},{"$f":"+E111+E115+E119","v":510300000},null,"ANDIRIN MAL MÜDÜRLÜĞÜ","K.MARAŞ",46102,null,null,null,null,null,"ŞIRNAK"]
["1adet hissenin tutarı",0.01,null,{"$f":"D127/B128","v":510300000},{"$f":"E127-D128","v":0},null,"ANTALYA KURUMLAR VERGİ DAİRESİ BAŞKANLIĞI","ANTALYA",7255,null,null,null,null,null,"TEKİRDAĞ"]
["İMTİYAZLI HİSSE SENEDİ  VARMI",null,null,null,null,null,"ARABAN MAL MÜDÜRLÜĞÜ","GAZİANTEP",27101,null,null,null,null,null,"TOKAT"]
["YÖNETİM KURULU VE DENETÇİLERİN ÜCRETLERİYLE  İLGİLİ GENEL KURUL KARARIN TARİHİ",null,{"$f":"IF(B108=D127,\"\",\"SERMAYE TUTARI YANLIŞ TEKRAR  BAKINIZ.\")","v":""},null,null,null,"ARAÇ MAL MÜDÜRLÜĞÜ","KASTAMONU",37101,null,null,null,null,null,"TRABZON"]
["GENEL KURULDA ALINAN KARARA GÖRE Net,/Brüt Olarak ÖDENECEK AYLIK  ÜCRETLER",null,null,null,null,null,"ARAKLI MAL MÜDÜRLÜĞÜ","TRABZON",61102,null,null,null,null,null,"TUNCELİ"]
["YÖNETİM KURULU BAŞKANINA",null,null,null,null,null,"ARALIK MAL MÜDÜRLÜĞÜ","IĞDIR",76101,null,null,null,null,null,"UŞAK"]
["YÖNETİM KURULU BAŞKAN YRD",null,null,null,null,null,"ARAPKİR MAL MÜDÜRLÜĞÜ","MALATYA",44102,null,null,null,null,null,"VAN"]
["ÜYE-ORTAK",null,null,null,null,null,"ARDA VERGİ DAİRESİ","EDİRNE",22201,null,null,null,null,null,"YALOVA"]
["ÜYE-ORTAK",null,null,null,null,null,"ARDAHAN VERGİ DAİRESİ","ARDAHAN",75201,null,null,null,null,null,"YOZGAT"]
["ÜYE-ORTAK",null,null,null,null,null,"ARDANUÇ MAL MÜDÜRLÜĞÜ","ARTVİN",8101,null,null,null,null,null,"ZONGULDAK"]
["ÜYE-ORTAK",null,null,null,null,null,"ARDEŞEN VERGİ DAİRESİ","RİZE",53263]
["ÜYE-ORTAK",null,null,null,null,null,"ARGUVAN MAL MÜDÜRLÜĞÜ","MALATYA",44103]
["ÜYE-ŞİRKET TEMSİLCİSİ",null,null,null,null,null,"ARHAVİ MAL MÜDÜRLÜĞÜ","ARTVİN",8102]
["DENETÇİLERİN ADI VE SOYADI","DENETÇİLERE VERİLECEK  Net/ Brüt AYLIK ÜCRETLER",null,null,null,null,"ARICAK MAL MÜDÜRLÜĞÜ","ELAZIĞ",23108]
[null,null,null,null,null,null,"ARMUTLU MAL MÜDÜRLÜĞÜ","YALOVA",77102]
[null,null,null,null,null,null,"ARPAÇAY MAL MÜDÜRLÜĞÜ","KARS",36103]
[null,null,null,null,null,null,"ARSİN MAL MÜDÜRLÜĞÜ","TRABZON",61103]
[null,null,null,null,null,null,"ARTOVA MAL MÜDÜRLÜĞÜ","TOKAT",60102]
["Bugüne kadar ayrılan 1.tertip Yedek akçe",null,null,null,null,null,"ARTVİN VERGİ DAİRESİ","ARTVİN",8260]
["Ayrılması gereken 1. tertip yedek Akçe",{"$f":"(B108*20/100)-B145","v":1020600},null,null,null,null,"ASARCIK MAL MÜDÜRLÜĞÜ","SAMSUN",55109]
["DAĞITILACAK brüt TEMETTÜ TUTARI",null,null,null,null,null,"ASIM GÜNDÜZ VERGİ DAİRESİ","HATAY",31290]
["Bu yılın karından dağıtılcak Tutar",null,null,null,null,null,"AŞKALE MAL MÜDÜRLÜĞÜ","ERZURUM",25101]
["Yedekler dağıtılacak Tutar",null,null,null,null,null,"ASLANAPA MAL MÜDÜRLÜĞÜ","KÜTAHYA",43107]
["ORTAKLIKLARA DAĞITILACAK TOPLAM  KAR",0,null,null,null,null,"ASLANBEY VERGİ DAİRESİ","KAHRAMANMARAŞ",46201]
["PERSONELE TEMETTÜ % VEYA TUTAR",null,null,null,null,null,"ATABEY MAL MÜDÜRLÜĞÜ","ISPARTA",32101]
["YÖN.KURULUNA TEMETTÜ % VEYA TUTAR",null,null,null,null,null,"ATIŞALANI VERGİ DAİRESİ","İSTANBUL",34291]
["STATÜ YEDEKLERİ % VEYA TUTAR",null,null,null,null,null,"ATKARACALAR MAL MÜDÜRLÜĞÜ","ÇANKIRI",18110]
["DİĞER  YEDEKLER",null,null,null,null,null,"AVANOS MAL MÜDÜRLÜĞÜ","NEVŞEHİR",50101]
["ÖZEL FONLAR ",null,null,null,null,null,"AVCILAR VERGİ DAİRESİ","İSTANBUL",34294]
["Yönetim kurulu başkan ve üyeleri ile genel müdür, genel koordinatör, genel  müdür yardımcılarına cari dönemde ödenen ücret ve menfaatlerin toplam tutarı",null,null,null,null,null,"AYANCIK MAL MÜDÜRLÜĞÜ","SİNOP",57101]
["ÖNCEKİ DÖNEM",null,null,null,null,null,"AYAŞ MAL MÜDÜRLÜĞÜ","ANKARA",6102]
["Ödenen  Gecici Vergi tutarı",null,null,null,null,null,"AYBASTI MAL MÜDÜRLÜĞÜ","ORDU",52102]
[" Hesaplanan Vergi Karşılığı",null,null,null,null,null,"AYDINCIK MAL MÜDÜRLÜĞÜ","İÇEL",33107]
["İade edilecek tutar",null,null,null,null,null,"AYDINCIK MAL MÜDÜRLÜĞÜ","YOZGAT",66109]
[null,null,null,null,null,null,"AYDINTEPE MAL MÜDÜRLÜĞÜ","BAYBURT",69101]
["CARİ  DÖNEM",null,null,null,null,null,"AYRANCI MAL MÜDÜRLÜĞÜ","KARAMAN",70101]
["Ödenen  Gecici Vergi tutarı",null,null,null,null,null,"AYVACIK MAL MÜDÜRLÜĞÜ","ÇANAKKALE",17101]
[" Hesaplanan Vergi Karşılığı",null,null,null,null,null,"AYVACIK MAL MÜDÜRLÜĞÜ","SAMSUN",55113]
["İade edilecek tutar",null,null,null,null,null,"AYVALIK VERGİ DAİRESİ","BALIKESİR",10260]
[null,null,null,null,null,null,"AZDAVAY MAL MÜDÜRLÜĞÜ","KASTAMONU",37102]
["YARI MAMUL KULLANIMI",{"$f":"B168-B169","v":0},null,null,null,null,"AZİZİYE VERGİ DAİRESİ","ERZURUM",25251]
["Dönem Başı Stok  Tutarı(151 Hesap )",null,null,null,null,null,"BABADAĞ MAL MÜDÜRLÜĞÜ","DENİZLİ",20111]
["Dönem Sonu Stok   Tutarı (151 hesap)",null,null,null,null,null,"BABAESKİ VERGİ DAİRESİ","KIRKLARELİ",39262]
["MAMUL STOKLARINDA DEĞİŞİM",{"$f":"B171-B172","v":0},null,null,null,null,"BAFRA VERGİ DAİRESİ","SAMSUN",55202]
["Dönem Başı Stok  Tutarı (152 Hesap)",null,null,null,null,null,"BAHÇE MAL MÜDÜRLÜĞÜ","OSMANIYE",80101]
["Dönem Sonu Stok  Tutarı (152 Hesap)",null,null,null,null,null,"BAHÇESARAY MAL MÜDÜRLÜĞÜ","VAN",65108]
["TİCARİ FAALİYET",{"$f":"B174-B175","v":0},null,null,null,null,"BAKIRKÖY VERGİ DAİRESİ","İSTANBUL",34284]
["Dönem Başı Ticari Mal. Stok Tutarı (153 hesap)",null,null,null,null,null,"BAKLAN MAL MÜDÜRLÜĞÜ","DENİZLİ",20116]
["Dönem İçi Alış Tutarı (153 hesap)",null,null,null,null,null,"BALA MAL MÜDÜRLÜĞÜ","ANKARA",6103]
["Dönem Sonu Ticari Mal Tutarı (153 hesap)",null,null,null,null,null,"BALÇOVA VERGİ DAİRESİ","İZMİR",35266]
["İLK MADDE STOKLARA VERİ. FİNANSMAN GİDERİ",null,null,null,null,null,"BALIŞEYH MAL MÜDÜRLÜĞÜ","KIRIKKALE",71105]
["MAMUL STOKLARA VERİLEN FİNANSMAN GİDERİ",null,null,null,null,null,"BALYA MAL MÜDÜRLÜĞÜ","BALIKESİR",10102]
["YATIRIMLARA VERİLEN FİNANSMAN GİDERİ",null,0,{"$f":"IF(C180=B177+B178+B179+B180,\"\",\" YANLIŞ TEKRAR  BAKINIZ.\")","v":" YANLIŞ TEKRAR  BAKINIZ."},null,null,"BANAZ VERGİ DAİRESİ","UŞAK",64261]
["DOĞRUDAN GİDER YAZILAN  /GELİR TABLOSUNA  İNTİKAL ETTİRİLEN TUTAR",null,"",null,{"$f":"IF(E128=0,\"\",\"HİSSE ADETLERİ YANLIŞ TEKRAR  BAKINIZ.\")","v":""},null,"BANDIRMA VERGİ DAİRESİ","BALIKESİR",10261]
[null,null,null,null,null,null,"BARTIN VERGİ DAİRESİ","BARTIN",74260]
[null,null,null,null,null,null,"BAŞÇİFTLİK MAL MÜDÜRLÜĞÜ","TOKAT",60110]
[null,null,null,null,null,null,"BAŞKALE MAL MÜDÜRLÜĞÜ","VAN",65101]
[null,null,null,null,null,null,"BAŞKENT VERGİ DAİRESİ","ANKARA",6276]
[null,null,null,null,null,null,"BASKİL MAL MÜDÜRLÜĞÜ","ELAZIĞ",23102]
[null,null,null,null,null,null,"BAŞMAKÇI MAL MÜDÜRLÜĞÜ","AFYON",3111]
[null,null,null,null,null,null,"BASMANE VERGİ DAİRESİ","İZMİR",35255]
[null,null,null,null,null,null,"BAŞYAYLA MAL MÜDÜRLÜĞÜ","KARAMAN",70104]
[null,null,null,null,null,null,"BATMAN VERGİ DAİRESİ","BATMAN",72260]
[null,null,null,null,null,null,"BATTALGAZİ MAL MÜDÜRLÜĞÜ","MALATYA",44109]
[null,null,null,null,null,null,"BATTALGAZİ VERGİ DAİRESİ","ESKİŞEHİR",26254]
[null,null,null,null,null,null,"BAYAT MAL MÜDÜRLÜĞÜ","AFYON",3112]
[null,null,null,null,null,null,"BAYAT MAL MÜDÜRLÜĞÜ","ÇORUM",19102]
[null,null,null,null,null,null,"BAYBURT VERGİ DAİRESİ","BAYBURT",69201]
[null,null,null,null,null,null,"BAYINDIR VERGİ DAİRESİ","İZMİR",35201]
[null,null,null,null,null,null,"BAYKAN MAL MÜDÜRLÜĞÜ","SİİRT",56102]
[null,null,null,null,null,null,"BAYRAMİÇ MAL MÜDÜRLÜĞÜ","ÇANAKKALE",17102]
[null,null,null,null,null,null,"BAYRAMÖREN MAL MÜDÜRLÜĞÜ","ÇANKIRI",18112]
[null,null,null,null,null,null,"BAYRAMPAŞA VERGİ DAİRESİ","İSTANBUL",34264]
[null,null,null,null,null,null,"BEKİLLİ MAL MÜDÜRLÜĞÜ","DENİZLİ",20112]
[null,null,null,null,null,null,"BELEN MAL MÜDÜRLÜĞÜ","HATAY",31110]
[null,null,null,null,null,null,"BELKAHVE VERGİ DAİRESİ","İZMİR",35254]
[null,null,null,null,null,null,"BERGAMA VERGİ DAİRESİ","İZMİR",35202]
[null,null,null,null,null,null,"BEŞİKDÜZÜ MAL MÜDÜRLÜĞÜ","TRABZON",61111]
[null,null,null,null,null,null,"BEŞİKTAŞ VERGİ DAİRESİ","İSTANBUL",34251]
[null,null,null,null,null,null,"BEŞİRİ MAL MÜDÜRLÜĞÜ","BATMAN",72101]
[null,null,null,null,null,null,"BESNİ MAL MÜDÜRLÜĞÜ","ADIYAMAN",2101]
[null,null,null,null,null,null,"BEYAĞAÇ MAL MÜDÜRLÜĞÜ","DENİZLİ",20117]
[null,null,null,null,null,null,"BEYAZIT VERGİ DAİRESİ","İSTANBUL",34265]
[null,null,null,null,null,null,"BEYDAĞ MAL MÜDÜRLÜĞÜ","İZMİR",35120]
[null,null,null,null,null,null,"BEYDAĞI VERGİ DAİRESİ","MALATYA",44252]
[null,null,null,null,null,null,"BEYKOZ VERGİ DAİRESİ","İSTANBUL",34281]
[null,null,null,null,null,null,"BEYLİKDÜZÜ VERGİ DAİRESİ","İSTANBUL",34297]
[null,null,null,null,null,null,"BEYLİKOVA MAL MÜDÜRLÜĞÜ","ESKİŞEHİR",26108]
[null,null,null,null,null,null,"BEYOĞLU VERGİ DAİRESİ BAŞKANLIĞI","İSTANBUL",34266]
[null,null,null,null,null,null,"BEYPAZARI VERGİ DAİRESİ","ANKARA",6209]
[null,null,null,null,null,null,"BEYŞEHİR VERGİ DAİRESİ","KONYA",42204]
[null,null,null,null,null,null,"BEYTÜŞŞEBAB MAL MÜDÜRLÜĞÜ","ŞIRNAK",73101]
[null,null,null,null,null,null,"BİGA VERGİ DAİRESİ","ÇANAKKALE",17261]
[null,null,null,null,null,null,"BİGADİÇ VERGİ DAİRESİ","BALIKESİR",10267]
[null,null,null,null,null,null,"BİLECİK VERGİ DAİRESİ","BİLECİK",11260]
[null,null,null,null,null,null,"BİNGÖL VERGİ DAİRESİ","012260",12260]
[null,null,null,null,null,null,"BİRECİK VERGİ DAİRESİ","Ş.URFA",63262]
[null,null,null,null,null,null,"BİSMİL MAL MÜDÜRLÜĞÜ","DİYARBAKIR",21101]
[null,null,null,null,null,null,"BİTLİS VERGİ DAİRESİ","BİTLİS",13260]
[null,null,null,null,null,null,"BODRUM VERGİ DAİRESİ","MUĞLA",48261]
[null,null,null,null,null,null,"BOĞAZİÇİ KUR. VERGİ DAİRESİ BAŞKANLIĞI","İSTANBUL",34231]
[null,null,null,null,null,null,"BOĞAZKALE MAL MÜDÜRLÜĞÜ","ÇORUM",19109]
[null,null,null,null,null,null,"BOĞAZLIYAN VERGİ DAİRESİ","YOZGAT",66261]
[null,null,null,null,null,null,"BOLU VERGİ DAİRESİ","BOLU",14260]
[null,null,null,null,null,null,"BOLVADİN VERGİ DAİRESİ","AFYON",3261]
[null,null,null,null,null,null,"BOR VERGİ DAİRESİ","NİĞDE",51262]
[null,null,null,null,null,null,"BORÇKA MAL MÜDÜRLÜĞÜ","ARTVİN",8103]
[null,null,null,null,null,null,"BORNOVA VERGİ DAİRESİ BAŞKANLIĞI","İZMİR",35264]
[null,null,null,null,null,null,"BOYABAT VERGİ DAİRESİ","SİNOP",57261]
[null,null,null,null,null,null,"BOZCAADA MAL MÜDÜRLÜĞÜ","ÇANAKKALE",17104]
[null,null,null,null,null,null,"BOZDOĞAN MAL MÜDÜRLÜĞÜ","AYDIN",9101]
[null,null,null,null,null,null,"BOZKIR MAL MÜDÜRLÜĞÜ","KONYA",42103]
[null,null,null,null,null,null,"BOZKURT MAL MÜDÜRLÜĞÜ","DENİZLİ",20118]
[null,null,null,null,null,null,"BOZKURT MAL MÜDÜRLÜĞÜ","KASTAMONU",37103]
[null,null,null,null,null,null,"BOZOVA MAL MÜDÜRLÜĞÜ","Ş.URFA",63103]
[null,null,null,null,null,null,"BOZÖYÜK VERGİ DAİRESİ","BİLECİK",11261]
[null,null,null,null,null,null,"BOZTEPE MAL MÜDÜRLÜĞÜ","KIRŞEHİR",40106]
[null,null,null,null,null,null,"BOZTEPE VERGİ DAİRESİ","ORDU",52201]
[null,null,null,null,null,null,"BOZYAZI MAL MÜDÜRLÜĞÜ","MERSİN",33108]
[null,null,null,null,null,null,"BUCAK VERGİ DAİRESİ","BURDUR",15261]
[null,null,null,null,null,null,"BUHARKENT MAL MÜDÜRLÜĞÜ","AYDIN",9112]
[null,null,null,null,null,null,"BULANCAK VERGİ DAİRESİ","GİRESUN",28261]
[null,null,null,null,null,null,"BULANIK MAL MÜDÜRLÜĞÜ","MUŞ",49101]
[null,null,null,null,null,null,"BULDAN VERGİ DAİRESİ","DENİZLİ",20263]
[null,null,null,null,null,null,"BÜNYAN VERGİ DAİRESİ","KAYSERİ",38203]
[null,null,null,null,null,null,"BURDUR VERGİ DAİRESİ","BURDUR",15260]
[null,null,null,null,null,null,"BURHANİYE VERGİ DAİRESİ","BALIKESİR",10262]
[null,null,null,null,null,null,"BÜYÜK MÜKELLEFLER VERGİ DAİRESİ BAŞKANLIĞI","İSTANBUL",34230]
[null,null,null,null,null,null,"BÜYÜKÇEKMECE VERGİ DAİRESİ","İSTANBUL",34204]
[null,null,null,null,null,null,"BÜYÜKORHAN MAL MÜDÜRLÜĞÜ","BURSA",16112]
[null,null,null,null,null,null,"C.SITKI TARANCI VERGİ DAİRESİ","DİYARBAKIR",21282]
[null,null,null,null,null,null,"ÇAĞLIYANCERİT MAL MÜDÜRLÜĞÜ","K.MARAŞ",46107]
[null,null,null,null,null,null,"ÇAKABEY VERGİ DAİRESİ BAŞKANLIĞI","İZMİR",35265]
[null,null,null,null,null,null,"ÇAL VERGİ DAİRESİ","DENİZLİ",20264]
[null,null,null,null,null,null,"ÇALDIRAN MAL MÜDÜRLÜĞÜ","VAN",65109]
[null,null,null,null,null,null,"ÇAMARDI MAL MÜDÜRLÜĞÜ","NİĞDE",51103]
[null,null,null,null,null,null,"ÇAMAŞ MAL MÜDÜRLÜĞÜ","ORDU",52113]
[null,null,null,null,null,null,"ÇAMELİ MAL MÜDÜRLÜĞÜ","DENİZLİ",20104]
[null,null,null,null,null,null,"ÇAMLIDERE MAL MÜDÜRLÜĞÜ","ANKARA",6106]
[null,null,null,null,null,null,"ÇAMLIHEMŞİN MAL MÜDÜRLÜĞÜ","RİZE",53102]
[null,null,null,null,null,null,"ÇAMLIYAYLA MAL MÜDÜRLÜĞÜ","MERSİN",33109]
[null,null,null,null,null,null,"ÇAMOLUK MAL MÜDÜRLÜĞÜ","GİRESUN",28114]
[null,null,null,null,null,null,"ÇAN VERGİ DAİRESİ","ÇANAKKALE",17262]
[null,null,null,null,null,null,"ÇANAKÇI MAL MÜDÜRLÜĞÜ","GİRESUN",28112]
[null,null,null,null,null,null,"ÇANAKKALE VERGİ DAİRESİ","ÇANAKKALE",17260]
[null,null,null,null,null,null,"ÇANDIR MAL MÜDÜRLÜĞÜ","YOZGAT",66110]
[null,null,null,null,null,null,"ÇANKAYA VERGİ DAİRESİ","ANKARA",6257]
[null,null,null,null,null,null,"ÇANKIRI VERGİ DAİRESİ","ÇANKIRI",18260]
[null,null,null,null,null,null,"ÇAPA VERGİ DAİRESİ","İSTANBUL",34250]
[null,null,null,null,null,null,"ÇARDAK MAL MÜDÜRLÜĞÜ","DENİZLİ",20105]
[null,null,null,null,null,null,"ÇARŞAMBA VERGİ DAİRESİ","SAMSUN",55203]
[null,null,null,null,null,null,"ÇARŞIBAŞI MAL MÜDÜRLÜĞÜ","TRABZON",61113]
[null,null,null,null,null,null,"ÇAT MAL MÜDÜRLÜĞÜ","ERZURUM",25102]
[null,null,null,null,null,null,"ÇATAK MAL MÜDÜRLÜĞÜ","VAN",65102]
[null,null,null,null,null,null,"ÇATALCA VERGİ DAİRESİ","İSTANBUL",34206]
[null,null,null,null,null,null,"ÇATALPINAR MAL MÜDÜRLÜĞÜ","ORDU",52114]
[null,null,null,null,null,null,"ÇATALZEYTİN MAL MÜDÜRLÜĞÜ","KASTAMONU",37105]
[null,null,null,null,null,null,"ÇAVDARHİSAN MAL MÜDÜRLÜĞÜ","KÜTAHYA",43111]
[null,null,null,null,null,null,"ÇAVDIR MAL MÜDÜRLÜĞÜ","BURDUR",15109]
[null,null,null,null,null,null,"ÇAY VERGİ DAİRESİ","AFYON",3202]
[null,null,null,null,null,null,"ÇAYBAŞI MAL MÜDÜRLÜĞÜ","ORDU",52115]
[null,null,null,null,null,null,"ÇAYCUMA VERGİ DAİRESİ","ZONGULDAK",67263]
[null,null,null,null,null,null,"ÇAYELİ VERGİ DAİRESİ","RİZE",53261]
[null,null,null,null,null,null,"ÇAYIRALAN MAL MÜDÜRLÜĞÜ","YOZGAT",66103]
[null,null,null,null,null,null,"ÇAYIRLI MAL MÜDÜRLÜĞÜ","ERZİNCAN",24101]
[null,null,null,null,null,null,"ÇAYKARA MAL MÜDÜRLÜĞÜ","TRABZON",61104]
[null,null,null,null,null,null,"ÇEKEREK MAL MÜDÜRLÜĞÜ","YOZGAT",66104]
[null,null,null,null,null,null,"ÇEKİRGE VERGİ DAİRESİ","BURSA",16253]
[null,null,null,null,null,null,"ÇELEBİ MAL MÜDÜRLÜĞÜ","KIRIKKALE",71106]
[null,null,null,null,null,null,"ÇELİKHAN MAL MÜDÜRLÜĞÜ","ADIYAMAN",2102]
[null,null,null,null,null,null,"ÇELTİK MAL MÜDÜRLÜĞÜ","KONYA",42125]
[null,null,null,null,null,null,"ÇELTİKÇİ MAL MÜDÜRLÜĞÜ","BURDUR",15110]
[null,null,null,null,null,null,"ÇEMİŞGEZEK MAL MÜDÜRLÜĞÜ","TUNCELİ",62101]
[null,null,null,null,null,null,"ÇERKEŞ MAL MÜDÜRLÜĞÜ","ÇANKIRI",18101]
[null,null,null,null,null,null,"ÇERKEZKÖY VERGİ DAİRESİ","TEKİRDAĞ",59261]
[null,null,null,null,null,null,"ÇERMİK MAL MÜDÜRLÜĞÜ","DİYARBAKIR",21102]
[null,null,null,null,null,null,"ÇEŞME VERGİ DAİRESİ","İZMİR",35212]
[null,null,null,null,null,null,"CEYHAN VERGİ DAİRESİ","ADANA",1201]
[null,null,null,null,null,null,"CEYLANPINAR MAL MÜDÜRLÜĞÜ","Ş.URFA",63109]
[null,null,null,null,null,null,"ÇİÇEKDAĞI MAL MÜDÜRLÜĞÜ","KIRŞEHİR",40101]
[null,null,null,null,null,null,"CİDE MAL MÜDÜRLÜĞÜ","KASTAMONU",37104]
[null,null,null,null,null,null,"ÇİFTELER VERGİ DAİRESİ","ESKİŞEHİR",26201]
[null,null,null,null,null,null,"ÇİFTLİK MAL MÜDÜRLÜĞÜ","NİĞDE",51107]
[null,null,null,null,null,null,"ÇİĞLİ VERGİ DAİRESİ","İZMİR",35269]
[null,null,null,null,null,null,"CİHANBEYLİ VERGİ DAİRESİ","KONYA",42205]
[null,null,null,null,null,null,"ÇILDIR MAL MÜDÜRLÜĞÜ","ARDAHAN",75101]
[null,null,null,null,null,null,"ÇİLİMLİ MAL MÜDÜRLÜĞÜ","DÜZCE",81103]
[null,null,null,null,null,null,"ÇINAR MAL MÜDÜRLÜĞÜ","DİYARBAKIR",21103]
[null,null,null,null,null,null,"ÇINAR VERGİ DAİRESİ","DENİZLİ",20202]
[null,null,null,null,null,null,"ÇINARCIK MAL MÜDÜRLÜĞÜ","YALOVA",77103]
[null,null,null,null,null,null,"ÇİNE VERGİ DAİRESİ","AYDIN",9262]
[null,null,null,null,null,null,"ÇİNİLİ VERGİ DAİRESİ","KÜTAHYA",43280]
[null,null,null,null,null,null,"ÇİVRİL VERGİ DAİRESİ","DENİZLİ",20265]
[null,null,null,null,null,null,"CİZRE VERGİ DAİRESİ","ŞIRNAK",73261]
[null,null,null,null,null,null,"ÇOBANLAR MAL MÜDÜRLÜĞÜ","AFYON",3114]
[null,null,null,null,null,null,"ÇORLU VERGİ DAİRESİ","TEKİRDAĞ",59262]
[null,null,null,null,null,null,"ÇORUM VERGİ DAİRESİ","ÇORUM",19260]
[null,null,null,null,null,null,"ÇUBUK VERGİ DAİRESİ","ANKARA",6211]
[null,null,null,null,null,null,"ÇUKURCA MAL MÜDÜRLÜĞÜ","HAKKARİ",30102]
[null,null,null,null,null,null,"ÇUKUROVA VERGİ DAİRESİ","ADANA",1255]
[null,null,null,null,null,null,"CUMAYERİ MAL MÜDÜRLÜĞÜ","DÜZCE",81102]
[null,null,null,null,null,null,"CUMHURİYET VERGİ DAİRESİ","ANKARA",6277]
[null,null,null,null,null,null,"ÇUMRA VERGİ DAİRESİ","KONYA",42206]
[null,null,null,null,null,null,"ÇÜNGÜŞ MAL MÜDÜRLÜĞÜ","DİYARBAKIR",21104]
[null,null,null,null,null,null,"DADAY MAL MÜDÜRLÜĞÜ","KASTAMONU",37106]
[null,null,null,null,null,null,"DALAMAN MAL MÜDÜRLÜĞÜ","MUĞLA",48109]
[null,null,null,null,null,null,"DAMAL MAL MÜDÜRLÜĞÜ","ARDAHAN",75102]
[null,null,null,null,null,null,"DARENDE MAL MÜDÜRLÜĞÜ","MALATYA",44104]
[null,null,null,null,null,null,"DARGEÇİT MAL MÜDÜRLÜĞÜ","MARDİN",47112]
[null,null,null,null,null,null,"DATÇA MAL MÜDÜRLÜĞÜ","MUĞLA",48102]
[null,null,null,null,null,null,"DAVRAZ VERGİ DAİRESİ","ISPARTA",32201]
[null,null,null,null,null,null,"DAVUTPAŞA VERGİ DAİRESİ","İSTANBUL",34234]
[null,null,null,null,null,null,"DAZKIRI MAL MÜDÜRLÜĞÜ","AFYON",3103]
[null,null,null,null,null,null,"DELİCE MAL MÜDÜRLÜĞÜ","KIRIKKALE",71101]
[null,null,null,null,null,null,"DEMİRCİ VERGİ DAİRESİ","MANİSA",45203]
[null,null,null,null,null,null,"DEMİRKÖY MAL MÜDÜRLÜĞÜ","KIRKLARELİ",39102]
[null,null,null,null,null,null,"DEMİRÖZÜ MAL MÜDÜRLÜĞÜ","BAYBURT",69102]
[null,null,null,null,null,null,"DEMRE MAL MÜDÜRLÜĞÜ","ANTALYA",7112]
[null,null,null,null,null,null,"DERBENT MAL MÜDÜRLÜĞÜ","KONYA",42126]
[null,null,null,null,null,null,"DEREBUCAK MAL MÜDÜRLÜĞÜ","KONYA",42121]
[null,null,null,null,null,null,"DERELİ MAL MÜDÜRLÜĞÜ","GİRESUN",28103]
[null,null,null,null,null,null,"DEREPAZARI MAL MÜDÜRLÜĞÜ","RİZE",53109]
[null,null,null,null,null,null,"DERİK MAL MÜDÜRLÜĞÜ","MARDİN",47102]
[null,null,null,null,null,null,"DERİNCE VERGİ DAİRESİ","KOCAELİ",41207]
[null,null,null,null,null,null,"DERİNKUYU MAL MÜDÜRLÜĞÜ","NEVŞEHİR",50102]
[null,null,null,null,null,null,"DERNEKPAZARI MAL MÜDÜRLÜĞÜ","TRABZON",61114]
[null,null,null,null,null,null,"DEVELİ VERGİ DAİRESİ","KAYSERİ",38201]
[null,null,null,null,null,null,"DEVREK VERGİ DAİRESİ","ZONGULDAK",67264]
[null,null,null,null,null,null,"DEVREKANİ MAL MÜDÜRLÜĞÜ","KASTAMONU",37107]
[null,null,null,null,null,null,"DİCLE MAL MÜDÜRLÜĞÜ","DİYARBAKIR",21105]
[null,null,null,null,null,null,"DİDİM VERGİ DAİRESİ","AYDIN",9281]
[null,null,null,null,null,null,"DİGOR MAL MÜDÜRLÜĞÜ","KARS",36105]
[null,null,null,null,null,null,"DİKİLİ MAL MÜDÜRLÜĞÜ","İZMİR",35105]
[null,null,null,null,null,null,"DİKİMEVİ VERGİ DAİRESİ","ANKARA",6264]
[null,null,null,null,null,null,"DİKMEN MAL MÜDÜRLÜĞÜ","SİNOP",57107]
[null,null,null,null,null,null,"DİNAR VERGİ DAİRESİ","AFYON",3260]
[null,null,null,null,null,null,"DIŞ TİC. VERGİ DAİRESİ BAŞKANLIĞI","İSTANBUL",34289]
[null,null,null,null,null,null,"DIŞKAPI VERGİ DAİRESİ","ANKARA",6274]
[null,null,null,null,null,null,"DİVRİĞİ MAL MÜDÜRLÜĞÜ","SİVAS",58101]
[null,null,null,null,null,null,"DİYADİN MAL MÜDÜRLÜĞÜ","AĞRI",4101]
[null,null,null,null,null,null,"DODURGA MAL MÜDÜRLÜĞÜ","ÇORUM",19111]
[null,null,null,null,null,null,"DOĞANBEY VERGİ DAİRESİ","ANKARA",6265]
[null,null,null,null,null,null,"DOĞANHİSAR MAL MÜDÜRLÜĞÜ","KONYA",42106]
[null,null,null,null,null,null,"DOĞANKENT MAL MÜDÜRLÜĞÜ","GİRESUN",28115]
[null,null,null,null,null,null,"DOĞANŞAR MAL MÜDÜRLÜĞÜ","SİVAS",58114]
[null,null,null,null,null,null,"DOĞANŞEHİR MAL MÜDÜRLÜĞÜ","MALATYA",44105]
[null,null,null,null,null,null,"DOĞANYOL MAL MÜDÜRLÜĞÜ","MALATYA",44110]
[null,null,null,null,null,null,"DOĞANYURT MAL MÜDÜRLÜĞÜ","KASTAMONU",37117]
[null,null,null,null,null,null,"DOĞUBEYAZIT VERGİ DAİRESİ","AĞRI",4261]
[null,null,null,null,null,null,"DOMANİÇ MAL MÜDÜRLÜĞÜ","KÜTAHYA",43102]
[null,null,null,null,null,null,"DÖRTDİVAN MAL MÜDÜRLÜĞÜ","BOLU",14113]
[null,null,null,null,null,null,"DÖRTYOL VERGİ DAİRESİ","HATAY",31260]
[null,null,null,null,null,null,"DÜDEN VERGİ DAİRESİ","ANTALYA",7254]
[null,null,null,null,null,null,"DUMLUPINAR MAL MÜDÜRLÜĞÜ","KÜTAHYA",43108]
[null,null,null,null,null,null,"DURAĞAN MAL MÜDÜRLÜĞÜ","SİNOP",57103]
[null,null,null,null,null,null,"DURSUNBEY VERGİ DAİRESİ","BALIKESİR",10269]
[null,null,null,null,null,null,"DÜZCE VERGİ DAİRESİ","DÜZCE",81260]
[null,null,null,null,null,null,"DÜZİÇİ MAL MÜDÜRLÜĞÜ","OSMANIYE",80102]
[null,null,null,null,null,null,"DÜZKÖY MAL MÜDÜRLÜĞÜ","TRABZON",61115]
[null,null,null,null,null,null,"ECEABAT MAL MÜDÜRLÜĞÜ","ÇANAKKALE",17106]
[null,null,null,null,null,null,"EDREMİT MAL MÜDÜRLÜĞÜ","VAN",65110]
[null,null,null,null,null,null,"EDREMİT VERGİ DAİRESİ","BALIKESİR",10263]
[null,null,null,null,null,null,"EFELER VERGİ DAİRESİ","AYDIN",9201]
[null,null,null,null,null,null,"EFLANİ MAL MÜDÜRLÜĞÜ","KARABÜK",78101]
[null,null,null,null,null,null,"EGE VERGİ DAİRESİ","İZMİR",35268]
[null,null,null,null,null,null,"EĞİL MAL MÜDÜRLÜĞÜ","DİYARBAKIR",21112]
[null,null,null,null,null,null,"EĞİRDİR VERGİ DAİRESİ","ISPARTA",32261]
[null,null,null,null,null,null,"EKİNÖZÜ MAL MÜDÜRLÜĞÜ","K.MARAŞ",46108]
[null,null,null,null,null,null,"ELBİSTAN VERGİ DAİRESİ","K.MARAŞ",46260]
[null,null,null,null,null,null,"ELDİVAN MAL MÜDÜRLÜĞÜ","ÇANKIRI",18102]
[null,null,null,null,null,null,"ELEŞKİRT MAL MÜDÜRLÜĞÜ","AĞRI",4103]
[null,null,null,null,null,null,"ELMADAĞ VERGİ DAİRESİ","ANKARA",6215]
[null,null,null,null,null,null,"ELMALI VERGİ DAİRESİ","ANTALYA",7204]
[null,null,null,null,null,null,"EMET VERGİ DAİRESİ","KÜTAHYA",43263]
[null,null,null,null,null,null,"EMİRDAĞ VERGİ DAİRESİ","AFYON",3262]
[null,null,null,null,null,null,"EMİRGAZİ MAL MÜDÜRLÜĞÜ","KONYA",42127]
[null,null,null,null,null,null,"ENEZ MAL MÜDÜRLÜĞÜ","EDİRNE",22101]
[null,null,null,null,null,null,"ERBAA VERGİ DAİRESİ","TOKAT",60261]
[null,null,null,null,null,null,"ERCİŞ VERGİ DAİRESİ","VAN",65201]
[null,null,null,null,null,null,"ERCİYES VERGİ DAİRESİ","KAYSERİ",38252]
[null,null,null,null,null,null,"ERDEK VERGİ DAİRESİ","BALIKESİR",10266]
[null,null,null,null,null,null,"ERDEMLİ VERGİ DAİRESİ","MERSİN",33201]
[null,null,null,null,null,null,"EREĞLİ VERGİ DAİRESİ","KONYA",42202]
[null,null,null,null,null,null,"ERENKÖY VERGİ DAİRESİ","İSTANBUL",34255]
[null,null,null,null,null,null,"ERFELEK MAL MÜDÜRLÜĞÜ","SİNOP",57104]
[null,null,null,null,null,null,"ERGANİ MAL MÜDÜRLÜĞÜ","DİYARBAKIR",21106]
[null,null,null,null,null,null,"ERMENEK MAL MÜDÜRLÜĞÜ","KARAMAN",70102]
[null,null,null,null,null,null,"ERTUĞRULGAZİ VERGİ DAİRESİ BAŞKANLIĞI","BURSA",16258]
[null,null,null,null,null,null,"ERUH MAL MÜDÜRLÜĞÜ","SİİRT",56104]
[null,null,null,null,null,null,"ERZİN MAL MÜDÜRLÜĞÜ","HATAY",31109]
[null,null,null,null,null,null,"ESENLER VERGİ DAİRESİ","İSTANBUL",34235]
[null,null,null,null,null,null,"ESKİL MAL MÜDÜRLÜĞÜ","AKSARAY",68105]
[null,null,null,null,null,null,"ESKİPAZAR MAL MÜDÜRLÜĞÜ","KARABÜK",78102]
[null,null,null,null,null,null,"EŞME VERGİ DAİRESİ","UŞAK",64262]
[null,null,null,null,null,null,"ESPİYE MAL MÜDÜRLÜĞÜ","GİRESUN",28104]
[null,null,null,null,null,null,"ETİMESGUT VERGİ DAİRESİ","ANKARA",6275]
[null,null,null,null,null,null,"EVCİLER MAL MÜDÜRLÜĞÜ","AFYON",3115]
[null,null,null,null,null,null,"EVREN MAL MÜDÜRLÜĞÜ","ANKARA",6127]
[null,null,null,null,null,null,"EYNESİL MAL MÜDÜRLÜĞÜ","GİRESUN",28105]
[null,null,null,null,null,null,"EZİNE MAL MÜDÜRLÜĞÜ","ÇANAKKALE",17107]
[null,null,null,null,null,null,"FATİH VERGİ DAİRESİ","İSTANBUL",34236]
[null,null,null,null,null,null,"FATSA VERGİ DAİRESİ","ORDU",52261]
[null,null,null,null,null,null,"FEKE MAL MÜDÜRLÜĞÜ","ADANA",1103]
[null,null,null,null,null,null,"FELAHİYE MAL MÜDÜRLÜĞÜ","KAYSERİ",38103]
[null,null,null,null,null,null,"FETHİYE VERGİ DAİRESİ","MUĞLA",48262]
[null,null,null,null,null,null,"FEVZİPAŞA VERGİ DAİRESİ","ERZİNCAN",24260]
[null,null,null,null,null,null,"FINDIKLI MAL MÜDÜRLÜĞÜ","RİZE",53104]
[null,null,null,null,null,null,"FİNİKE MAL MÜDÜRLÜĞÜ","ANTALYA",7104]
[null,null,null,null,null,null,"FIRAT VERGİ DAİRESİ","MALATYA",44251]
[null,null,null,null,null,null,"FOÇA MAL MÜDÜRLÜĞÜ","İZMİR",35106]
[null,null,null,null,null,null,"GALATA VERGİ DAİRESİ","İSTANBUL",34268]
[null,null,null,null,null,null,"GAZİEMİR VERGİ DAİRESİ","İZMİR",35267]
[null,null,null,null,null,null,"GAZİKENT VERGİ DAİRESİ","GAZİANTEP",27254]
[null,null,null,null,null,null,"GAZİLER VERGİ DAİRESİ","SAMSUN",55252]
[null,null,null,null,null,null,"GAZİOSMANPAŞA VERGİ DAİRESİ","İSTANBUL",34269]
[null,null,null,null,null,null,"GAZİPAŞA MAL MÜDÜRLÜĞÜ","ANTALYA",7105]
[null,null,null,null,null,null,"GEDİZ VERGİ DAİRESİ","KÜTAHYA",43260]
[null,null,null,null,null,null,"GELENDOST MAL MÜDÜRLÜĞÜ","ISPARTA",32103]
[null,null,null,null,null,null,"GELİBOLU VERGİ DAİRESİ","ÇANAKKALE",17263]
[null,null,null,null,null,null,"GEMEREK MAL MÜDÜRLÜĞÜ","SİVAS",58102]
[null,null,null,null,null,null,"GEMLİK VERGİ DAİRESİ","BURSA",16201]
[null,null,null,null,null,null,"GENÇ MAL MÜDÜRLÜĞÜ","BİNGÖL",12101]
[null,null,null,null,null,null,"GERCÜŞ MAL MÜDÜRLÜĞÜ","BATMAN",72102]
[null,null,null,null,null,null,"GEREDE VERGİ DAİRESİ","BOLU",14262]
[null,null,null,null,null,null,"GERGER MAL MÜDÜRLÜĞÜ","ADIYAMAN",2103]
[null,null,null,null,null,null,"GERMENCİK VERGİ DAİRESİ","AYDIN",9263]
[null,null,null,null,null,null,"GERZE MAL MÜDÜRLÜĞÜ","SİNOP",57105]
[null,null,null,null,null,null,"GEVAŞ MAL MÜDÜRLÜĞÜ","VAN",65104]
[null,null,null,null,null,null,"GEVHER NESİBE VERGİ DAİRESİ","KAYSERİ",38254]
[null,null,null,null,null,null,"GEYVE VERGİ DAİRESİ","SAKARYA",54202]
[null,null,null,null,null,null,"GİRESUN VERGİ DAİRESİ","GİRESUN",28260]
[null,null,null,null,null,null,"GÖKALP VERGİ DAİRESİ","DİYARBAKIR",21251]
[null,null,null,null,null,null,"GÖKÇEADA MAL MÜDÜRLÜĞÜ","ÇANAKKALE",17109]
[null,null,null,null,null,null,"GÖKÇEBEY MAL MÜDÜRLÜĞÜ","ZONGULDAK",67113]
[null,null,null,null,null,null,"GÖKDERE VERGİ DAİRESİ","BURSA",16259]
[null,null,null,null,null,null,"GÖKPINAR VERGİ DAİRESİ","DENİZLİ",20203]
[null,null,null,null,null,null,"GÖKSUN MAL MÜDÜRLÜĞÜ","K.MARAŞ",46104]
[null,null,null,null,null,null,"GÖLBAŞI MAL MÜDÜRLÜĞÜ","ADIYAMAN",2104]
[null,null,null,null,null,null,"GÖLBAŞI VERGİ DAİRESİ","ANKARA",6272]
[null,null,null,null,null,null,"GÖLCÜK VERGİ DAİRESİ","KOCAELİ",41204]
[null,null,null,null,null,null,"GÖLE MAL MÜDÜRLÜĞÜ","ARDAHAN",75103]
[null,null,null,null,null,null,"GÖLHİSAR MAL MÜDÜRLÜĞÜ","BURDUR",15103]
[null,null,null,null,null,null,"GÖLKÖY MAL MÜDÜRLÜĞÜ","ORDU",52104]
[null,null,null,null,null,null,"GÖLMARMARA MAL MÜDÜRLÜĞÜ","MANİSA",45114]
[null,null,null,null,null,null,"GÖLOVA MAL MÜDÜRLÜĞÜ","SİVAS",58115]
[null,null,null,null,null,null,"GÖLPAZARI MAL MÜDÜRLÜĞÜ","BİLECİK",11102]
[null,null,null,null,null,null,"GÖLYAKA MAL MÜDÜRLÜĞÜ","DÜZCE",81104]
[null,null,null,null,null,null,"GÖMEÇ MAL MÜDÜRLÜĞÜ","BALIKESİR",10118]
[null,null,null,null,null,null,"GÖNEN MAL MÜDÜRLÜĞÜ","ISPARTA",32111]
[null,null,null,null,null,null,"GÖNEN VERGİ DAİRESİ","BALIKESİR",10264]
[null,null,null,null,null,null,"GÖRDES VERGİ DAİRESİ","MANİSA",45210]
[null,null,null,null,null,null,"GÖRELE MAL MÜDÜRLÜĞÜ","GİRESUN",28106]
[null,null,null,null,null,null,"GÖYNÜCEK MAL MÜDÜRLÜĞÜ","AMASYA",5101]
[null,null,null,null,null,null,"GÖYNÜK MAL MÜDÜRLÜĞÜ","BOLU",14104]
[null,null,null,null,null,null,"GÖZTEPE VERGİ DAİRESİ","İSTANBUL",34270]
[null,null,null,null,null,null,"GÜCE MAL MÜDÜRLÜĞÜ","GİRESUN",28113]
[null,null,null,null,null,null,"GÜÇLÜKONAK MAL MÜDÜRLÜĞÜ","ŞIRNAK",73103]
[null,null,null,null,null,null,"GÜDÜL MAL MÜDÜRLÜĞÜ","ANKARA",6110]
[null,null,null,null,null,null,"GÜLAĞAÇ MAL MÜDÜRLÜĞÜ","AKSARAY",68106]
[null,null,null,null,null,null,"GÜLNAR MAL MÜDÜRLÜĞÜ","MERSİN",33103]
[null,null,null,null,null,null,"GÜLŞEHİR MAL MÜDÜRLÜĞÜ","NEVŞEHİR",50103]
[null,null,null,null,null,null,"GÜLYALI MAL MÜDÜRLÜĞÜ","ORDU",52111]
[null,null,null,null,null,null,"GÜMRÜKÖNÜ VERGİ DAİRESİ","SAKARYA",54251]
[null,null,null,null,null,null,"GÜMÜŞHACIKÖY VERGİ DAİRESİ","AMASYA",5262]
[null,null,null,null,null,null,"GÜMÜŞHANE VERGİ DAİRESİ","GÜMÜŞHANE",29260]
[null,null,null,null,null,null,"GÜMÜŞOVA MAL MÜDÜRLÜĞÜ","DÜZCE",81105]
[null,null,null,null,null,null,"GÜNDOĞMUŞ MAL MÜDÜRLÜĞÜ","ANTALYA",7106]
[null,null,null,null,null,null,"GÜNEŞLİ VERGİ DAİRESİ","İSTANBUL",34261]
[null,null,null,null,null,null,"GÜNEY MAL MÜDÜRLÜĞÜ","DENİZLİ",20107]
[null,null,null,null,null,null,"GÜNEYSINIR MAL MÜDÜRLÜĞÜ","KONYA",42128]
[null,null,null,null,null,null,"GÜNEYSU MAL MÜDÜRLÜĞÜ","RİZE",53108]
[null,null,null,null,null,null,"GÜNGÖREN VERGİ DAİRESİ","İSTANBUL",34259]
[null,null,null,null,null,null,"GÜNYÜZÜ MAL MÜDÜRLÜĞÜ","ESKİŞEHİR",26110]
[null,null,null,null,null,null,"GÜRGENTEPE MAL MÜDÜRLÜĞÜ","ORDU",52112]
[null,null,null,null,null,null,"GÜROYMAK MAL MÜDÜRLÜĞÜ","BİTLİS",13106]
[null,null,null,null,null,null,"GÜRPINAR MAL MÜDÜRLÜĞÜ","VAN",65105]
[null,null,null,null,null,null,"GÜRÜN MAL MÜDÜRLÜĞÜ","SİVAS",58103]
[null,null,null,null,null,null,"GÜZELHİSAR VERGİ DAİRESİ","AYDIN",9280]
[null,null,null,null,null,null,"GÜZELYURT MAL MÜDÜRLÜĞÜ","AKSARAY",68102]
[null,null,null,null,null,null,"HACIBEKTAŞ MAL MÜDÜRLÜĞÜ","NEVŞEHİR",50104]
[null,null,null,null,null,null,"HACILAR MAL MÜDÜRLÜĞÜ","KAYSERİ",38113]
[null,null,null,null,null,null,"HADIM MAL MÜDÜRLÜĞÜ","KONYA",42109]
[null,null,null,null,null,null,"HAFİK MAL MÜDÜRLÜĞÜ","SİVAS",58104]
[null,null,null,null,null,null,"HAKKARİ VERGİ DAİRESİ","HAKKARİ",30260]
[null,null,null,null,null,null,"HALFETİ MAL MÜDÜRLÜĞÜ","Ş.URFA",63104]
[null,null,null,null,null,null,"HALKALI VERGİ DAİRESİ BAŞKANLIĞI","İSTANBUL",34278]
[null,null,null,null,null,null,"HALKAPINAR MAL MÜDÜRLÜĞÜ","KONYA",42129]
[null,null,null,null,null,null,"HAMAMÖZÜ MAL MÜDÜRLÜĞÜ","AMASYA",5106]
[null,null,null,null,null,null,"HAMUR MAL MÜDÜRLÜĞÜ","AĞRI",4104]
[null,null,null,null,null,null,"HAN MAL MÜDÜRLÜĞÜ","ESKİŞEHİR",26111]
[null,null,null,null,null,null,"HANAK MAL MÜDÜRLÜĞÜ","ARDAHAN",75104]
[null,null,null,null,null,null,"HANİ MAL MÜDÜRLÜĞÜ","DİYARBAKIR",21107]
[null,null,null,null,null,null,"HANÖNÜ MAL MÜDÜRLÜĞÜ","KASTAMONU",37118]
[null,null,null,null,null,null,"HARMANCIK MAL MÜDÜRLÜĞÜ","BURSA",16111]
[null,null,null,null,null,null,"HARPUT VERGİ DAİRESİ","ELAZIĞ",23201]
[null,null,null,null,null,null,"HARRAN MAL MÜDÜRLÜĞÜ","Ş.URFA",63110]
[null,null,null,null,null,null,"HASAN TAHSİN VERGİ DAİRESİ BAŞKANLIĞI","İZMİR",35263]
[null,null,null,null,null,null,"HASANBEYLİ MAL MÜDÜRLÜĞÜ","OSMANIYE",80104]
[null,null,null,null,null,null,"HASANKEYF MAL MÜDÜRLÜĞÜ","BATMAN",72103]
[null,null,null,null,null,null,"HASKÖY MAL MÜDÜRLÜĞÜ","MUŞ",49104]
[null,null,null,null,null,null,"HASSA MAL MÜDÜRLÜĞÜ","HATAY",31103]
[null,null,null,null,null,null,"HATAY VERGİ DAİRESİ","HATAY",31203]
[null,null,null,null,null,null,"HAVRAN MAL MÜDÜRLÜĞÜ","BALIKESİR",10110]
[null,null,null,null,null,null,"HAVSA VERGİ DAİRESİ","EDİRNE",22263]
[null,null,null,null,null,null,"HAVZA VERGİ DAİRESİ","SAMSUN",55205]
[null,null,null,null,null,null,"HAYMANA VERGİ DAİRESİ","ANKARA",6213]
[null,null,null,null,null,null,"HAYRABOLU VERGİ DAİRESİ","TEKİRDAĞ",59263]
[null,null,null,null,null,null,"HAYRAT MAL MÜDÜRLÜĞÜ","TRABZON",61116]
[null,null,null,null,null,null,"HAZAR VERGİ DAİRESİ","ELAZIĞ",23280]
[null,null,null,null,null,null,"HAZRO MAL MÜDÜRLÜĞÜ","DİYARBAKIR",21108]
[null,null,null,null,null,null,"HEKİMHAN MAL MÜDÜRLÜĞÜ","MALATYA",44106]
[null,null,null,null,null,null,"HEMŞİN MAL MÜDÜRLÜĞÜ","RİZE",53110]
[null,null,null,null,null,null,"HENDEK VERGİ DAİRESİ","SAKARYA",54203]
[null,null,null,null,null,null,"HİLVAN MAL MÜDÜRLÜĞÜ","Ş.URFA",63105]
[null,null,null,null,null,null,"HINIS MAL MÜDÜRLÜĞÜ","ERZURUM",25103]
[null,null,null,null,null,null,"HİSAR VERGİ DAİRESİ","İSTANBUL",34256]
[null,null,null,null,null,null,"HİSARCIK MAL MÜDÜRLÜĞÜ","KÜTAHYA",43109]
[null,null,null,null,null,null,"HİTİT VERGİ DAİRESİ BAŞKANLIĞI","ANKARA",6268]
[null,null,null,null,null,null,"HİZAN MAL MÜDÜRLÜĞÜ","BİTLİS",13103]
[null,null,null,null,null,null,"HIZIRBEY VERGİ DAİRESİ","TRABZON",61201]
[null,null,null,null,null,null,"HOCALAR MAL MÜDÜRLÜĞÜ","AFYON",3116]
[null,null,null,null,null,null,"HOCAPAŞA VERGİ DAİRESİ","İSTANBUL",34271]
[null,null,null,null,null,null,"HONAZ MAL MÜDÜRLÜĞÜ","DENİZLİ",20113]
[null,null,null,null,null,null,"HOPA VERGİ DAİRESİ","ARTVİN",8261]
[null,null,null,null,null,null,"HOROSAN MAL MÜDÜRLÜĞÜ","ERZURUM",25104]
[null,null,null,null,null,null,"HOZAT MAL MÜDÜRLÜĞÜ","TUNCELİ",62102]
[null,null,null,null,null,null,"HÜYÜK MAL MÜDÜRLÜĞÜ","KONYA",42122]
[null,null,null,null,null,null,"İBRADI MAL MÜDÜRLÜĞÜ","ANTALYA",7113]
[null,null,null,null,null,null,"İDİL MAL MÜDÜRLÜĞÜ","ŞIRNAK",73104]
[null,null,null,null,null,null,"IĞDIR VERGİ DAİRESİ","IĞDIR",76201]
[null,null,null,null,null,null,"İHSANGAZİ MAL MÜDÜRLÜĞÜ","KASTAMONU",37113]
[null,null,null,null,null,null,"İHSANİYE MAL MÜDÜRLÜĞÜ","AFYON",3105]
[null,null,null,null,null,null,"İKİTELLİ VERGİ DAİRESİ","İSTANBUL",34249]
[null,null,null,null,null,null,"İKİZCE MAL MÜDÜRLÜĞÜ","ORDU",52116]
[null,null,null,null,null,null,"İKİZDERE MAL MÜDÜRLÜĞÜ","RİZE",53105]
[null,null,null,null,null,null,"ILGAZ MAL MÜDÜRLÜĞÜ","ÇANKIRI",18104]
[null,null,null,null,null,null,"ILGIN VERGİ DAİRESİ","KONYA",42208]
[null,null,null,null,null,null,"İLİÇ MAL MÜDÜRLÜĞÜ","ERZİNCAN",24102]
[null,null,null,null,null,null,"ILICA MAL MÜDÜRLÜĞÜ","ERZURUM",25117]
[null,null,null,null,null,null,"İLYASBEY VERGİ DAİRESİ","KOCAELİ",41203]
[null,null,null,null,null,null,"İMAMOĞLU MAL MÜDÜRLÜĞÜ","ADANA",1115]
[null,null,null,null,null,null,"İMRANLI MAL MÜDÜRLÜĞÜ","SİVAS",58105]
[null,null,null,null,null,null,"İNCESU MAL MÜDÜRLÜĞÜ","KAYSERİ",38104]
[null,null,null,null,null,null,"İNCİRLİOVA MAL MÜDÜRLÜĞÜ","AYDIN",9113]
[null,null,null,null,null,null,"İNEBOLU MAL MÜDÜRLÜĞÜ","KASTAMONU",37108]
[null,null,null,null,null,null,"İNEGÖL VERGİ DAİRESİ","BURSA",16202]
[null,null,null,null,null,null,"İNHİSAR MAL MÜDÜRLÜĞÜ","BİLECİK",11107]
[null,null,null,null,null,null,"İNÖNÜ MAL MÜDÜRLÜĞÜ","ESKİŞEHİR",26109]
[null,null,null,null,null,null,"İPSALA VERGİ DAİRESİ","EDİRNE",22264]
[null,null,null,null,null,null,"IRMAK VERGİ DAİRESİ","KIRIKKALE",71201]
[null,null,null,null,null,null,"İSCEHİSAR MAL MÜDÜRLÜĞÜ","AFYON",3113]
[null,null,null,null,null,null,"İSKİLİP MAL MÜDÜRLÜĞÜ","ÇORUM",19103]
[null,null,null,null,null,null,"İSLAHİYE VERGİ DAİRESİ","GAZİANTEP",27203]
[null,null,null,null,null,null,"İSPİR MAL MÜDÜRLÜĞÜ","ERZURUM",25105]
[null,null,null,null,null,null,"İSTİKLAL VERGİ DAİRESİ","MERSİN",33250]
[null,null,null,null,null,null,"İVRİNDİ MAL MÜDÜRLÜĞÜ","BALIKESİR",10111]
[null,null,null,null,null,null,"İYİDERE MAL MÜDÜRLÜĞÜ","RİZE",53111]
[null,null,null,null,null,null,"İZNİK VERGİ DAİRESİ","BURSA",16207]
[null,null,null,null,null,null,"K.KARABEKİR MAL MÜDÜRLÜĞÜ","KARAMAN",70103]
[null,null,null,null,null,null,"KABADÜZ MAL MÜDÜRLÜĞÜ","ORDU",52117]
[null,null,null,null,null,null,"KABATAŞ MAL MÜDÜRLÜĞÜ","ORDU",52118]
[null,null,null,null,null,null,"KAÇKAR VERGİ DAİRESİ","RİZE",53201]
[null,null,null,null,null,null,"KADİFEKALE VERGİ DAİRESİ","İZMİR",35261]
[null,null,null,null,null,null,"KADIKÖY VERGİ DAİRESİ","İSTANBUL",34272]
[null,null,null,null,null,null,"KADINHAN MAL MÜDÜRLÜĞÜ","KONYA",42111]
[null,null,null,null,null,null,"KADİRLİ VERGİ DAİRESİ","OSMANIYE",80260]
[null,null,null,null,null,null,"KADIŞEHRİ MAL MÜDÜRLÜĞÜ","YOZGAT",66111]
[null,null,null,null,null,null,"KAĞITHANE VERGİ DAİRESİ","İSTANBUL",34279]
[null,null,null,null,null,null,"KAĞIZMAN MAL MÜDÜRLÜĞÜ","KARS",36109]
[null,null,null,null,null,null,"KAHTA VERGİ DAİRESİ","ADIYAMAN",2261]
[null,null,null,null,null,null,"KALE MAL MÜDÜRLÜĞÜ","ANTALYA",7112]
[null,null,null,null,null,null,"KALE MAL MÜDÜRLÜĞÜ","DENİZLİ",20108]
[null,null,null,null,null,null,"KALE MAL MÜDÜRLÜĞÜ","MALATYA",44111]
[null,null,null,null,null,null,"KALE VERGİ DAİRESİ","SİVAS",58201]
[null,null,null,null,null,null,"KALECİK MAL MÜDÜRLÜĞÜ","ANKARA",6112]
[null,null,null,null,null,null,"KALEKAPI VERGİ DAİRESİ","ANTALYA",7252]
[null,null,null,null,null,null,"KALEÖNÜ VERGİ DAİRESİ","KAYSERİ",38253]
[null,null,null,null,null,null,"KALETEPE VERGİ DAİRESİ","KIRIKKALE",71202]
[null,null,null,null,null,null,"KALKANDERE MAL MÜDÜRLÜĞÜ","RİZE",53106]
[null,null,null,null,null,null,"KAMAN VERGİ DAİRESİ","KIRŞEHİR",40261]
[null,null,null,null,null,null,"KANDIRA MAL MÜDÜRLÜĞÜ","KOCAELİ",41103]
[null,null,null,null,null,null,"KANGAL MAL MÜDÜRLÜĞÜ","SİVAS",58106]
[null,null,null,null,null,null,"KARABÜK VERGİ DAİRESİ","KARABÜK",78201]
[null,null,null,null,null,null,"KARABURUN MAL MÜDÜRLÜĞÜ","İZMİR",35107]
[null,null,null,null,null,null,"KARACABEY VERGİ DAİRESİ","BURSA",16203]
[null,null,null,null,null,null,"KARACASU MAL MÜDÜRLÜĞÜ","AYDIN",9104]
[null,null,null,null,null,null,"KARAÇOBAN MAL MÜDÜRLÜĞÜ","ERZURUM",25114]
[null,null,null,null,null,null,"KARADENİZ VERGİ DAİRESİ","TRABZON",61280]
[null,null,null,null,null,null,"KARAELMAS VERGİ DAİRESİ","ZONGULDAK",67280]
[null,null,null,null,null,null,"KARAHALLI MAL MÜDÜRLÜĞÜ","UŞAK",64103]
[null,null,null,null,null,null,"KARAİSALI MAL MÜDÜRLÜĞÜ","ADANA",1105]
[null,null,null,null,null,null,"KARAKEÇİLİ MAL MÜDÜRLÜĞÜ","KIRIKKALE",71107]
[null,null,null,null,null,null,"KARAKOÇAN MAL MÜDÜRLÜĞÜ","ELAZIĞ",23103]
[null,null,null,null,null,null,"KARAKOYUNLU MAL MÜDÜRLÜĞÜ","IĞDIR",76102]
[null,null,null,null,null,null,"KARAMAN VERGİ DAİRESİ","KARAMAN",70201]
[null,null,null,null,null,null,"KARAMANLI MAL MÜDÜRLÜĞÜ","BURDUR",15106]
[null,null,null,null,null,null,"KARAMÜRSEL VERGİ DAİRESİ","KOCAELİ",41205]
[null,null,null,null,null,null,"KARAPINAR MAL MÜDÜRLÜĞÜ","KONYA",42113]
[null,null,null,null,null,null,"KARAPÜRÇEK MAL MÜDÜRLÜĞÜ","SAKARYA",54111]
[null,null,null,null,null,null,"KARASU VERGİ DAİRESİ","SAKARYA",54204]
[null,null,null,null,null,null,"KARATAŞ VERGİ DAİRESİ","ADANA",1205]
[null,null,null,null,null,null,"KARAYAZI MAL MÜDÜRLÜĞÜ","ERZURUM",25106]
[null,null,null,null,null,null,"KARESİ VERGİ DAİRESİ","BALIKESİR",10201]
[null,null,null,null,null,null,"KARGI MAL MÜDÜRLÜĞÜ","ÇORUM",19104]
[null,null,null,null,null,null,"KARKAMIŞ MAL MÜDÜRLÜĞÜ","GAZİANTEP",27107]
[null,null,null,null,null,null,"KARLIOVA MAL MÜDÜRLÜĞÜ","BİNGÖL",12102]
[null,null,null,null,null,null,"KARPUZLU MAL MÜDÜRLÜĞÜ","AYDIN",9114]
[null,null,null,null,null,null,"KARS VERGİ DAİRESİ","KARS",36260]
[null,null,null,null,null,null,"KARŞIYAKA VERGİ DAİRESİ","İZMİR",35256]
[null,null,null,null,null,null,"KARTAL VERGİ DAİRESİ","İSTANBUL",34285]
[null,null,null,null,null,null,"KAŞ MAL MÜDÜRLÜĞÜ","ANTALYA",7107]
[null,null,null,null,null,null,"KASIMPAŞA VERGİ DAİRESİ","İSTANBUL",34254]
[null,null,null,null,null,null,"KASTAMONU VERGİ DAİRESİ","KASTAMONU",37260]
[null,null,null,null,null,null,"KAVAK MAL MÜDÜRLÜĞÜ","SAMSUN",55105]
[null,null,null,null,null,null,"KAVAKLIDERE MAL MÜDÜRLÜĞÜ","MUĞLA",48111]
[null,null,null,null,null,null,"KAVAKLIDERE VERGİ DAİRESİ BAŞKANLIĞI","ANKARA",6253]
[null,null,null,null,null,null,"KAYMAKKAPI VERGİ DAİRESİ","ISPARTA",32260]
[null,null,null,null,null,null,"KAYNARCA MAL MÜDÜRLÜĞÜ","SAKARYA",54105]
[null,null,null,null,null,null,"KAYNAŞLI MAL MÜDÜRLÜĞÜ","DÜZCE",81106]
[null,null,null,null,null,null,"KAZAN MAL MÜDÜRLÜĞÜ","ANKARA",6124]
[null,null,null,null,null,null,"KAZIMKARABEKİR VERGİ DAİRESİ","ERZURUM",25280]
[null,null,null,null,null,null,"KEBAN MAL MÜDÜRLÜĞÜ","ELAZIĞ",23104]
[null,null,null,null,null,null,"KEÇİBORLU MAL MÜDÜRLÜĞÜ","ISPARTA",32104]
[null,null,null,null,null,null,"KEÇİÖREN VERGİ DAİRESİ","ANKARA",6278]
[null,null,null,null,null,null,"KELES MAL MÜDÜRLÜĞÜ","BURSA",16105]
[null,null,null,null,null,null,"KELKİT MAL MÜDÜRLÜĞÜ","GÜMÜŞHANE",29102]
[null,null,null,null,null,null,"KEMAH MAL MÜDÜRLÜĞÜ","ERZİNCAN",24103]
[null,null,null,null,null,null,"KEMALİYE MAL MÜDÜRLÜĞÜ","ERZİNCAN",24104]
[null,null,null,null,null,null,"KEMALPAŞA VERGİ DAİRESİ","İZMİR",35207]
[null,null,null,null,null,null,"KEMER MAL MÜDÜRLÜĞÜ","BURDUR",15107]
[null,null,null,null,null,null,"KEMER VERGİ DAİRESİ","ANTALYA",7205]
[null,null,null,null,null,null,"KEMERALTI VERGİ DAİRESİ","İZMİR",35257]
[null,null,null,null,null,null,"KEPSUT MAL MÜDÜRLÜĞÜ","BALIKESİR",10112]
[null,null,null,null,null,null,"KEŞAN VERGİ DAİRESİ","EDİRNE",22261]
[null,null,null,null,null,null,"KEŞAP MAL MÜDÜRLÜĞÜ","GİRESUN",28107]
[null,null,null,null,null,null,"KESKİN MAL MÜDÜRLÜĞÜ","KIRIKKALE",71102]
[null,null,null,null,null,null,"KIBRISCIK MAL MÜDÜRLÜĞÜ","BOLU",14105]
[null,null,null,null,null,null,"KIĞI MAL MÜDÜRLÜĞÜ","BİNGÖL",12103]
[null,null,null,null,null,null,"KİLİS VERGİ DAİRESİ","KİLİS",79201]
[null,null,null,null,null,null,"KINIK VERGİ DAİRESİ","İZMİR",35210]
[null,null,null,null,null,null,"KİRAZ VERGİ DAİRESİ","İZMİR",35211]
[null,null,null,null,null,null,"KIRIKHAN VERGİ DAİRESİ","HATAY",31261]
[null,null,null,null,null,null,"KIRKAĞAÇ VERGİ DAİRESİ","MANİSA",45204]
[null,null,null,null,null,null,"KIRKLARELİ VERGİ DAİRESİ","KIRKLARELİ",39260]
[null,null,null,null,null,null,"KIRKPINAR VERGİ DAİRESİ","EDİRNE",22260]
[null,null,null,null,null,null,"KIRŞEHİR VERGİ DAİRESİ","KIRŞEHİR",40260]
[null,null,null,null,null,null,"KIZILBEY VERGİ DAİRESİ","ANKARA",6258]
[null,null,null,null,null,null,"KIZILCAHAMAM MAL MÜDÜRLÜĞÜ","ANKARA",6115]
[null,null,null,null,null,null,"KIZILIRMAK MAL MÜDÜRLÜĞÜ","ÇANKIRI",18111]
[null,null,null,null,null,null,"KIZILMURAT VERGİ DAİRESİ","MERSİN",33204]
[null,null,null,null,null,null,"KIZILÖREN MAL MÜDÜRLÜĞÜ","AFYON",3117]
[null,null,null,null,null,null,"KIZILTEPE VERGİ DAİRESİ","MARDİN",47261]
[null,null,null,null,null,null,"KOCAALİ MAL MÜDÜRLÜĞÜ","SAKARYA",54107]
[null,null,null,null,null,null,"KOCAKÖY MAL MÜDÜRLÜĞÜ","DİYARBAKIR",21113]
[null,null,null,null,null,null,"KOCAMUSTAFAPAŞA VERGİ DAİRESİ","İSTANBUL",34273]
[null,null,null,null,null,null,"KOÇARLI MAL MÜDÜRLÜĞÜ","AYDIN",9105]
[null,null,null,null,null,null,"KOCASİNAN VERGİ DAİRESİ","İSTANBUL",34260]
[null,null,null,null,null,null,"KOCATEPE VERGİ DAİRESİ","AFYON",3280]
[null,null,null,null,null,null,"KOFCAZ MAL MÜDÜRLÜĞÜ","KIRKLARELİ",39103]
[null,null,null,null,null,null,"KONAK VERGİ DAİRESİ","İZMİR",35258]
[null,null,null,null,null,null,"KÖPRÜBAŞI MAL MÜDÜRLÜĞÜ","MANİSA",45115]
[null,null,null,null,null,null,"KÖPRÜBAŞI MAL MÜDÜRLÜĞÜ","TRABZON",61117]
[null,null,null,null,null,null,"KÖPRÜBAŞI VERGİ DAİRESİ","ORDU",52260]
[null,null,null,null,null,null,"KÖPRÜKÖY MAL MÜDÜRLÜĞÜ","ERZURUM",25118]
[null,null,null,null,null,null,"KORDON VERGİ DAİRESİ BAŞKANLIĞI","İZMİR",35259]
[null,null,null,null,null,null,"KÖRFEZ VERGİ DAİRESİ","KOCAELİ",41206]
[null,null,null,null,null,null,"KORGAN MAL MÜDÜRLÜĞÜ","ORDU",52105]
[null,null,null,null,null,null,"KORGUN MAL MÜDÜRLÜĞÜ","ÇANKIRI",18113]
[null,null,null,null,null,null,"KORKUT MAL MÜDÜRLÜĞÜ","MUŞ",49105]
[null,null,null,null,null,null,"KORKUTELİ MAL MÜDÜRLÜĞÜ","ANTALYA",7108]
[null,null,null,null,null,null,"KÖSE MAL MÜDÜRLÜĞÜ","GÜMÜŞHANE",29107]
[null,null,null,null,null,null,"KÖŞK MAL MÜDÜRLÜĞÜ","AYDIN",9115]
[null,null,null,null,null,null,"KOVANCILAR MAL MÜDÜRLÜĞÜ","ELAZIĞ",23109]
[null,null,null,null,null,null,"KÖYCEĞİZ VERGİ DAİRESİ","MUĞLA",48263]
[null,null,null,null,null,null,"KOYULHİSAR MAL MÜDÜRLÜĞÜ","SİVAS",58107]
[null,null,null,null,null,null,"KOZAKLI MAL MÜDÜRLÜĞÜ","NEVŞEHİR",50105]
[null,null,null,null,null,null,"KOZAN VERGİ DAİRESİ","ADANA",1203]
[null,null,null,null,null,null,"KOZANLI VERGİ DAİRESİ","GAZİANTEP",27255]
[null,null,null,null,null,null,"KOZLUK MAL MÜDÜRLÜĞÜ","BATMAN",72104]
[null,null,null,null,null,null,"KOZYATAĞI VERGİ DAİRESİ","İSTANBUL",34246]
[null,null,null,null,null,null,"KRDZ.EREĞLİ VERGİ DAİRESİ","ZONGULDAK",67261]
[null,null,null,null,null,null,"KÜÇÜKÇEKMECE VERGİ DAİRESİ","İSTANBUL",34296]
[null,null,null,null,null,null,"KÜÇÜKKÖY VERGİ DAİRESİ","İSTANBUL",34237]
[null,null,null,null,null,null,"KÜÇÜKYALI VERGİ DAİRESİ","İSTANBUL",34262]
[null,null,null,null,null,null,"KULA VERGİ DAİRESİ","MANİSA",45211]
[null,null,null,null,null,null,"KULP MAL MÜDÜRLÜĞÜ","DİYARBAKIR",21109]
[null,null,null,null,null,null,"KULU VERGİ DAİRESİ","KONYA",42209]
[null,null,null,null,null,null,"KULUNCAK MAL MÜDÜRLÜĞÜ","MALATYA",44112]
[null,null,null,null,null,null,"KUMLU MAL MÜDÜRLÜĞÜ","HATAY",31111]
[null,null,null,null,null,null,"KUMLUCA VERGİ DAİRESİ","ANTALYA",7206]
[null,null,null,null,null,null,"KUMRU MAL MÜDÜRLÜĞÜ","ORDU",52106]
[null,null,null,null,null,null,"KÜRE MAL MÜDÜRLÜĞÜ","KASTAMONU",37109]
[null,null,null,null,null,null,"KURŞUNLU MAL MÜDÜRLÜĞÜ","ÇANKIRI",18105]
[null,null,null,null,null,null,"KURTALAN MAL MÜDÜRLÜĞÜ","SİİRT",56106]
[null,null,null,null,null,null,"KURTDERELİ VERGİ DAİRESİ","BALIKESİR",10280]
[null,null,null,null,null,null,"KÜRTÜN MAL MÜDÜRLÜĞÜ","GÜMÜŞHANE",29108]
[null,null,null,null,null,null,"KURUCAŞİLE MAL MÜDÜRLÜĞÜ","BARTIN",74102]
[null,null,null,null,null,null,"KUŞADASI VERGİ DAİRESİ","AYDIN",9265]
[null,null,null,null,null,null,"KUYUCAK MAL MÜDÜRLÜĞÜ","AYDIN",9107]
[null,null,null,null,null,null,"LAÇİN MAL MÜDÜRLÜĞÜ","ÇORUM",19113]
[null,null,null,null,null,null,"LADİK MAL MÜDÜRLÜĞÜ","SAMSUN",55106]
[null,null,null,null,null,null,"LALAPAŞA MAL MÜDÜRLÜĞÜ","EDİRNE",22105]
[null,null,null,null,null,null,"LALELİ VERGİ DAİRESİ","İSTANBUL",34238]
[null,null,null,null,null,null,"LAPSEKİ MAL MÜDÜRLÜĞÜ","ÇANAKKALE",17110]
[null,null,null,null,null,null,"LİCE MAL MÜDÜRLÜĞÜ","DİYARBAKIR",21110]
[null,null,null,null,null,null,"LİMAN VERGİ DAİRESİ","MERSİN",33254]
[null,null,null,null,null,null,"LÜLEBURGAZ VERGİ DAİRESİ","KIRKLARELİ",39261]
[null,null,null,null,null,null,"M.KARAGÜZEL VERGİ DAİRESİ","ANKARA",6270]
[null,null,null,null,null,null,"M.KEMALPAŞA VERGİ DAİRESİ","BURSA",16204]
[null,null,null,null,null,null,"MAÇKA MAL MÜDÜRLÜĞÜ","TRABZON",61105]
[null,null,null,null,null,null,"MADEN MAL MÜDÜRLÜĞÜ","ELAZIĞ",23105]
[null,null,null,null,null,null,"MAHMUDİYE MAL MÜDÜRLÜĞÜ","ESKİŞEHİR",26102]
[null,null,null,null,null,null,"MALAZGİRT MAL MÜDÜRLÜĞÜ","MUŞ",49102]
[null,null,null,null,null,null,"MALKARA VERGİ DAİRESİ","TEKİRDAĞ",59264]
[null,null,null,null,null,null,"MALTEPE VERGİ DAİRESİ","ANKARA",6254]
[null,null,null,null,null,null,"MANAVGAT VERGİ DAİRESİ","ANTALYA",7203]
[null,null,null,null,null,null,"MANYAS MAL MÜDÜRLÜĞÜ","BALIKESİR",10113]
[null,null,null,null,null,null,"MARDİN VERGİ DAİRESİ","MARDİN",47260]
[null,null,null,null,null,null,"MARM. EREĞLİSİ MAL MÜDÜRLÜĞÜ","TEKİRDAĞ",59108]
[null,null,null,null,null,null,"MARMARA KUR. VERGİ DAİRESİ BAŞKANLIĞI","İSTANBUL",34232]
[null,null,null,null,null,null,"MARMARA MAL MÜDÜRLÜĞÜ","BALIKESİR",10117]
[null,null,null,null,null,null,"MARMARİS VERGİ DAİRESİ","MUĞLA",48265]
[null,null,null,null,null,null,"MASLAK VERGİ DAİRESİ","İSTANBUL",34247]
[null,null,null,null,null,null,"MAZGİRT MAL MÜDÜRLÜĞÜ","TUNCELİ",62103]
[null,null,null,null,null,null,"MAZIDAĞI MAL MÜDÜRLÜĞÜ","MARDİN",47106]
[null,null,null,null,null,null,"MECİDİYEKÖY VERGİ DAİRESİ","İSTANBUL",34274]
[null,null,null,null,null,null,"MECİTÖZÜ MAL MÜDÜRLÜĞÜ","ÇORUM",19105]
[null,null,null,null,null,null,"MENDERES VERGİ DAİRESİ","İZMİR",35215]
[null,null,null,null,null,null,"MENEMEN VERGİ DAİRESİ","İZMİR",35203]
[null,null,null,null,null,null,"MENGEN MAL MÜDÜRLÜĞÜ","BOLU",14106]
[null,null,null,null,null,null,"MERAM VERGİ DAİRESİ","KONYA",42253]
[null,null,null,null,null,null,"MERCAN VERGİ DAİRESİ","İSTANBUL",34275]
[null,null,null,null,null,null,"MERİÇ MAL MÜDÜRLÜĞÜ","EDİRNE",22106]
[null,null,null,null,null,null,"MERTER VERGİ DAİRESİ","İSTANBUL",34239]
[null,null,null,null,null,null,"MERZİFON VERGİ DAİRESİ","AMASYA",5261]
[null,null,null,null,null,null,"MESİR VERGİ DAİRESİ","MANİSA",45252]
[null,null,null,null,null,null,"MESUDİYE MAL MÜDÜRLÜĞÜ","ORDU",52107]
[null,null,null,null,null,null,"MEVLANA VERGİ DAİRESİ","KONYA",42252]
[null,null,null,null,null,null,"MEVLANAKAPI VERGİ DAİRESİ","İSTANBUL",34240]
[null,null,null,null,null,null,"MİDYAT MAL MÜDÜRLÜĞÜ","MARDİN",47107]
[null,null,null,null,null,null,"MİHALGAZİ MAL MÜDÜRLÜĞÜ","ESKİŞEHİR",26112]
[null,null,null,null,null,null,"MİHALIÇÇIK MAL MÜDÜRLÜĞÜ","ESKİŞEHİR",26103]
[null,null,null,null,null,null,"MİLAS VERGİ DAİRESİ","MUĞLA",48264]
[null,null,null,null,null,null,"MİMARSİNAN VERGİ DAİRESİ","KAYSERİ",38251]
[null,null,null,null,null,null,"MİTHATPAŞA VERGİ DAİRESİ","ANKARA",6259]
[null,null,null,null,null,null,"MUCUR MAL MÜDÜRLÜĞÜ","KIRŞEHİR",40103]
[null,null,null,null,null,null,"MUDANYA VERGİ DAİRESİ","BURSA",16205]
[null,null,null,null,null,null,"MUDURNU MAL MÜDÜRLÜĞÜ","BOLU",14107]
[null,null,null,null,null,null,"MUĞLA VERGİ DAİRESİ","MUĞLA",48260]
[null,null,null,null,null,null,"MURADİYE MAL MÜDÜRLÜĞÜ","VAN",65106]
[null,null,null,null,null,null,"MURATLI VERGİ DAİRESİ","TEKİRDAĞ",59265]
[null,null,null,null,null,null,"MURATPAŞA VERGİ DAİRESİ","ANTALYA",7253]
[null,null,null,null,null,null,"MURGUL MAL MÜDÜRLÜĞÜ","ARTVİN",8107]
[null,null,null,null,null,null,"MUŞ VERGİ DAİRESİ","MUŞ",49260]
[null,null,null,null,null,null,"MUT MAL MÜDÜRLÜĞÜ","MERSİN",33104]
[null,null,null,null,null,null,"MUTKİ MAL MÜDÜRLÜĞÜ","BİTLİS",13104]
[null,null,null,null,null,null,"NAKİL VASITA. VERGİ DAİRESİ","İSTANBUL",34287]
[null,null,null,null,null,null,"NALLIHAN MAL MÜDÜRLÜĞÜ","ANKARA",6117]
[null,null,null,null,null,null,"NAMIK KEMAL VERGİ DAİRESİ","TEKİRDAĞ",59260]
[null,null,null,null,null,null,"NARMAN MAL MÜDÜRLÜĞÜ","ERZURUM",25107]
[null,null,null,null,null,null,"NAZİLLİ VERGİ DAİRESİ","AYDIN",9260]
[null,null,null,null,null,null,"NAZİMİYE MAL MÜDÜRLÜĞÜ","TUNCELİ",62104]
[null,null,null,null,null,null,"NEVŞEHİR VERGİ DAİRESİ","NEVŞEHİR",50260]
[null,null,null,null,null,null,"NİĞDE VERGİ DAİRESİ","NİĞDE",51260]
[null,null,null,null,null,null,"NİKSAR VERGİ DAİRESİ","TOKAT",60262]
[null,null,null,null,null,null,"NİLÜFER VERGİ DAİRESİ","BURSA",16257]
[null,null,null,null,null,null,"NİZİP VERGİ DAİRESİ","GAZİANTEP",27202]
[null,null,null,null,null,null,"NURDAĞI MAL MÜDÜRLÜĞÜ","GAZİANTEP",27108]
[null,null,null,null,null,null,"NURHAK MAL MÜDÜRLÜĞÜ","K.MARAŞ",46109]
[null,null,null,null,null,null,"NURUOSMANİYE VERGİ DAİRESİ BAŞKANLIĞI","İSTANBUL",34267]
[null,null,null,null,null,null,"NUSAYBİN VERGİ DAİRESİ","MARDİN",47262]
[null,null,null,null,null,null,"ÖDEMİŞ VERGİ DAİRESİ","İZMİR",35204]
[null,null,null,null,null,null,"OF VERGİ DAİRESİ","TRABZON",61261]
[null,null,null,null,null,null,"OĞUZELİ MAL MÜDÜRLÜĞÜ","GAZİANTEP",27105]
[null,null,null,null,null,null,"OĞUZLAR MAL MÜDÜRLÜĞÜ","ÇORUM",19112]
[null,null,null,null,null,null,"OLTU MAL MÜDÜRLÜĞÜ","ERZURUM",25108]
[null,null,null,null,null,null,"OLUR MAL MÜDÜRLÜĞÜ","ERZURUM",25109]
[null,null,null,null,null,null,"ÖMERLİ MAL MÜDÜRLÜĞÜ","MARDİN",47109]
[null,null,null,null,null,null,"ORHANELİ MAL MÜDÜRLÜĞÜ","BURSA",16108]
[null,null,null,null,null,null,"ORHANGAZİ VERGİ DAİRESİ","BURSA",16206]
[null,null,null,null,null,null,"ORTA MAL MÜDÜRLÜĞÜ","ÇANKIRI",18106]
[null,null,null,null,null,null,"ORTACA MAL MÜDÜRLÜĞÜ","MUĞLA",48110]
[null,null,null,null,null,null,"ORTAKÖY MAL MÜDÜRLÜĞÜ","AKSARAY",68103]
[null,null,null,null,null,null,"ORTAKÖY MAL MÜDÜRLÜĞÜ","ÇORUM",19106]
[null,null,null,null,null,null,"OSMANCIK MAL MÜDÜRLÜĞÜ","ÇORUM",19107]
[null,null,null,null,null,null,"OSMANELİ MAL MÜDÜRLÜĞÜ","BİLECİK",11103]
[null,null,null,null,null,null,"OSMANGAZİ VERGİ DAİRESİ","BURSA",16251]
[null,null,null,null,null,null,"OSMANİYE VERGİ DAİRESİ","OSMANIYE",80201]
[null,null,null,null,null,null,"OSTİM VERGİ DAİRESİ BAŞKANLIĞI","ANKARA",6271]
[null,null,null,null,null,null,"OTLUKBELİ MAL MÜDÜRLÜĞÜ","ERZİNCAN",24108]
[null,null,null,null,null,null,"OVACIK MAL MÜDÜRLÜĞÜ","KARABÜK",78103]
[null,null,null,null,null,null,"OVACIK MAL MÜDÜRLÜĞÜ","TUNCELİ",62105]
[null,null,null,null,null,null,"ÖZALP MAL MÜDÜRLÜĞÜ","VAN",65107]
[null,null,null,null,null,null,"ÖZVATAN MAL MÜDÜRLÜĞÜ","KAYSERİ",38114]
[null,null,null,null,null,null,"PALU MAL MÜDÜRLÜĞÜ","ELAZIĞ",23106]
[null,null,null,null,null,null,"PAMUKKALE VERGİ DAİRESİ","DENİZLİ",20280]
[null,null,null,null,null,null,"PAMUKOVA MAL MÜDÜRLÜĞÜ","SAKARYA",54108]
[null,null,null,null,null,null,"PASİNLER MAL MÜDÜRLÜĞÜ","ERZURUM",25110]
[null,null,null,null,null,null,"PATNOS MAL MÜDÜRLÜĞÜ","AĞRI",4105]
[null,null,null,null,null,null,"PAZAR MAL MÜDÜRLÜĞÜ","TOKAT",60108]
[null,null,null,null,null,null,"PAZAR VERGİ DAİRESİ","RİZE",53262]
[null,null,null,null,null,null,"PAZARCIK VERGİ DAİRESİ","K.MARAŞ",46262]
[null,null,null,null,null,null,"PAZARLAR MAL MÜDÜRLÜĞÜ","KÜTAHYA",43112]
[null,null,null,null,null,null,"PAZARYERİ MAL MÜDÜRLÜĞÜ","BİLECİK",11104]
[null,null,null,null,null,null,"PAZARYOLU MAL MÜDÜRLÜĞÜ","ERZURUM",25116]
[null,null,null,null,null,null,"PEHLİVANKÖY MAL MÜDÜRLÜĞÜ","KIRKLARELİ",39105]
[null,null,null,null,null,null,"PENDİK VERGİ DAİRESİ","İSTANBUL",34263]
[null,null,null,null,null,null,"PERŞEMBE MAL MÜDÜRLÜĞÜ","ORDU",52108]
[null,null,null,null,null,null,"PERTEK MAL MÜDÜRLÜĞÜ","TUNCELİ",62106]
[null,null,null,null,null,null,"PERVARİ MAL MÜDÜRLÜĞÜ","SİİRT",56107]
[null,null,null,null,null,null,"PINARBAŞI MAL MÜDÜRLÜĞÜ","KASTAMONU",37114]
[null,null,null,null,null,null,"PINARBAŞI VERGİ DAİRESİ","KAYSERİ",38202]
[null,null,null,null,null,null,"PINARHİSAR MAL MÜDÜRLÜĞÜ","KIRKLARELİ",39106]
[null,null,null,null,null,null,"PİRAZİZ MAL MÜDÜRLÜĞÜ","GİRESUN",28110]
[null,null,null,null,null,null,"POLATLI VERGİ DAİRESİ","ANKARA",6205]
[null,null,null,null,null,null,"POSOF MAL MÜDÜRLÜĞÜ","ARDAHAN",75105]
[null,null,null,null,null,null,"PÖTÜRGE MAL MÜDÜRLÜĞÜ","MALATYA",44107]
[null,null,null,null,null,null,"POZANTI MAL MÜDÜRLÜĞÜ","ADANA",1109]
[null,null,null,null,null,null,"PÜLÜMÜR MAL MÜDÜRLÜĞÜ","TUNCELİ",62107]
[null,null,null,null,null,null,"RAMİ VERGİ DAİRESİ","İSTANBUL",34241]
[null,null,null,null,null,null,"REFAHİYE MAL MÜDÜRLÜĞÜ","ERZİNCAN",24105]
[null,null,null,null,null,null,"REŞADİYE MAL MÜDÜRLÜĞÜ","TOKAT",60105]
[null,null,null,null,null,null,"REYHANLI VERGİ DAİRESİ","HATAY",31262]
[null,null,null,null,null,null,"RIHTIM VERGİ DAİRESİ","İSTANBUL",34258]
[null,null,null,null,null,null,"ŞABANÖZÜ MAL MÜDÜRLÜĞÜ","ÇANKIRI",18108]
[null,null,null,null,null,null,"SAFRANBOLU VERGİ DAİRESİ","KARABÜK",78260]
[null,null,null,null,null,null,"SAHİL VERGİ DAİRESİ","HATAY",31202]
[null,null,null,null,null,null,"ŞAHİNBEY VERGİ DAİRESİ","GAZİANTEP",27253]
[null,null,null,null,null,null,"SAİMBEYLİ MAL MÜDÜRLÜĞÜ","ADANA",1110]
[null,null,null,null,null,null,"SALİHLİ VERGİ DAİRESİ","MANİSA",45205]
[null,null,null,null,null,null,"SALIPAZARI MAL MÜDÜRLÜĞÜ","SAMSUN",55111]
[null,null,null,null,null,null,"ŞALPAZARI MAL MÜDÜRLÜĞÜ","TRABZON",61112]
[null,null,null,null,null,null,"SAMANDAĞ VERGİ DAİRESİ","HATAY",31263]
[null,null,null,null,null,null,"SAMSAT MAL MÜDÜRLÜĞÜ","ADIYAMAN",2106]
[null,null,null,null,null,null,"SANDIKLI VERGİ DAİRESİ","AFYON",3263]
[null,null,null,null,null,null,"SAPANCA MAL MÜDÜRLÜĞÜ","SAKARYA",54106]
[null,null,null,null,null,null,"ŞAPHANE MAL MÜDÜRLÜĞÜ","KÜTAHYA",43110]
[null,null,null,null,null,null,"SARAY MAL MÜDÜRLÜĞÜ","TEKİRDAĞ",59106]
[null,null,null,null,null,null,"SARAY MAL MÜDÜRLÜĞÜ","VAN",65111]
[null,null,null,null,null,null,"SARAYDÜZÜ MAL MÜDÜRLÜĞÜ","SİNOP",57108]
[null,null,null,null,null,null,"SARAYKENT MAL MÜDÜRLÜĞÜ","YOZGAT",66112]
[null,null,null,null,null,null,"SARAYKÖY VERGİ DAİRESİ","DENİZLİ",20260]
[null,null,null,null,null,null,"SARAYLAR VERGİ DAİRESİ","DENİZLİ",20201]
[null,null,null,null,null,null,"SARAYÖNÜ MAL MÜDÜRLÜĞÜ","KONYA",42115]
[null,null,null,null,null,null,"SARICAKAYA MAL MÜDÜRLÜĞÜ","ESKİŞEHİR",26104]
[null,null,null,null,null,null,"SARIGAZİ VERGİ DAİRESİ","İSTANBUL",34288]
[null,null,null,null,null,null,"SARIGÖL VERGİ DAİRESİ","MANİSA",45206]
[null,null,null,null,null,null,"SARIKAMIŞ MAL MÜDÜRLÜĞÜ","KARS",36111]
[null,null,null,null,null,null,"SARIKAYA MAL MÜDÜRLÜĞÜ","YOZGAT",66105]
[null,null,null,null,null,null,"SARIOĞLAN MAL MÜDÜRLÜĞÜ","KAYSERİ",38106]
[null,null,null,null,null,null,"SARIVELİLER MAL MÜDÜRLÜĞÜ","KARAMAN",70105]
[null,null,null,null,null,null,"SARIYAHŞİ MAL MÜDÜRLÜĞÜ","AKSARAY",68104]
[null,null,null,null,null,null,"SARIYER VERGİ DAİRESİ","İSTANBUL",34283]
[null,null,null,null,null,null,"SARIZ MAL MÜDÜRLÜĞÜ","KAYSERİ",38107]
[null,null,null,null,null,null,"ŞARKİKARAAĞAÇ MAL MÜDÜRLÜĞÜ","ISPARTA",32107]
[null,null,null,null,null,null,"ŞARKIŞLA VERGİ DAİRESİ","SİVAS",58260]
[null,null,null,null,null,null,"ŞARKÖY MAL MÜDÜRLÜĞÜ","TEKİRDAĞ",59107]
[null,null,null,null,null,null,"SARUHANLI VERGİ DAİRESİ","MANİSA",45207]
[null,null,null,null,null,null,"SASON MAL MÜDÜRLÜĞÜ","BATMAN",72105]
[null,null,null,null,null,null,"SAVAŞTEPE MAL MÜDÜRLÜĞÜ","BALIKESİR",10114]
[null,null,null,null,null,null,"ŞAVŞAT MAL MÜDÜRLÜĞÜ","ARTVİN",8105]
[null,null,null,null,null,null,"SAVUR MAL MÜDÜRLÜĞÜ","MARDİN",47110]
[null,null,null,null,null,null,"SEBEN MAL MÜDÜRLÜĞÜ","BOLU",14108]
[null,null,null,null,null,null,"ŞEBİNKARAHİSAR MAL MÜDÜRLÜĞÜ","GİRESUN",28108]
[null,null,null,null,null,null,"ŞEFAATLİ MAL MÜDÜRLÜĞÜ","YOZGAT",66106]
[null,null,null,null,null,null,"SEFERİHİSAR MAL MÜDÜRLÜĞÜ","İZMİR",35114]
[null,null,null,null,null,null,"SEĞMENLER VERGİ DAİRESİ","ANKARA",6262]
[null,null,null,null,null,null,"ŞEHİTKAMİL VERGİ DAİRESİ","GAZİANTEP",27252]
[null,null,null,null,null,null,"ŞEHİTKERİM VERGİ DAİRESİ","MERSİN",33205]
[null,null,null,null,null,null,"ŞEHİTLİK VERGİ DAİRESİ","Ş.URFA",63201]
[null,null,null,null,null,null,"SELÇUK VERGİ DAİRESİ","İZMİR",35209]
[null,null,null,null,null,null,"SELÇUK VERGİ DAİRESİ","KONYA",42251]
[null,null,null,null,null,null,"SELENDİ MAL MÜDÜRLÜĞÜ","MANİSA",45110]
[null,null,null,null,null,null,"SELİM MAL MÜDÜRLÜĞÜ","KARS",36112]
[null,null,null,null,null,null,"ŞEMDİNLİ MAL MÜDÜRLÜĞÜ","HAKKARİ",30103]
[null,null,null,null,null,null,"SENİRKENT MAL MÜDÜRLÜĞÜ","ISPARTA",32105]
[null,null,null,null,null,null,"ŞENKAYA MAL MÜDÜRLÜĞÜ","ERZURUM",25111]
[null,null,null,null,null,null,"ŞENPAZAR MAL MÜDÜRLÜĞÜ","KASTAMONU",37115]
[null,null,null,null,null,null,"ŞEREFLİKOÇHİSAR VERGİ DAİRESİ","ANKARA",6207]
[null,null,null,null,null,null,"SERİK VERGİ DAİRESİ","ANTALYA",7202]
[null,null,null,null,null,null,"SERİNHİSAR MAL MÜDÜRLÜĞÜ","DENİZLİ",20114]
[null,null,null,null,null,null,"SETBAŞI VERGİ DAİRESİ","BURSA",16254]
[null,null,null,null,null,null,"SEYDİLER MAL MÜDÜRLÜĞÜ","KASTAMONU",37119]
[null,null,null,null,null,null,"SEYDİŞEHİR VERGİ DAİRESİ","KONYA",42207]
[null,null,null,null,null,null,"SEYHAN VERGİ DAİRESİ","ADANA",1253]
[null,null,null,null,null,null,"SEYİTGAZİ MAL MÜDÜRLÜĞÜ","ESKİŞEHİR",26105]
[null,null,null,null,null,null,"SİİRT VERGİ DAİRESİ","SİİRT",56260]
[null,null,null,null,null,null,"ŞİLE VERGİ DAİRESİ","İSTANBUL",34205]
[null,null,null,null,null,null,"SİLİFKE VERGİ DAİRESİ","MERSİN",33202]
[null,null,null,null,null,null,"SİLİVRİ VERGİ DAİRESİ","İSTANBUL",34203]
[null,null,null,null,null,null,"SİLOPİ VERGİ DAİRESİ","ŞIRNAK",73262]
[null,null,null,null,null,null,"SİLVAN MAL MÜDÜRLÜĞÜ","DİYARBAKIR",21111]
[null,null,null,null,null,null,"SİMAV VERGİ DAİRESİ","KÜTAHYA",43261]
[null,null,null,null,null,null,"SİNANPAŞA MAL MÜDÜRLÜĞÜ","AFYON",3107]
[null,null,null,null,null,null,"SİNCAN VERGİ DAİRESİ","ANKARA",6273]
[null,null,null,null,null,null,"SİNCANLI MAL MÜDÜRLÜĞÜ","AFYON",3107]
[null,null,null,null,null,null,"SİNCİK MAL MÜDÜRLÜĞÜ","ADIYAMAN",2107]
[null,null,null,null,null,null,"SINDIRGI VERGİ DAİRESİ","BALIKESİR",10268]
[null,null,null,null,null,null,"SİNOP VERGİ DAİRESİ","SİNOP",57260]
[null,null,null,null,null,null,"ŞİRAN MAL MÜDÜRLÜĞÜ","GÜMÜŞHANE",29103]
[null,null,null,null,null,null,"ŞİRİNYER VERGİ DAİRESİ","İZMİR",35260]
[null,null,null,null,null,null,"ŞIRNAK VERGİ DAİRESİ","ŞIRNAK",73260]
[null,null,null,null,null,null,"ŞİRVAN MAL MÜDÜRLÜĞÜ","SİİRT",56110]
[null,null,null,null,null,null,"ŞİŞLİ VERGİ DAİRESİ","İSTANBUL",34276]
[null,null,null,null,null,null,"SİTE VERGİ DAİRESİ","SİVAS",58280]
[null,null,null,null,null,null,"SİVASLI MAL MÜDÜRLÜĞÜ","UŞAK",64105]
[null,null,null,null,null,null,"SİVEREK VERGİ DAİRESİ","Ş.URFA",63260]
[null,null,null,null,null,null,"SİVRİCE MAL MÜDÜRLÜĞÜ","ELAZIĞ",23107]
[null,null,null,null,null,null,"SİVRİHİSAR VERGİ DAİRESİ","ESKİŞEHİR",26202]
[null,null,null,null,null,null,"SÖĞÜT MAL MÜDÜRLÜĞÜ","BİLECİK",11105]
[null,null,null,null,null,null,"SÖKE VERGİ DAİRESİ","AYDIN",9261]
[null,null,null,null,null,null,"SOLHAN MAL MÜDÜRLÜĞÜ","BİNGÖL",12104]
[null,null,null,null,null,null,"SOMA VERGİ DAİRESİ","MANİSA",45208]
[null,null,null,null,null,null,"SORGUN VERGİ DAİRESİ","YOZGAT",66262]
[null,null,null,null,null,null,"SUBURCU VERGİ DAİRESİ","GAZİANTEP",27251]
[null,null,null,null,null,null,"ŞUHUT MAL MÜDÜRLÜĞÜ","AFYON",3109]
[null,null,null,null,null,null,"ŞÜKRÜKANATLI VERGİ DAİRESİ","HATAY",31280]
[null,null,null,null,null,null,"SULAKYURT MAL MÜDÜRLÜĞÜ","KIRIKKALE",71103]
[null,null,null,null,null,null,"SÜLEYMANİYE VERGİ DAİRESİ","İSTANBUL",34243]
[null,null,null,null,null,null,"SÜLEYMANNAZİF VERGİ DAİRESİ","DİYARBAKIR",21281]
[null,null,null,null,null,null,"SÜLEYMANPAŞA VERGİ DAİRESİ","TEKİRDAĞ",59201]
[null,null,null,null,null,null,"SÜLOĞLU MAL MÜDÜRLÜĞÜ","EDİRNE",22108]
[null,null,null,null,null,null,"SULTANAHMET VERGİ DAİRESİ","İSTANBUL",34286]
[null,null,null,null,null,null,"SULTANBEYLİ VERGİ DAİRESİ","İSTANBUL",34242]
[null,null,null,null,null,null,"SULTANDAĞI MAL MÜDÜRLÜĞÜ","AFYON",3108]
[null,null,null,null,null,null,"SULTANHİSAR MAL MÜDÜRLÜĞÜ","AYDIN",9110]
[null,null,null,null,null,null,"SULUOVA VERGİ DAİRESİ","AMASYA",5264]
[null,null,null,null,null,null,"SULUSARAY MAL MÜDÜRLÜĞÜ","TOKAT",60111]
[null,null,null,null,null,null,"SUNBAS MAL MÜDÜRLÜĞÜ","OSMANIYE",80105]
[null,null,null,null,null,null,"SUNGURLU VERGİ DAİRESİ","ÇORUM",19261]
[null,null,null,null,null,null,"SÜRMENE MAL MÜDÜRLÜĞÜ","TRABZON",61107]
[null,null,null,null,null,null,"SURUÇ MAL MÜDÜRLÜĞÜ","Ş.URFA",63107]
[null,null,null,null,null,null,"SUŞEHRİ MAL MÜDÜRLÜĞÜ","SİVAS",58109]
[null,null,null,null,null,null,"SUSURLUK VERGİ DAİRESİ","BALIKESİR",10265]
[null,null,null,null,null,null,"SUSUZ MAL MÜDÜRLÜĞÜ","KARS",36113]
[null,null,null,null,null,null,"SÜTÇÜLER MAL MÜDÜRLÜĞÜ","ISPARTA",32106]
[null,null,null,null,null,null,"TARAKLI MAL MÜDÜRLÜĞÜ","SAKARYA",54109]
[null,null,null,null,null,null,"TAŞBAŞI VERGİ DAİRESİ","ESKİŞEHİR",26255]
[null,null,null,null,null,null,"TAŞITLAR VERGİ DAİRESİ","İZMİR",35262]
[null,null,null,null,null,null,"TAŞKENT MAL MÜDÜRLÜĞÜ","KONYA",42123]
[null,null,null,null,null,null,"TAŞKÖPRÜ VERGİ DAİRESİ","KASTAMONU",37262]
[null,null,null,null,null,null,"TAŞLIÇAY MAL MÜDÜRLÜĞÜ","AĞRI",4106]
[null,null,null,null,null,null,"TAŞOVA VERGİ DAİRESİ","AMASYA",5263]
[null,null,null,null,null,null,"TATVAN VERGİ DAİRESİ","BİTLİS",13261]
[null,null,null,null,null,null,"TAVAS VERGİ DAİRESİ","DENİZLİ",20262]
[null,null,null,null,null,null,"TAVŞANLI VERGİ DAİRESİ","KÜTAHYA",43262]
[null,null,null,null,null,null,"TEFENNİ MAL MÜDÜRLÜĞÜ","BURDUR",15104]
[null,null,null,null,null,null,"TEKKEKÖY MAL MÜDÜRLÜĞÜ","SAMSUN",55112]
[null,null,null,null,null,null,"TEKMAN MAL MÜDÜRLÜĞÜ","ERZURUM",25112]
[null,null,null,null,null,null,"TEPECİK VERGİ DAİRESİ","KOCAELİ",41252]
[null,null,null,null,null,null,"TERCAN MAL MÜDÜRLÜĞÜ","ERZİNCAN",24106]
[null,null,null,null,null,null,"TERME VERGİ DAİRESİ","SAMSUN",55204]
[null,null,null,null,null,null,"TINAZTEPE VERGİ DAİRESİ","AFYON",3201]
[null,null,null,null,null,null,"TİRE VERGİ DAİRESİ","İZMİR",35205]
[null,null,null,null,null,null,"TİREBOLU MAL MÜDÜRLÜĞÜ","GİRESUN",28109]
[null,null,null,null,null,null,"TOKAT VERGİ DAİRESİ","TOKAT",60260]
[null,null,null,null,null,null,"TOMARZA MAL MÜDÜRLÜĞÜ","KAYSERİ",38108]
[null,null,null,null,null,null,"TONYA MAL MÜDÜRLÜĞÜ","TRABZON",61108]
[null,null,null,null,null,null,"TOPÇUMEYDANI VERGİ DAİRESİ","Ş.URFA",63280]
[null,null,null,null,null,null,"TOPRAKKALE MAL MÜDÜRLÜĞÜ","OSMANIYE",80106]
[null,null,null,null,null,null,"TORBALI VERGİ DAİRESİ","İZMİR",35206]
[null,null,null,null,null,null,"TOROS VERGİ DAİRESİ","MERSİN",33255]
[null,null,null,null,null,null,"TORTUM MAL MÜDÜRLÜĞÜ","ERZURUM",25113]
[null,null,null,null,null,null,"TORUL MAL MÜDÜRLÜĞÜ","GÜMÜŞHANE",29104]
[null,null,null,null,null,null,"TOSYA VERGİ DAİRESİ","KASTAMONU",37261]
[null,null,null,null,null,null,"TUFANBEYLİ MAL MÜDÜRLÜĞÜ","ADANA",1111]
[null,null,null,null,null,null,"TUNA VERGİ DAİRESİ","İSTANBUL",34257]
[null,null,null,null,null,null,"TUNCELİ VERGİ DAİRESİ","TUNCELİ",62260]
[null,null,null,null,null,null,"TURGUTLU VERGİ DAİRESİ","MANİSA",45209]
[null,null,null,null,null,null,"TURHAL VERGİ DAİRESİ","TOKAT",60263]
[null,null,null,null,null,null,"TÜRKELİ MAL MÜDÜRLÜĞÜ","SİNOP",57106]
[null,null,null,null,null,null,"TÜRKOĞLU MAL MÜDÜRLÜĞÜ","K.MARAŞ",46106]
[null,null,null,null,null,null,"TUT MAL MÜDÜRLÜĞÜ","ADIYAMAN",2108]
[null,null,null,null,null,null,"TUTAK MAL MÜDÜRLÜĞÜ","AĞRI",4107]
[null,null,null,null,null,null,"TUZLA VERGİ DAİRESİ","İSTANBUL",34245]
[null,null,null,null,null,null,"TUZLUCA MAL MÜDÜRLÜĞÜ","IĞDIR",76103]
[null,null,null,null,null,null,"TUZLUKCU MAL MÜDÜRLÜĞÜ","KONYA",42130]
[null,null,null,null,null,null,"ÜÇKAPILAR VERGİ DAİRESİ","ANTALYA",7251]
[null,null,null,null,null,null,"UĞURLUDAĞ MAL MÜDÜRLÜĞÜ","ÇORUM",19110]
[null,null,null,null,null,null,"ULA MAL MÜDÜRLÜĞÜ","MUĞLA",48108]
[null,null,null,null,null,null,"ULAŞ MAL MÜDÜRLÜĞÜ","SİVAS",58116]
[null,null,null,null,null,null,"ULAŞTIRMA VERGİ DAİRESİ BAŞKANLIĞI","İSTANBUL",34233]
[null,null,null,null,null,null,"ULUBEY MAL MÜDÜRLÜĞÜ","ORDU",52109]
[null,null,null,null,null,null,"ULUBEY MAL MÜDÜRLÜĞÜ","UŞAK",64104]
[null,null,null,null,null,null,"ULUBORLU MAL MÜDÜRLÜĞÜ","ISPARTA",32108]
[null,null,null,null,null,null,"ULUÇINAR VERGİ DAİRESİ","KOCAELİ",41202]
[null,null,null,null,null,null,"ULUDAĞ VERGİ DAİRESİ","BURSA",16255]
[null,null,null,null,null,null,"ULUDERE MAL MÜDÜRLÜĞÜ","ŞIRNAK",73106]
[null,null,null,null,null,null,"ULUKIŞLA MAL MÜDÜRLÜĞÜ","NİĞDE",51105]
[null,null,null,null,null,null,"ULUS MAL MÜDÜRLÜĞÜ","BARTIN",74103]
[null,null,null,null,null,null,"ULUS VERGİ DAİRESİ","ANKARA",6260]
[null,null,null,null,null,null,"ULUSİTE VERGİ DAİRESİ","ANKARA",6263]
[null,null,null,null,null,null,"ÜMRANİYE VERGİ DAİRESİ","İSTANBUL",34252]
[null,null,null,null,null,null,"ÜNYE VERGİ DAİRESİ","ORDU",52262]
[null,null,null,null,null,null,"URAY VERGİ DAİRESİ","MERSİN",33252]
[null,null,null,null,null,null,"ÜRGÜP MAL MÜDÜRLÜĞÜ","NEVŞEHİR",50106]
[null,null,null,null,null,null,"URLA VERGİ DAİRESİ","İZMİR",35208]
[null,null,null,null,null,null,"UŞAK VERGİ DAİRESİ","UŞAK",64260]
[null,null,null,null,null,null,"ÜSKÜDAR VERGİ DAİRESİ","İSTANBUL",34277]
[null,null,null,null,null,null,"ÜZÜMLÜ MAL MÜDÜRLÜĞÜ","ERZİNCAN",24107]
[null,null,null,null,null,null,"UZUNDERE MAL MÜDÜRLÜĞÜ","ERZURUM",25115]
[null,null,null,null,null,null,"UZUNKÖPRÜ VERGİ DAİRESİ","EDİRNE",22262]
[null,null,null,null,null,null,"UZUNMEHMET VERGİ DAİRESİ","ZONGULDAK",67201]
[null,null,null,null,null,null,"VAKFIKEBİR VERGİ DAİRESİ","TRABZON",61262]
[null,null,null,null,null,null,"VAN VERGİ DAİRESİ","VAN",65260]
[null,null,null,null,null,null,"VARTO MAL MÜDÜRLÜĞÜ","MUŞ",49103]
[null,null,null,null,null,null,"VERASET VE HARÇLAR VERGİ DAİRESİ","ANKARA",6252]
[null,null,null,null,null,null,"VEZİRKÖPRÜ MAL MÜDÜRLÜĞÜ","SAMSUN",55108]
[null,null,null,null,null,null,"VİRANŞEHİR VERGİ DAİRESİ","Ş.URFA",63261]
[null,null,null,null,null,null,"VİZE MAL MÜDÜRLÜĞÜ","KIRKLARELİ",39107]
[null,null,null,null,null,null,"Y.GALİP VERGİ DAİRESİ","ANKARA",6269]
[null,null,null,null,null,null,"YAĞLIDERE MAL MÜDÜRLÜĞÜ","GİRESUN",28111]
[null,null,null,null,null,null,"YAHYALI MAL MÜDÜRLÜĞÜ","KAYSERİ",38109]
[null,null,null,null,null,null,"YAKACIK VERGİ DAİRESİ","İSTANBUL",34292]
[null,null,null,null,null,null,"YAKAKENT MAL MÜDÜRLÜĞÜ","SAMSUN",55114]
[null,null,null,null,null,null,"YALIHÜYÜK MAL MÜDÜRLÜĞÜ","KONYA",42131]
[null,null,null,null,null,null,"YALOVA VERGİ DAİRESİ","YALOVA",77201]
[null,null,null,null,null,null,"YALVAÇ VERGİ DAİRESİ","ISPARTA",32262]
[null,null,null,null,null,null,"YAMANLAR VERGİ DAİRESİ","İZMİR",35252]
[null,null,null,null,null,null,"YAPRAKLI MAL MÜDÜRLÜĞÜ","ÇANKIRI",18109]
[null,null,null,null,null,null,"YATAĞAN VERGİ DAİRESİ","MUĞLA",48266]
[null,null,null,null,null,null,"YAVUZELİ MAL MÜDÜRLÜĞÜ","GAZİANTEP",27106]
[null,null,null,null,null,null,"YAYLADAĞ MAL MÜDÜRLÜĞÜ","HATAY",31108]
[null,null,null,null,null,null,"YAYLADERE MAL MÜDÜRLÜĞÜ","BİNGÖL",12106]
[null,null,null,null,null,null,"YAZIHAN MAL MÜDÜRLÜĞÜ","MALATYA",44113]
[null,null,null,null,null,null,"YEDİSU MAL MÜDÜRLÜĞÜ","BİNGÖL",12107]
[null,null,null,null,null,null,"YEDİTEPE VERGİ DAİRESİ","İSTANBUL",34253]
[null,null,null,null,null,null,"YEĞENBEY VERGİ DAİRESİ","ANKARA",6266]
[null,null,null,null,null,null,"YENİ BOSNA VERGİ DAİRESİ","İSTANBUL",34293]
[null,null,null,null,null,null,"YENİÇAĞA MAL MÜDÜRLÜĞÜ","BOLU",14114]
[null,null,null,null,null,null,"YENİCE MAL MÜDÜRLÜĞÜ","Ç.KALE",17111]
[null,null,null,null,null,null,"YENİCE MAL MÜDÜRLÜĞÜ","KARABÜK",78105]
[null,null,null,null,null,null,"YENİFAKILI MAL MÜDÜRLÜĞÜ","YOZGAT",66113]
[null,null,null,null,null,null,"YENİMAHALLE VERGİ DAİRESİ","ANKARA",6255]
[null,null,null,null,null,null,"YENİPAZAR MAL MÜDÜRLÜĞÜ","AYDIN",9111]
[null,null,null,null,null,null,"YENİPAZAR MAL MÜDÜRLÜĞÜ","BİLECİK",11106]
[null,null,null,null,null,null,"YENİŞARBADEMLİ  MAL MÜDÜRLÜĞÜ","ISPARTA",32112]
[null,null,null,null,null,null,"YENİŞEHİR VERGİ DAİRESİ","BURSA",16208]
[null,null,null,null,null,null,"YERKÖY VERGİ DAİRESİ","YOZGAT",66263]
[null,null,null,null,null,null,"YEŞİL VERGİ DAİRESİ","BURSA",16256]
[null,null,null,null,null,null,"YEŞİLÇAY VERGİ DAİRESİ","RİZE",53260]
[null,null,null,null,null,null,"YEŞİLHİSAR MAL MÜDÜRLÜĞÜ","KAYSERİ",38110]
[null,null,null,null,null,null,"YEŞİLLİ MAL MÜDÜRLÜĞÜ","MARDİN",47113]
[null,null,null,null,null,null,"YEŞİLOVA MAL MÜDÜRLÜĞÜ","BURDUR",15105]
[null,null,null,null,null,null,"YEŞİLYURT MAL MÜDÜRLÜĞÜ","MALATYA",44108]
[null,null,null,null,null,null,"YEŞİLYURT MAL MÜDÜRLÜĞÜ","TOKAT",60109]
[null,null,null,null,null,null,"YIĞILCA MAL MÜDÜRLÜĞÜ","DÜZCE",81107]
[null,null,null,null,null,null,"YILDIRIM VERGİ DAİRESİ","BURSA",16252]
[null,null,null,null,null,null,"YILDIRIMBEYAZIT VERGİ DAİRESİ","ANKARA",6261]
[null,null,null,null,null,null,"YILDIZELİ MAL MÜDÜRLÜĞÜ","SİVAS",58110]
[null,null,null,null,null,null,"YOMRA MAL MÜDÜRLÜĞÜ","TRABZON",61110]
[null,null,null,null,null,null,"YOZGAT VERGİ DAİRESİ","YOZGAT",66260]
[null,null,null,null,null,null,"YÜKSEKOVA MAL MÜDÜRLÜĞÜ","HAKKARİ",30105]
[null,null,null,null,null,null,"YUMURTALIK MAL MÜDÜRLÜĞÜ","ADANA",1112]
[null,null,null,null,null,null,"YUNAK MAL MÜDÜRLÜĞÜ","KONYA",42117]
[null,null,null,null,null,null,"YUNUSEMRE VERGİ DAİRESİ","ESKİŞEHİR",26252]
[null,null,null,null,null,null,"YÜREĞİR VERGİ DAİRESİ","ADANA",1252]
[null,null,null,null,null,null,"YUSUFELİ MAL MÜDÜRLÜĞÜ","ARTVİN",8106]
[null,null,null,null,null,null,"ZAFER VERGİ DAİRESİ","SAMSUN",55290]
[null,null,null,null,null,null,"ZARA MAL MÜDÜRLÜĞÜ","SİVAS",58111]
[null,null,null,null,null,null,"ZEYTİNBURNU VERGİ DAİRESİ","İSTANBUL",34280]
[null,null,null,null,null,null,"ZİLE VERGİ DAİRESİ","TOKAT",60264]
[null,null,null,null,null,null,"ZİNCİRLİKUYU VERGİ DAİRESİ","İSTANBUL",34248]
[null,null,null,null,null,null,"ZİYAPAŞA VERGİ DAİRESİ","ADANA",1254]

{"sheet":"ÖncekiDönemMizan","index":2,"n_rows":2,"n_cols":8,"rows_kept":2,"cut":false,"hidden":true,"merged":[]}
[{"$f":"COUNTA(A3:A65536)","v":0},"Önceki dönem mizanındaki verileri aşağıdaki sütunlar ile eşleşecek şekilde ekleyiniz."]
["HESAP KODU",null,null,null,null,null,"BORÇ BAKİYESİ","ALACAK BAKİYESİ"]

{"sheet":"CariDönemMizan","index":3,"n_rows":2,"n_cols":8,"rows_kept":2,"cut":false,"hidden":true,"merged":[]}
[{"$f":"COUNTA(A3:A65536)","v":0},"Cari dönem mizanındaki verileri aşağıdaki sütunlar ile eşleşecek şekilde ekleyiniz."]
["HESAP KODU",null,null,null,null,null,"BORÇ BAKİYESİ","ALACAK BAKİYESİ"]

{"sheet":"GELİR TAB","index":4,"n_rows":74,"n_cols":7,"rows_kept":74,"cut":false,"hidden":true,"merged":[[5,5,5,6],[4,3,4,4],[5,3,5,4],[0,2,0,6],[1,2,1,6],[2,2,2,6],[4,5,4,6]]}
["CariDönemMizan",null,{"$f":"Bilgiler!B1","v":0}]
["ÖncekiDönemMizan",null,"AYRINTILI GELİR TABLOLARI"]
[null,null,{"$f":"\"( \" &Bilgiler!B26 & \" )\"","v":"( TL )"}]
[]
[null,null,null,"Önceki Dönem",null,"Cari Dönem"]
[null,null,null,{"$f":"Bilgiler!B11","v":"31.12.2012"},null,{"$f":"Bilgiler!B12","v":"31.12.2013"}]
[null,"*","A-BRÜT SATIŞLAR",null,{"$f":"SUM(D8:D10)","v":12325328.710000001},null,{"$f":"SUM(F8:F10)","v":12499742.369999999}]
[600,8,"1-Yurtiçi Satışlar",12283581.890000001,null,12301064.08]
[601,8,"2-Yurtdışı Satışlar",0,null,0]
[602,8,"3-Diğer Gelirler",41746.82,null,198678.29]
[null,"*","B-SATIŞ İNDİRİMLERİ(-)",null,{"$f":"SUM(D12:D14)","v":338.98},null,{"$f":"SUM(F12:F14)","v":16996.02}]
[610,7,"1-Satıştan İadeler(-)",0,null,0]
[611,7,"2-Satış Iskontoları(-)",338.98,null,16996.02]
[612,7,"3-Diğer İndirimler(-)",0,null,0]
[null,"*","C-NET SATIŞLAR",null,{"$f":"E7-E11","v":12324989.73},null,{"$f":"G7-G11","v":12482746.35}]
[null,"*","D-SATIŞLARIN MALİYETİ(-)",null,{"$f":"D17+D18+D19+D20","v":8727159.5899999999},null,{"$f":"F17+F18+F19+F20","v":10080462.42}]
[620,7,"1-Satılan Mamuller Maliyeti(-)",0,null,0]
[621,7,"2-Satılan Ticari Mallar Maliyeti(-)",0,null,0]
[622,7,"3-Satılan Hizmet Maliyeti(-)",{"$f":"IF(D62=0,D67-D68,D62)","v":8725040.9499999993},null,{"$f":"IF(F62=0,F67-F68,F62)","v":10080462.42}]
[623,7,"4-Diğer Satışların Maliyeti(-)",2118.64,null,0]
[null,"*","BRÜT SATIŞ KÂRI VEYA ZARARI",null,{"$f":"E15-E16","v":3597830.1400000006},null,{"$f":"G15-G16","v":2402283.9299999997}]
[null,"*","E-FAALİYET GİDERLERİ(-)",null,{"$f":"SUM(D23:D25)","v":313143.58999999997},null,{"$f":"SUM(F23:F25)","v":256369.32}]
[630,7,"1-Araştırma ve Geliştirme Giderleri(-)",{"$f":"IF(D64=0,D69-D70,D64)","v":0},null,{"$f":"IF(F64=0,F69-F70,F64)","v":0}]
[631,7,"2-Pazarlama, Satış ve Dağıtım Giderleri(-)",{"$f":"IF(D65=0,D71-D72,D65)","v":8369.7999999999993},null,{"$f":"IF(F65=0,F71-F72,F65)","v":0}]
[632,7,"3-Genel Yönetim Giderleri(-)",{"$f":"IF(D66=0,D73-D74,D66)","v":304773.78999999998},null,{"$f":"IF(F66=0,F73-F74,F66)","v":256369.32}]
[null,"*","FAALİYET KÂRI VEYA ZARARI",null,{"$f":"E21-E22","v":3284686.5500000007},null,{"$f":"G21-G22","v":2145914.61}]
[null,"*","F-DİĞER FAALİYETLERDEN OLAĞAN GELİR VE KÂRLAR",null,{"$f":"SUM(D28:D37)","v":1199744.92},null,{"$f":"SUM(F28:F37)","v":699370.80999999994}]
[640,8,"1-İştiraklerden Temettü Gelirleri",0,null,0]
[641,8,"2-Bağlı Ortaklıklardan Temettü Gelirleri",0,null,0]
[642,8,"3-Faiz Gelirleri",1170078.99,null,699290.32]
[643,8,"4-Komisyon Gelirleri",0,null,0]
[644,8,"5-Konusu Kalmayan Karşılıklar",0,null,0]
[645,8,"6-Menkul Kıymet Satış Kârları",4164.2700000000004,null,80.489999999999995]
[646,8,"7-Kambiyo Kârları",25501.66,null,0]
[647,8,"8-Reeskont Faiz Gelirleri",0,null,0]
[648,8,"9-Enflasyon Düzeltmesi Kârları",0,null,0]
[649,8,"10-Diğer Olağan Gelir ve Kârlar",0,null,0]
[null,"*","G-DİĞER FAALİYETLERDEN OLAĞAN GİDER VE ZARARLAR(-)",null,{"$f":"SUM(D39:D45)","v":8554.34},null,{"$f":"SUM(F39:F45)","v":1183.92}]
[653,7,"1-Komisyon Giderleri",0,null,0]
[654,7,"2-Karşılık Giderleri",0,null,0]
[655,7,"3-Menkul Kıymet Satış Zararları",0,null,0]
[656,7,"4-Kambiyo Zararları",8554.34,null,1183.92]
[657,7,"5-Reeskont Faiz Giderleri",0,null,0]
[658,7,"6-Enflasyon Düzeltmesi Zararları",0,null,0]
[659,7,"7-Diğer Olağan Gider ve Zararlar",0,null,0]
[null,"*","H-FİNANSMAN GİDERLERİ(-)",null,{"$f":"SUM(D47:D48)","v":0},null,{"$f":"SUM(F47:F48)","v":0}]
[660,7,"1-Kısa Vadeli Borçlanma Giderleri (-)",0,null,0]
[661,7,"2-Uzun Vadeli Borçlanma Giderleri (-)",0,null,0]
[null,"*","OLAĞAN KÂR VEYA ZARAR",null,{"$f":"E26+E27-E38-E46","v":4475877.1300000008},null,{"$f":"G26+G27-G38-G46","v":2844101.5}]
[null,"*","I-OLAĞANDIŞI GELİR VE KÂRLAR",null,{"$f":"SUM(D51:D52)","v":4629061.13},null,{"$f":"SUM(F51:F52)","v":381670.04}]
[671,8,"1-Önceki Dönem Gelir ve Kârları",0,null,0]
[679,8,"2-Diğer Olağandışı Gelir ve Kârlar",4629061.13,null,381670.04]
[null,"*","J-OLAĞANDIŞI GİDER VE ZARARLAR(-)",null,{"$f":"SUM(D54:D56)","v":349212.18},null,{"$f":"SUM(F54:F56)","v":149805.07999999999}]
[680,7,"1-Çalışmayan Kısım Gider ve Zararları(-)",0,null,0]
[681,7,"2-Önceki Dönem Gider ve Zararları(-)",0,null,0]
[689,7,"3-Diğer Olağandışı Gider ve Zararlar(-)",349212.18,null,149805.07999999999]
[null,"*","DÖNEM KÂRI VEYA ZARARI",null,{"$f":"E49+E50-E53","v":8755726.0800000019},null,{"$f":"G49+G50-G53","v":3075966.46}]
[null,"*","K-DÖNEM KÂRI VERGİ VE DİĞER YASAL YÜKÜMLÜLÜK KARŞILIKLARI(-)",null,{"$f":"Bilgiler!B16","v":0},null,{"$f":"Bilgiler!C16","v":0}]
[null,"*","DÖNEM NET KÂRI VEYA ZARARI",null,{"$f":"E57-E58","v":8755726.0800000019},null,{"$f":"G57-G58","v":3075966.46}]
[620,7,"Satılan Mamuller Maliyeti(-)",0,null,0]
[621,7,"Satılan Ticari Mallar Maliyeti(-)",0,null,0]
[622,7,"Satılan Hizmet Maliyeti(-)",8725040.9499999993,null,10080462.42]
[623,7,"Diğer Satışların Maliyeti(-)",2118.64,null,0]
[630,7,"Araştırma ve Geliştirme Giderleri(-)",0,null,0]
[631,7,"Pazarlama, Satış ve Dağıtım Giderleri(-)",8369.7999999999993,null,0]
[632,7,"Genel Yönetim Giderleri(-)",304773.78999999998,null,256369.32]
[740,7,"Satılan Hizmet Maliyeti",0,null,0]
[741,8,"Satılan Hizmet Maliyeti Yansıtma",0,null,0]
[750,7,"Araştırma ve Geliştirme Giderleri",0,null,0]
[751,8,"Araştırma ve Geliştirme Giderleri Yansıtma",0,null,0]
[760,7,"Pazarlama, Satış ve Dağıtım Giderleri",0,null,0]
[761,8,"Pazarlama, Satış ve Dağıtım Giderleri Yansıtma",0,null,0]
[770,7,"Genel Yönetim Giderleri",0,null,0]
[771,8,"Genel Yönetim Giderleri Yansıtma",0,null,0]

{"sheet":"e-gt","index":5,"n_rows":53,"n_cols":6,"rows_kept":53,"cut":false,"hidden":true,"merged":[]}
["BRÜT SATIŞLAR",null,null,null,"BRÜT SATIŞLAR"]
["Yurtiçi Satışlar",{"$f":"IF('GELİR TAB'!D8=0,\"\",'GELİR TAB'!D8)","v":12283581.890000001},{"$f":"IF('GELİR TAB'!F8=0,\"\",'GELİR TAB'!F8)","v":12301064.08},null,"Yurtiçi Satışlar",{"$f":"IF('GELİR TAB'!D8=0,\"\",'GELİR TAB'!D8)","v":12283581.890000001}]
["Yurtdışı Satışlar",{"$f":"IF('GELİR TAB'!D9=0,\"\",'GELİR TAB'!D9)","v":""},{"$f":"IF('GELİR TAB'!F9=0,\"\",'GELİR TAB'!F9)","v":""},null,"Yurtdışı Satışlar",{"$f":"IF('GELİR TAB'!D9=0,\"\",'GELİR TAB'!D9)","v":""}]
["Diğer Gelirler",{"$f":"IF('GELİR TAB'!D10=0,\"\",'GELİR TAB'!D10)","v":41746.82},{"$f":"IF('GELİR TAB'!F10=0,\"\",'GELİR TAB'!F10)","v":198678.29},null,"Diğer Gelirler",{"$f":"IF('GELİR TAB'!D10=0,\"\",'GELİR TAB'!D10)","v":41746.82}]
["SATIŞ İNDİRİMLERİ (-)",{"$f":"IF('GELİR TAB'!D11=0,\"\",'GELİR TAB'!D11)","v":""},{"$f":"IF('GELİR TAB'!F11=0,\"\",'GELİR TAB'!F11)","v":""},null,"SATIŞ İNDİRİMLERİ (-)",{"$f":"IF('GELİR TAB'!D11=0,\"\",'GELİR TAB'!D11)","v":""}]
["Satış İadeleri (-)",{"$f":"IF('GELİR TAB'!D12=0,\"\",'GELİR TAB'!D12)","v":""},{"$f":"IF('GELİR TAB'!F12=0,\"\",'GELİR TAB'!F12)","v":""},null,"Satış İadeleri (-)",{"$f":"IF('GELİR TAB'!D12=0,\"\",'GELİR TAB'!D12)","v":""}]
["Satış Iskontoları (-)",{"$f":"IF('GELİR TAB'!D13=0,\"\",'GELİR TAB'!D13)","v":338.98},{"$f":"IF('GELİR TAB'!F13=0,\"\",'GELİR TAB'!F13)","v":16996.02},null,"Satış Iskontoları (-)",{"$f":"IF('GELİR TAB'!D13=0,\"\",'GELİR TAB'!D13)","v":338.98}]
["Diğer İndirimler (-)",{"$f":"IF('GELİR TAB'!D14=0,\"\",'GELİR TAB'!D14)","v":""},{"$f":"IF('GELİR TAB'!F14=0,\"\",'GELİR TAB'!F14)","v":""},null,"Diğer İndirimler (-)",{"$f":"IF('GELİR TAB'!D14=0,\"\",'GELİR TAB'!D14)","v":""}]
["NET SATIŞLAR",null,null,null,"NET SATIŞLAR"]
["SATIŞLARIN MALİYETİ (-)",null,null,null,"SATIŞLARIN MALİYETİ (-)"]
["Satılan Mamuller Maliyeti (-)",{"$f":"IF('GELİR TAB'!D17=0,\"\",'GELİR TAB'!D17)","v":""},{"$f":"IF('GELİR TAB'!F17=0,\"\",'GELİR TAB'!F17)","v":""},null,"Satılan Mamuller Maliyeti (-)",{"$f":"IF('GELİR TAB'!D17=0,\"\",'GELİR TAB'!D17)","v":""}]
["Satılan Ticari Mallar Maliyeti (-)",{"$f":"IF('GELİR TAB'!D18=0,\"\",'GELİR TAB'!D18)","v":""},{"$f":"IF('GELİR TAB'!F18=0,\"\",'GELİR TAB'!F18)","v":""},null,"Satılan Ticari Mallar Maliyeti (-)",{"$f":"IF('GELİR TAB'!D18=0,\"\",'GELİR TAB'!D18)","v":""}]
["Satılan Hizmet Maliyeti (-)",{"$f":"IF('GELİR TAB'!D19=0,\"\",'GELİR TAB'!D19)","v":8725040.9499999993},{"$f":"IF('GELİR TAB'!F19=0,\"\",'GELİR TAB'!F19)","v":10080462.42},null,"Satılan Hizmet Maliyeti (-)",{"$f":"IF('GELİR TAB'!D19=0,\"\",'GELİR TAB'!D19)","v":8725040.9499999993}]
["Diğer Satışların Maliyeti (-)",{"$f":"IF('GELİR TAB'!D20=0,\"\",'GELİR TAB'!D20)","v":2118.64},{"$f":"IF('GELİR TAB'!F20=0,\"\",'GELİR TAB'!F20)","v":""},null,"Diğer Satışların Maliyeti (-)",{"$f":"IF('GELİR TAB'!D20=0,\"\",'GELİR TAB'!D20)","v":2118.64}]
["BRÜT SATIŞ KARI VEYA ZARARI",null,null,null,"BRÜT SATIŞ KARI VEYA ZARARI"]
["FAALİYET GİDERLERİ (-)",null,null,null,"FAALİYET GİDERLERİ (-)"]
["Araştırma ve Geliştirme Giderleri (-)",{"$f":"IF('GELİR TAB'!D23=0,\"\",'GELİR TAB'!D23)","v":""},{"$f":"IF('GELİR TAB'!F23=0,\"\",'GELİR TAB'!F23)","v":""},null,"Araştırma ve Geliştirme Giderleri (-)",{"$f":"IF('GELİR TAB'!D23=0,\"\",'GELİR TAB'!D23)","v":""}]
["Pazarlama, Satış ve Dağıtım Giderleri (-)",{"$f":"IF('GELİR TAB'!D24=0,\"\",'GELİR TAB'!D24)","v":8369.7999999999993},{"$f":"IF('GELİR TAB'!F24=0,\"\",'GELİR TAB'!F24)","v":""},null,"Pazarlama, Satış ve Dağıtım Giderleri (-)",{"$f":"IF('GELİR TAB'!D24=0,\"\",'GELİR TAB'!D24)","v":8369.7999999999993}]
["Genel Yönetim Giderleri (-)",{"$f":"IF('GELİR TAB'!D25=0,\"\",'GELİR TAB'!D25)","v":304773.78999999998},{"$f":"IF('GELİR TAB'!F25=0,\"\",'GELİR TAB'!F25)","v":256369.32},null,"Genel Yönetim Giderleri (-)",{"$f":"IF('GELİR TAB'!D25=0,\"\",'GELİR TAB'!D25)","v":304773.78999999998}]
["FAALİYET KARI VEYA ZARARI",null,null,null,"FAALİYET KARI VEYA ZARARI"]
["DİĞER FAALİYETLERDEN OLAĞAN GELİR VE KARLAR",null,null,null,"DİĞER FAALİYETLERDEN OLAĞAN GELİR VE KARLAR"]
["İştiraklerden Temettü Gelirleri",{"$f":"IF('GELİR TAB'!D28=0,\"\",'GELİR TAB'!D28)","v":""},{"$f":"IF('GELİR TAB'!F28=0,\"\",'GELİR TAB'!F28)","v":""},null,"İştiraklerden Temettü Gelirleri",{"$f":"IF('GELİR TAB'!D28=0,\"\",'GELİR TAB'!D28)","v":""}]
["Bağlı Ortaklıklardan Temettü Geliri",{"$f":"IF('GELİR TAB'!D29=0,\"\",'GELİR TAB'!D29)","v":""},{"$f":"IF('GELİR TAB'!F29=0,\"\",'GELİR TAB'!F29)","v":""},null,"Bağlı Ortaklıklardan Temettü Geliri",{"$f":"IF('GELİR TAB'!D29=0,\"\",'GELİR TAB'!D29)","v":""}]
["Faiz Geliri",{"$f":"IF('GELİR TAB'!D30=0,\"\",'GELİR TAB'!D30)","v":1170078.99},{"$f":"IF('GELİR TAB'!F30=0,\"\",'GELİR TAB'!F30)","v":699290.32},null,"Faiz Geliri",{"$f":"IF('GELİR TAB'!D30=0,\"\",'GELİR TAB'!D30)","v":1170078.99}]
["Komisyon Gelirleri",{"$f":"IF('GELİR TAB'!D31=0,\"\",'GELİR TAB'!D31)","v":""},{"$f":"IF('GELİR TAB'!F31=0,\"\",'GELİR TAB'!F31)","v":""},null,"Komisyon Gelirleri",{"$f":"IF('GELİR TAB'!D31=0,\"\",'GELİR TAB'!D31)","v":""}]
["Konusu Kalmayan Karşılıklar",{"$f":"IF('GELİR TAB'!D32=0,\"\",'GELİR TAB'!D32)","v":""},{"$f":"IF('GELİR TAB'!F32=0,\"\",'GELİR TAB'!F32)","v":""},null,"Konusu Kalmayan Karşılıklar",{"$f":"IF('GELİR TAB'!D32=0,\"\",'GELİR TAB'!D32)","v":""}]
["Menkul Kıymetler Satış Karları",{"$f":"IF('GELİR TAB'!D33=0,\"\",'GELİR TAB'!D33)","v":4164.2700000000004},{"$f":"IF('GELİR TAB'!F33=0,\"\",'GELİR TAB'!F33)","v":80.489999999999995},null,"Menkul Kıymetler Satış Karları",{"$f":"IF('GELİR TAB'!D33=0,\"\",'GELİR TAB'!D33)","v":4164.2700000000004}]
["Kambiyo Karları",{"$f":"IF('GELİR TAB'!D34=0,\"\",'GELİR TAB'!D34)","v":25501.66},{"$f":"IF('GELİR TAB'!F34=0,\"\",'GELİR TAB'!F34)","v":""},null,"Kambiyo Karları",{"$f":"IF('GELİR TAB'!D34=0,\"\",'GELİR TAB'!D34)","v":25501.66}]
["Reeskont Faiz Gelirleri",{"$f":"IF('GELİR TAB'!D35=0,\"\",'GELİR TAB'!D35)","v":""},{"$f":"IF('GELİR TAB'!F35=0,\"\",'GELİR TAB'!F35)","v":""},null,"Reeskont Faiz Gelirleri",{"$f":"IF('GELİR TAB'!D35=0,\"\",'GELİR TAB'!D35)","v":""}]
["Enflasyon Düzeltmesi Karları",{"$f":"IF('GELİR TAB'!D36=0,\"\",'GELİR TAB'!D36)","v":""},{"$f":"IF('GELİR TAB'!F36=0,\"\",'GELİR TAB'!F36)","v":""},null,"Enflasyon Düzeltmesi Karları",{"$f":"IF('GELİR TAB'!D36=0,\"\",'GELİR TAB'!D36)","v":""}]
["Faaliyetle İlgili Diğer Olağan Gelirler ve Karlar",{"$f":"IF('GELİR TAB'!D37=0,\"\",'GELİR TAB'!D37)","v":""},{"$f":"IF('GELİR TAB'!F37=0,\"\",'GELİR TAB'!F37)","v":""},null,"Faaliyetle İlgili Diğer Olağan Gelirler ve Karlar",{"$f":"IF('GELİR TAB'!D37=0,\"\",'GELİR TAB'!D37)","v":""}]
["DİĞER FAALİYETLERDEN OLAĞAN GİDER VE ZARARLARI (-)",null,null,null,"DİĞER FAALİYETLERDEN OLAĞAN GİDER VE ZARARLARI (-)"]
["Komisyon Giderleri (-)",{"$f":"IF('GELİR TAB'!D39=0,\"\",'GELİR TAB'!D39)","v":""},{"$f":"IF('GELİR TAB'!F39=0,\"\",'GELİR TAB'!F39)","v":""},null,"Komisyon Giderleri (-)",{"$f":"IF('GELİR TAB'!D39=0,\"\",'GELİR TAB'!D39)","v":""}]
["Karşılık Giderleri (-)",{"$f":"IF('GELİR TAB'!D40=0,\"\",'GELİR TAB'!D40)","v":""},{"$f":"IF('GELİR TAB'!F40=0,\"\",'GELİR TAB'!F40)","v":""},null,"Karşılık Giderleri (-)",{"$f":"IF('GELİR TAB'!D40=0,\"\",'GELİR TAB'!D40)","v":""}]
["Menkul Kıymet Satış Zararları (-)",{"$f":"IF('GELİR TAB'!D41=0,\"\",'GELİR TAB'!D41)","v":""},{"$f":"IF('GELİR TAB'!F41=0,\"\",'GELİR TAB'!F41)","v":""},null,"Menkul Kıymet Satış Zararları (-)",{"$f":"IF('GELİR TAB'!D41=0,\"\",'GELİR TAB'!D41)","v":""}]
["Kambiyo Zararları (-)",{"$f":"IF('GELİR TAB'!D42=0,\"\",'GELİR TAB'!D42)","v":8554.34},{"$f":"IF('GELİR TAB'!F42=0,\"\",'GELİR TAB'!F42)","v":1183.92},null,"Kambiyo Zararları (-)",{"$f":"IF('GELİR TAB'!D42=0,\"\",'GELİR TAB'!D42)","v":8554.34}]
["Reeskont Faiz Giderleri (-)",{"$f":"IF('GELİR TAB'!D43=0,\"\",'GELİR TAB'!D43)","v":""},{"$f":"IF('GELİR TAB'!F43=0,\"\",'GELİR TAB'!F43)","v":""},null,"Reeskont Faiz Giderleri (-)",{"$f":"IF('GELİR TAB'!D43=0,\"\",'GELİR TAB'!D43)","v":""}]
["Enflasyon Düzeltmesi Zararları (-)",{"$f":"IF('GELİR TAB'!D44=0,\"\",'GELİR TAB'!D44)","v":""},{"$f":"IF('GELİR TAB'!F44=0,\"\",'GELİR TAB'!F44)","v":""},null,"Enflasyon Düzeltmesi Zararları (-)",{"$f":"IF('GELİR TAB'!D44=0,\"\",'GELİR TAB'!D44)","v":""}]
["Faaliyetle İlgili Diğer Olağan Gider ve Zararlar (-)",{"$f":"IF('GELİR TAB'!D45=0,\"\",'GELİR TAB'!D45)","v":""},{"$f":"IF('GELİR TAB'!F45=0,\"\",'GELİR TAB'!F45)","v":""},null,"Faaliyetle İlgili Diğer Olağan Gider ve Zararlar (-)",{"$f":"IF('GELİR TAB'!D45=0,\"\",'GELİR TAB'!D45)","v":""}]
["FİNANSMAN GİDERLERİ (-)",null,null,null,"FİNANSMAN GİDERLERİ (-)"]
["Kısa Vadeli Borçlanma Giderleri (-)",{"$f":"IF('GELİR TAB'!D47=0,\"\",'GELİR TAB'!D47)","v":""},{"$f":"IF('GELİR TAB'!F47=0,\"\",'GELİR TAB'!F47)","v":""},null,"Kısa Vadeli Borçlanma Giderleri (-)",{"$f":"IF('GELİR TAB'!D47=0,\"\",'GELİR TAB'!D47)","v":""}]
["Uzun Vadeli Borçlanma Giderleri (-)",{"$f":"IF('GELİR TAB'!D48=0,\"\",'GELİR TAB'!D48)","v":""},{"$f":"IF('GELİR TAB'!F48=0,\"\",'GELİR TAB'!F48)","v":""},null,"Uzun Vadeli Borçlanma Giderleri (-)",{"$f":"IF('GELİR TAB'!D48=0,\"\",'GELİR TAB'!D48)","v":""}]
["OLAĞAN KAR VEYA ZARAR",null,null,null,"OLAĞAN KAR VEYA ZARAR"]
["OLAĞANDIŞI GELİR VE KARLAR",null,null,null,"OLAĞANDIŞI GELİR VE KARLAR"]
["Önceki Dönem Gelir ve Karları",{"$f":"IF('GELİR TAB'!D51=0,\"\",'GELİR TAB'!D51)","v":""},{"$f":"IF('GELİR TAB'!F51=0,\"\",'GELİR TAB'!F51)","v":""},null,"Önceki Dönem Gelir ve Karları",{"$f":"IF('GELİR TAB'!D51=0,\"\",'GELİR TAB'!D51)","v":""}]
["Diğer Olağandışı Gelir ve Karlar",{"$f":"IF('GELİR TAB'!D52=0,\"\",'GELİR TAB'!D52)","v":4629061.13},{"$f":"IF('GELİR TAB'!F52=0,\"\",'GELİR TAB'!F52)","v":381670.04},null,"Diğer Olağandışı Gelir ve Karlar",{"$f":"IF('GELİR TAB'!D52=0,\"\",'GELİR TAB'!D52)","v":4629061.13}]
["OLAĞAN DIŞI GİDER VE ZARARLAR (-)",null,null,null,"OLAĞAN DIŞI GİDER VE ZARARLAR (-)"]
["Çalışmayan Kısım Gider ve Zararları (-)",{"$f":"IF('GELİR TAB'!D54=0,\"\",'GELİR TAB'!D54)","v":""},{"$f":"IF('GELİR TAB'!F54=0,\"\",'GELİR TAB'!F54)","v":""},null,"Çalışmayan Kısım Gider ve Zararları (-)",{"$f":"IF('GELİR TAB'!D54=0,\"\",'GELİR TAB'!D54)","v":""}]
["Önceki Dönem Gider ve Zararları (-)",{"$f":"IF('GELİR TAB'!D55=0,\"\",'GELİR TAB'!D55)","v":""},{"$f":"IF('GELİR TAB'!F55=0,\"\",'GELİR TAB'!F55)","v":""},null,"Önceki Dönem Gider ve Zararları (-)",{"$f":"IF('GELİR TAB'!D55=0,\"\",'GELİR TAB'!D55)","v":""}]
["Diğer Olağandışı Gider ve Zararlar (-)",{"$f":"IF('GELİR TAB'!D56=0,\"\",'GELİR TAB'!D56)","v":349212.18},{"$f":"IF('GELİR TAB'!F56=0,\"\",'GELİR TAB'!F56)","v":149805.07999999999},null,"Diğer Olağandışı Gider ve Zararlar (-)",{"$f":"IF('GELİR TAB'!D56=0,\"\",'GELİR TAB'!D56)","v":349212.18}]
["DÖNEM KARI VEYA ZARARI",null,null,null,"DÖNEM KARI VEYA ZARARI"]
["DÖNEM KARI  VERGİ VE DİĞER YASAL YÜK. KRŞ. (-)",{"$f":"IF('GELİR TAB'!D58=0,\"\",'GELİR TAB'!D58)","v":""},{"$f":"IF('GELİR TAB'!F58=0,\"\",'GELİR TAB'!F58)","v":""},null,"DÖNEM KARI  VERGİ VE DİĞER YASAL YÜK. KRŞ. (-)",{"$f":"IF('GELİR TAB'!D58=0,\"\",'GELİR TAB'!D58)","v":""}]
["DÖNEM NET KARI VEYA ZARARI",null,null,null,"DÖNEM NET KARI VEYA ZARARI"]

{"sheet":"BİLANÇO-A","index":6,"n_rows":138,"n_cols":7,"rows_kept":138,"cut":false,"hidden":true,"merged":[[5,3,5,4],[5,5,5,6],[0,2,0,6],[1,2,1,6],[2,2,2,6],[4,5,4,6],[4,3,4,4]]}
["CariDönemMizan",null,{"$f":"Bilgiler!B1","v":0}]
["ÖncekiDönemMizan",null,"AYRINTILI BİLANÇOLARI"]
[null,null,{"$f":"\"( \" &Bilgiler!B26 & \" )\"","v":"( TL )"}]
[]
[null,null,"AKTİF(VARLIKLAR)","Önceki Dönem",null,"Cari Dönem"]
[null,null,null,{"$f":"Bilgiler!B11","v":"31.12.2012"},null,{"$f":"Bilgiler!B12","v":"31.12.2013"}]
[null,"*","DÖNEN VARLIKLAR TOPLAMI",null,{"$f":"E60+E57+E46+E38+E29+E20+E14+E8","v":10074475.379999999},null,{"$f":"G60+G57+G38+G46+G29+G20+G14+G8","v":5147147.1499999994}]
[null,"*","A-Hazır Değerler",null,{"$f":"SUM(D9:D11)-D12+D13","v":3479214.67},null,{"$f":"F9+F10+F11-F12+F13","v":139328.56}]
[100,7,"1-Kasa",17443.64,null,44719.35]
[101,7,"2-Alınan Çekler",0,null,0]
[102,7,"3-Bankalar",3461771.03,null,94609.21]
[103,8,"4-Verilen Çekler ve Ödeme Emirleri (-)",0,null,0]
[108,7,"5-Diğer Hazır Değerler",0,null,0]
[null,"*","B-Menkul Kıymetler",null,{"$f":"SUM(D15:D18)-D19","v":0},null,{"$f":"SUM(F15:F18)-F19","v":0}]
[110,7,"1-Hisse Senetleri",0,null,0]
[111,7,"2-Özel Kesim Tahvil, Senet ve Bonoları",0,null,0]
[112,7,"3-Kamu Kesimi Tahvil, Senet ve Bonoları",0,null,0]
[118,7,"4-Diğer Menkul Kıymetler",0,null,0]
[119,8,"5-Menkul Kıymetler Değer Düşüklüğü Karşılığı (-)",0,null,0]
[null,"*","C-Ticari Alacaklar",null,{"$f":"D21+D22-D23-D24+D25+D26+D27-D28","v":6269610.0700000003},null,{"$f":"F21+F22-F23-F24+F25+F26+F27-F28","v":4945965.0599999996}]
[120,7,"1-Alıcılar",2693583.5,null,995299.07]
[121,7,"2-Alacak Senetleri",0,null,53236.15]
[122,8,"3-Alacak Senetleri Reeskontu (-)",0,null,0]
[124,8,"4-Kazanılmamış Finansal Kiralama Faiz Gelirleri (-)",0,null,0]
[126,7,"5-Verilen Depozito ve Teminatlar",113.89,null,49]
[127,7,"6-Diğer Ticari Alacaklar",3545912.68,null,3897380.84]
[128,7,"7-Şüpheli Ticari Alacaklar ",30000,null,0]
[129,8,"8-Şüpheli Ticari Alacaklar Karşılığı (-)",0,null,0]
[null,"*","D-Diğer Alacaklar",null,{"$f":"D30+D31+D32+D33+D34-D35+D36-D37","v":0},null,{"$f":"F30+F31+F32+F33+F34-F35+F36-F37","v":0}]
[131,7,"1-Ortaklardan Alacaklar",0,null,0]
[132,7,"2-İştiraklerden Alacaklar",0,null,0]
[133,7,"3-Bağlı Ortaklıklardan Alacaklar",0,null,0]
[135,7,"4-Personelden Alacaklar",0,null,0]
[136,7,"5-Diğer Çeşitli Alacaklar",0,null,0]
[137,8,"6-Diğer Alacak Senetleri Reeskontu (-)",0,null,0]
[138,7,"7-Şüpheli Diğer Alacaklar",0,null,0]
[139,8,"8-Şüpheli Diğer Alacaklar Karşılığı (-)",0,null,0]
[null,"*","E-Stoklar",null,{"$f":"D39+D40+D41+D42+D43-D44+D45","v":4631.26},null,{"$f":"F39+F40+F41+F42+F43-F44+F45","v":338.58}]
[150,7,"1-İlk Madde ve Malzeme",0,null,0]
[151,7,"2-Yarı Mamuller-Üretim",0,null,0]
[152,7,"3-Mamuller",0,null,0]
[153,7,"4-Ticari Mallar",0,null,0]
[157,7,"5-Diğer Stoklar",4631.26,null,338.58]
[158,8,"6-Stok Değer Düşüklüğü Karşılığı (-)",0,null,0]
[159,7,"7-Verilen Sipariş Avansları",0,null,0]
[null,"*","F-Yıllara Yaygın İnşaat ve Onarım Maliyetleri",null,{"$f":"D47+D55+D56","v":0},null,{"$f":"F47+F55+F56","v":0}]
[170,7,"1-Yıllara Yaygın İnşaat ve Onarım Maliyetleri",0,null,0]
[171,7,"1-Yıllara Yaygın İnşaat ve Onarım Maliyetleri"]
[172,7,"1-Yıllara Yaygın İnşaat ve Onarım Maliyetleri"]
[173,7,"1-Yıllara Yaygın İnşaat ve Onarım Maliyetleri"]
[174,7,"1-Yıllara Yaygın İnşaat ve Onarım Maliyetleri"]
[175,7,"1-Yıllara Yaygın İnşaat ve Onarım Maliyetleri"]
[176,7,"1-Yıllara Yaygın İnşaat ve Onarım Maliyetleri"]
[177,7,"1-Yıllara Yaygın İnşaat ve Onarım Maliyetleri"]
[178,7,"2-Yıllara Yaygın İnşaat Enflasyon Düzeltme Hesabı",0,null,0]
[179,7,"3-Taşeronlara Verilen Avanslar",0,null,0]
[null,"*","G-Gelecek Aylara Ait Giderler ve Gelir Tahakkukları",null,{"$f":"SUM(D58:D59)","v":55382.71},null,{"$f":"SUM(F58:F59)","v":37136.339999999997}]
[180,7,"1-Gelecek Aylara Ait Giderler",38572.86,null,37136.339999999997]
[181,7,"2-Gelir Tahakkukları",16809.849999999999,null,0]
[null,"*","H-Diğer Dönen Varlıklar",null,{"$f":"SUM(D61:D68)-D69","v":265636.67000000004},null,{"$f":"SUM(F61:F68)-F69","v":24378.61}]
[190,7,"1-Devreden KDV",0,null,0]
[191,7,"2-İndirilecek KDV",0,null,0]
[192,7,"3-Diğer KDV",0,null,0]
[193,7,"4-Peşin Ödenen Vergiler ve Fonlar",229386.67,null,24378.61]
[195,7,"5-İş Avansları",0,null,0]
[196,7,"6-Personel Avansları",36250,null,0]
[197,7,"7-Sayım ve Tesellüm Noksanları",0,null,0]
[198,7,"8-Diğer Çeşitli Dönen Varlıklar",0,null,0]
[199,8,"9-Diğer Dönen Varlıklar Karşılığı (-)",0,null,0]
[null,"*","DURAN VARLIKLAR TOPLAMI",null,{"$f":"E126+E123+E117+E108+E97+E86+E78+E71","v":79245.490000004822},null,{"$f":"G126+G123+G117+G108+G97+G86+G78+G71","v":23494.809999999947}]
[null,"*","A-Ticari Alacaklar",null,{"$f":"D72+D73+-D74-D75+D76-D77","v":0},null,{"$f":"F72+F73+-F74-F75+F76-F77","v":0}]
[220,7,"1-Alıcılar",0,null,0]
[221,7,"2-Alacak Senetleri",0,null,0]
[222,8,"3-Alacak Senetleri Reeskontu (-)",0,null,0]
[224,8,"4-Kazanılmamış Finansal Kiralama Faiz Gelirleri (-)",0,null,0]
[226,7,"5-Verilen Depozito ve Teminatlar",0,null,0]
[229,8,"6-Şüpheli Alacaklar Karşılığı (-)",0,null,0]
[null,"*","B-Diğer Alacaklar",null,{"$f":"D79+D80+D81+D82+D83-D84-D85","v":0},null,{"$f":"F79+F80+F81+F82+F83-F84-F85","v":0}]
[231,7,"1-Ortaklardan Alacaklar",0,null,0]
[232,7,"2-İştiraklerden Alacaklar",0,null,0]
[233,7,"3-Bağlı Ortaklıklardan Alacaklar",0,null,0]
[235,7,"4-Personelden Alacaklar",0,null,0]
[236,7,"5-Diğer Çeşitli Alacaklar",0,null,0]
[237,8,"6-Diğer Alacak Senetleri Reeskontu (-)",0,null,0]
[239,8,"7-Şüpheli Diğer Alacaklar Karşılığı (-)",0,null,0]
[null,"*","C-Mali Duran Varlıklar",null,{"$f":"D87-D88+D89-D90-D91+D92-D93-D94+D95-D96","v":0},null,{"$f":"F87-F88+F89-F90-F91+F92-F93-F94+F95-F96","v":0}]
[240,7,"1-Bağlı Menkul Kıymetler",0,null,0]
[241,8,"2-Bağlı Menkul Kıymetler Değer Düşüklüğü karşılığı (-)",0,null,0]
[242,7,"3-İştirakler",0,null,0]
[243,8,"4-İştiraklere Sermaye Taahhütleri (-)",0,null,0]
[244,8,"5-İştirakler Sermaye Payları değer Düşüklüğü Karşılığı (-)",0,null,0]
[245,7,"6-Bağlı Ortaklıklar",0,null,0]
[246,8,"7-Bağlı Ortaklıklara Sermaye Taahhütleri (-)",0,null,0]
[247,8,"8-Bağlı Ortaklıklara Sermaye Payları Değ.Düş.Karşılığı (-)",0,null,0]
[248,7,"9-Diğer Mali Duran Varlıklar",0,null,0]
[249,8,"10-Diğer Mali Duran Varlıklar Karşılığı (-)",0,null,0]
[null,"*","D-Maddi Duran Varlıklar",null,{"$f":"SUM(D98:D104)-D105+D106+D107","v":75627.139999999898},null,{"$f":"SUM(F98:F104)-F105+F106+F107","v":20349.069999999949}]
[250,7,"1-Arazi ve Arsalar",0,null,0]
[251,7,"2-Yer altı ve Yer Üstü Düzenleri",0,null,0]
[252,7,"3-Binalar",0,null,0]
[253,7,"4-Tesis, Makine ve Cihazlar",0,null,0]
[254,7,"5-Taşıtlar",1217541.8799999999,null,446482.36]
[255,7,"6-Demirbaşlar",374015.85,null,374250.51]
[256,7,"7-Diğer Maddi Duran Varlıklar",0,null,0]
[257,8,"8-Birikmiş Amortismanlar (-)",1515930.59,null,800383.8]
[258,7,"9-Yapılmakta Olan Yatırımlar",0,null,0]
[259,7,"10-Verilen Avanslar",0,null,0]
[null,"*","E-Maddi Olmayan Duran Varlıklar",null,{"$f":"SUM(D109:D114)-D115+D116","v":1998.0300000049174},null,{"$f":"SUM(F109:F114)-F115+F116","v":1525.42}]
[260,7,"1-Haklar",1004.53,null,1004.53]
[261,7,"2-Şerefiye",0,null,0]
[262,7,"3-Kuruluş ve Örgütlenme Giderleri",0,null,0]
[263,7,"4-Araştırma ve Geliştirme Giderleri",0,null,0]
[264,7,"5-Özel Maliyetler",22008804.370000001,null,0]
[267,7,"6-Diğer Maddi Olmayan Duran Varlıklar",7447.37,null,7447.37]
[268,8,"7-Birikmiş Amortismanlar (-)",22015258.239999998,null,6926.48]
[269,7,"8-Verilen Avanslar",0,null,0]
[null,"*","F-Özel Tükenmeye Tabi Varlıklar",null,{"$f":"SUM(D118:D120)-D121+D122","v":0},null,{"$f":"SUM(F118:F120)-F121+F122","v":0}]
[271,7,"1-Arama Giderleri",0,null,0]
[272,7,"2-Hazırlık ve Geliştirme Giderleri",0,null,0]
[277,7,"3-Diğer Özel Tükenmeye Tabi Varlıklar",0,null,0]
[278,8,"4-Birikmiş Tükenme Payları (-)",0,null,0]
[279,7,"5-Verilen Avanslar",0,null,0]
[null,"*","G-Gelecek Yıllara Ait Giderler ve Gelir Tahakkukları",null,{"$f":"SUM(D124:D125)","v":1620.32},null,{"$f":"SUM(F124:F125)","v":1620.32}]
[280,7,"1-Gelecek Yıllara Ait Giderler",1620.32,null,1620.32]
[281,7,"2-Gelir Tahakkukları",0,null,0]
[null,"*","H-Diğer Duran Varlıklar ",null,{"$f":"SUM(D127:D132)-SUM(D133:D134)","v":0},null,{"$f":"SUM(F127:F132)-SUM(F133:F134)","v":0}]
[291,7,"1-Gelecek Yıllarda İndirilecek KDV",0,null,0]
[292,7,"2-Diğer KDV",0,null,0]
[293,7,"3-Gelecek Yıllar İhtiyacı Stoklar",0,null,0]
[294,7,"4-Elden Çıkarılacak Stoklar ve Maddi Duran Varlıklar",0,null,0]
[295,7,"5-Peşin Ödenen Vergiler ve Fonlar",0,null,0]
[297,7,"6-Diğer Çeşitli Duran Varlıklar",0,null,0]
[298,8,"7-Stok Değer Düşüklüğü Karşılığı (-)",0,null,0]
[299,8,"8-Birikmiş Amortismanlar (-)",0,null,0]
[null,"*","AKTİF (VARLIKLAR) TOPLAMI",null,{"$f":"E70+E7","v":10153720.870000003},null,{"$f":"ROUND(G70+G7,2)","v":5170641.96}]
[]
[null,null,null,null,{"$f":"IF(ROUND('BİLANÇO-A'!E135,2)=ROUND('BİLANÇO-P'!E117,2),\"OK\", \"FARK VAR!\")","v":"OK"},null,{"$f":"IF(ROUND('BİLANÇO-A'!G135,2)=ROUND('BİLANÇO-P'!G117,2),\"OK\", \"FARK VAR!\")","v":"OK"}]
[null,null,null,null,{"$f":"ROUND(E135-'BİLANÇO-P'!E117,2)","v":0},null,{"$f":"ROUND(G135-'BİLANÇO-P'!G117,2)","v":0}]

{"sheet":"Vergi","index":7,"n_rows":149,"n_cols":7,"rows_kept":149,"cut":false,"hidden":true,"merged":[[0,0,1,6],[52,0,52,6],[58,0,58,6],[113,0,113,6],[44,0,44,6],[45,0,45,6],[46,0,46,6],[47,0,47,6],[37,0,37,6],[41,0,41,6],[42,0,42,6],[43,0,43,6],[35,0,35,6],[36,0,36,6],[29,0,29,6],[30,0,30,6],[142,3,142,4],[48,0,48,6],[49,0,49,6],[50,0,50,6],[51,0,51,6],[33,0,33,6],[34,0,34,6],[31,0,31,6],[32,0,32,6],[11,0,11,6],[25,0,25,6],[26,0,26,6],[27,0,27,6]]}
["Bu sayfa daha sonra ilgili formüller eklenerek çalışır hale getirilecektir."]
[]
["TİCARİ KAR",null,null,null,null,null,"TİCARİ KAR (GELİR TABLOSUNDAN)"]
["I","KANUNEN KABUL EDİLMEYEN GİDERLER    "]
["1• Önceki Dönem Menkul reeskontları "]
["2• VUK hükümlerine uygun olmayan Senetsiz Alacaklar için gider yazılan reeskontlar"]
["3• VUK hükümlerine uygun olmayan Alınan çeklere ait gider yazılan reeskontlar"]
["4• Bu Dönem Gider Yazılan Kıdem tazminatı karşılığı"]
["5• Tahakkuk esasına aykırı olarak bu döneme dahil edilmiş  belgeye dayandırılmayan giderler"]
["6• Dönemsellik ilkesine aykırı olarak bu döneme dahil edilmiş belgeye dayandırılmayan tahakkuk ettirilen giderler"]
["7• İhracat Teslimlerine için yurtdışında yapılan Belgesi alınamayan Giderler (Binde 5 oranını aşmaması gerekir.)"]
["8• Dönem içinde gider yazılan Bağış ve Yardımlar toplamı"]
["9• Özel İşlem Vergisi (Cep telefonları ve sabit telefonlara ait)"]
["10• Şirket Personelinin veya ortaklarının Vefat, Doğum ilişkin Çiçek bedelleri Başsağlığı ilan bedelleri(KDV'leri ile Dahil)"]
["11• Resmi dairelere ödenen ve gider yazılan  cezalar ,trafikcezaları,vergi cezaları,gecikme zammı ve faizleri vs."]
["12• Motorlu Taşıtlar Vergisi (Motorlu Taşıt Vergisi Kanunu'nun 14. maddesine göre)"]
["13• VUK hükümlerine uygun olmayan gider yazılan diğer karşılıklar"]
["14• Ödenmemiş SSK primleri ve işsizlik primleri     (Aralık ayı haricinde ilgili yıl  içinde ödenmeyen)"]
["15• VUK'nun 333,339 nolu tebliğlerine aykırı olarak faydalı ömür süresi  uzatılmasından kaynaklanan ve bu dönemde gider yazılan amortisman"]
["16• Şirket yetkililerin suçlarından dolayı ödenen tazminatlar"]
["17• İşle ilgili olmayan(Mukavelenameye veya ilama veya kanun emrine istinaden) ödenen tazminatlar,ziyan ve zararlar"]
["18• VUK'nun 333-339 no.lu tebliğdeki oranların üzerinde olan fazladan  ayrılan amortisman tutarı"]
["19•Kiralama yoluyla edinilen veya işletme aktifinde kayıtlı olann yat,kotra,tekne,uçak ve helikopter  gibi  taşıtlarından"]
["       İŞLETMENİN ESAS FAALİYET KONUSU İLE İLGİLİ OLMAYANLARIN GİDERLERİ  İLE AMORTİSMANLARI"]
["21• Verilen Bahşişler"]
["22• Şirket tarafından personeline verilen iftar yemekleri(Şirket bünyesinde veya dışında)"]
["23• Geçmiş döneme ait Giderler (Yıla)Belgeli veya belgeye dayanmayan harcamalar"]
["24•Şirket personeli için  sportif tesislerine ödenen (Belgeli veya belgesiz)giderler"]
["25.Şirket tarafından kurulan futbol takımın kuruluş ve idamesi için yapılan giderler"]
["26•Şirket ortakları adına ödenen Bireysel emeklilik ve Bağkur ödemeleri,SAĞLIK SİGORTASI ÖDEMELERİ"]
["27•Şirket Personelinin veya ortaklarına ait cenaze masrafları"]
["28•Şirket Personelinin veya ortaklarına ilişkin dinlenme tesislerine ödenen (Kamp yeri,turistik amaclı otel harcamaları)"]
["29•Şirketçe  karşılıksız olarak öğrencilere verilen burs ödemeleri"]
["30•Şirket Ortaklarına ait evlerin elektrik,su,telefon,internet,doğalgaz vs harcamalarına ilişkin ödemeler"]
["31•Hatır seneti veya Çek karşılığında bankalardan sağlanan kredilerin ortakların şahsi işlerinde kullanılması halinde  ÖDENEN"]
["    FAİZLER,KOMİSYONLAR,VERGİLER,HARÇLAR"]
["32• Şirketin faaliyeti  gereği olmayan idarecilerin insiyati gereği üye olunan derneklere yapılan ödemeler"]
["33•Şirket (kasa,Banka,emtia ,mamul)mevcutlarına  ilişkin sayım ve tesellüm noksanlıklarından dolayı gider yazılan  kısmı"]
["34•Şirket ortaklarının şahıslarına ait araçların benzin,taşıt vergisi,bakım onarım,sigorta vs giderleri"]
["35•Enflasyon Düzeltmelerinin ilgili hesaptan (sermayeye ilavesi haricinde)başka hesaba virman edilen kısmı"]
["36•Arka arkaya beş yıllık sürede mahsup edilemeyen  gider yazılan zarar kısmı"]
["37•İşletmeden çalınanveya zarara uğratılan  ve sigorta şirketince karşılanmayan stok,iktisadi kımetlere ait gider yazılan tutarlar"]
["38•Şirket ortaklarının işletmedeki özsermayeleri üzerinden  ödenen ve hesaplanan faizler"]
["39Şirket ortaklarının işletmeden çektiği mevcutlar(Paralar,emtialar,mamuller,iktisadi kıymetlerin tutarları)"]
["40•Takdir Komisyonunca takdir edilmeyen ve emsal bedellerine göre değeri düşen (Doğal afetler,çürümek"]
["       kırılmak,paslanmak gibi haller)iktisadi kıymetler ve emtia ve mamuller malların bedelleri  (VUK 274-278.maddeleri)"]
["41•Değeri Düşen malların Katma Değer Vergileri"]
["42•Sahte belge veya muhteviyatı itibariyle  yanıltıcı belge olarak tesbit edilen harcamaların tutarları ve KDV"]
["43•Vergi Usul Kanunun 323.maddesine uygun olmayan şüpheli alacaklar karşılığı giderleri"]
["44•Tahsiline  imkan kalmayan alacaklardan,Kazai bir hükme veya kanaat verici bir vesikaya dayandırılmayan"]
["    gider yazılan  değersiz alacaklar tutarı (Vazgeçilen Alacaklar ve Değersiz Alacaklar)"]
["45•Ticari bir yarar amacı gütmeyen kefaletten dolayı  ödenen paralar veya bunlar için ayrılan karşılıklar "]
["46•VERGİ MEVZUATINA GÖRE ŞİRKET FAALİYETİYLE İLGİLİ OLMAYAN YUKARIDA BAHSEDİLMEYEN ÖDEME VE GİDERLER "]
["47.İşyerinin dekarosyonu için alınan resim tablosu için yapılan harcamalar"]
["48.Şirket genel kurulu toplantısı dolayısıyla,kurula iştirak eden üyelerin kişisel masraflar "]
["49.AYNI SEKTÖRDE FAALİYET GÖSTERMEYEN devir alınan kurumun geçmiş yıl zararlarıKVK'nun14/a.maddesi"]
["50.Aynı sektörde faaliyet gösteren devir alınan şirketin devir tarihi itibariyle aktif toplamını geçen 5yıllık geçmiş yıl zararları"]
["51.Satılan iktisadi kıymetin yenilenmesi için yönetim kurulunca karar alınan ve pasifte 3yıl bekletildiği halde kullanılmayan karlar"]
["52.Emtialarda oluşan zarar nedeniyle sigorta şirketinden zararın tamamının alınamayarak gider yazılan zarar tutarı VUK-330.md"]
["53. Çalınan veya zayi olunan emtilar, sabit kıymetler v.s kıymetlerin alımında yüklenilen ve  indirim konusu yapılan KDV'nin gider yazılan kısım"]
["54. dönem sonlarında tesbit olunan oluşan sayım noksanlıkları ilişkin yüklenilen yani indirim konusu yapılan KDV'nin Kdv"]
["beyannamesine ilave edilmeyerek gider yazılan indirilecek KDV tutarı"]
["55. Yukarıda sınıflara girmeyen KANUNEN KABUL EDİLMEYEN GİDERLER"]
["56. hisse senetlerinin alış bedeli ile değerlemesi yerine ağırlıklı ortalama GVK'NUN GECİCİ 67. maddesi"]
["57."]
[]
["II.","ZARAR OLSA DAHİ İNDİRİLECEK İSTİSNALAR    "]
["A-İNDİRİMLER"]
["1• İŞTİRAK KAZAÇLARI (K.V.K. 8/1) (veri)"]
["2.HİSSE SENETLERİNİN  AĞIRLIKLI ORTALAMA İLE DEĞERLEMESİ  NEDENİYLE ALIŞ BEDELİNİN ÜSTÜNDEKİ KISMININ GELİR YAZILAN TUTARI"]
["3.YATIRIM ORTAKLIĞI  FALİYET GELİRLERİ"]
["3• Rüçhan hakkı satışı ve emisyon primi kazancı (K.V.K. 8/5) (veri)"]
["4• Eğitim ve öğretim kurumları ile rehabilitasyon merkezlerinin işletmesinden elde edilen kazanç"]
["5• Kurumlar vergisi kanununun geçici 28/(a) maddesinde düzenlenen istisna kazanç"]
["6• Yurtdışı iştirak ve şube kazançları (KVK geçici madde 33)"]
["7• Serbest bölgelerde elde edilen kazançlar"]
["8• 4325 sayılı Kanun kapsamında istisna kazançlar"]
["9• Teknoloji gelişme bölgelerinde elde edilen kazançlar"]
["9• AR-GE İndirimi (KVK Madde 14/6)"]
["10• Diğer indirimler ve istisnalar"]
["B- DİĞER İNDİRİMLER"]
[" ~ 2004 yılında gelir yazılan devlet tahvili reeskontunun iptali "]
[" ~ Verilen vadeli çekler reeskont faiz geliri"]
[" ~ Konusu kalmayan karşılıklar"]
[" ~ Önceki dönem alınan vadeli çek reeskontları"]
[" ~ Gelecek dönem vergilendirilecek teşvik primleri"]
[" ~ Bilanço karına dahil edilmiş SERBEST BÖLGE gelirleri"]
[" ~ Sermaye Blokajındaki Bağlı Menkul Kıymetin gelir tahakkuku"]
[" ~ Mali açıdan gerekli olmayan gelir tahakkukları"]
[" ~ Provizyon-komisyon gelirleri                   "]
[" ~ GVK'nun 42 nci maddesi kapsamındaki işlerin tamamlanması sonucu hesapla-"]
["    nan ve gelir tablosundaki kar veya zarara dahil edilmiş bulunan KAZANÇ tutarı"]
[" ~ GVK'nun 42 nci maddesi kapsamında olup kazancı yukarıda diğer indirim "]
["    olarak dikkate alınmış işlerle ilgili kanunen kabul edilmeyen giderler. "]
["    (Bu giderler yukarıda KKEG'e dahil edimişse burada dikkate alınır.)"]
[]
["III.","MAHSUP EDİLECEK GEÇMİŞ YIL ZARARLARI"]
["A","ŞİRKETİN,  KURUMLAR VERGİSİ BEYANNAMESİNDE GÖSTERİLEN MALİ ZARARLAR "]
[null,null,null,null,null,null,2002]
[null,null,null,null,null,null,2003]
[null,null,null,null,null,null,2004]
[null,null,null,null,null,null,2005]
[null,null,null,null,null,null,2006]
["B-ŞİRKETÇE AYNI SEKTÖRDE FAALİYET GÖSTEREN DEVİR ALINAN ŞİRKETİN DEVİR TARİHİ İTİBARİYLE AKTİF TOPLAMINI "]
[" GEÇMEYEN  MÜNFESİH OLAN ŞİRKETÇE KURUMLAR VERGİSİ BEYANNAMELERİNDE GÖSTERİLEN 5 YILLIK GEÇMİŞ YIL ZARAR "]
[null,null,null,null,null,null,{"$f":"+G99","v":2002}]
[null,null,null,null,null,null,{"$f":"+G100","v":2003}]
[null,null,null,null,null,null,{"$f":"+G101","v":2004}]
[null,null,null,null,null,null,{"$f":"+G102","v":2005}]
[null,null,null,null,null,null,{"$f":"+G103","v":2006}]
[]
["IV-","RİSTURNLAR "," ","(Kooperatiflere mahsustur.)"]
["V-","YATIRIM İNDİRİMİ "]
["   A)- YATIRIM TEŞVİK  BELGELİ  HARCAMALAR"]
["              1)- 24.4.2003 tarihinden önceki yatırım teşvik belgelerine istinaden yapılan harcamalar"]
["• Önceki yıldan devreden indirimin fiili harcamadan kaynaklanan kısmının  "]
["  endekslenmiş tutarı (Devir tutarının \"1+ilan edilen yeniden "]
["  değerleme oranı\"  ile çarpılması sonucu bulunur.Endekslenmesi mümkün olmayanlar için "]
["bu artırım yapılmaz.)"]
["• Önceki yıldan devreden indirimin öngörülen harcamalardan kaynaklanan kısmı "]
["  (Endekslenmeden dikkate alınır.)"]
["• Geçici vergi dönemi içinde yapılan fiili harcamadan kaynaklanan "]
["  indirim (Buraya  öngörülen harcamayı aşan fiili harcamalardan"]
["  kaynaklanan indirim tutarı yazılır.)"]
[]
["B)-YATIRIM TEŞVİK BELGESİZ HARCAMALAR"]
[]
["c)","DİĞER İNDİRİMLER"]
[null,"BAĞIŞ VE YARDIMLAR"]
["d)","ÖNCEKİ DÖNEMLERDE HESAPLANAN GEÇİCİ VERGİ"]
["9 ."]
["Buraya ilk geçici vergi döneminde \"0\", ikinci geçici vergi döneminde ilk dönemde hesaplanan"]
["geçici vergi, üçüncü ve dördüncü dönemlerde ise önceki dönemlerde TAHAKKUK ETMİŞ OLAN"]
["geçici vergi tutarlarından EN BÜYÜĞÜ yazılır. (Ödenmiş olması gerekmez.)","MAHSUP EDİLECEK TEVKİFAT TUTARI"]
["10 ."]
["Buraya bu geçici vergi döneminde uğranılanlar ile önceki geçici vergi dönemlerinde mahsup "]
["edilemeyip bu döneme devreden gelir vergisi stopajlarının toplamı (fon payı hariç) yazılır. "]
["(G.V.K. 42. Madde kapsamındaki stopajlar hariç)"]
[]
["KURUMLAR VERGİSİ MATRAHI"]
[]
["KURUMLAR VERGİSİ HESABI"]
[null,null,0.2,{"$f":"A144*30/100","v":0},null,null,{"$f":"I140*20/100","v":0}]
[]
["TOPLAM ÖDENEN GECİCİ VERGİ TUTARI"]
[]
[]
[]
["ÖDENECEK KURUMLAR VERGİSİ TUTARI"]

{"sheet":"e-aktif","index":8,"n_rows":122,"n_cols":3,"rows_kept":122,"cut":false,"hidden":true,"merged":[]}
["I. DÖNEN VARLIKLAR"]
["A-Hazır Değerler"]
["1-Kasa",{"$f":"IF('BİLANÇO-A'!D9=0,\"\",'BİLANÇO-A'!D9)","v":17443.64},{"$f":"IF('BİLANÇO-A'!F9=0,\"\",'BİLANÇO-A'!F9)","v":44719.35}]
["2-Alınan Çekler",{"$f":"IF('BİLANÇO-A'!D10=0,\"\",'BİLANÇO-A'!D10)","v":""},{"$f":"IF('BİLANÇO-A'!F10=0,\"\",'BİLANÇO-A'!F10)","v":""}]
["3-Bankalar",{"$f":"IF('BİLANÇO-A'!D11=0,\"\",'BİLANÇO-A'!D11)","v":3461771.03},{"$f":"IF('BİLANÇO-A'!F11=0,\"\",'BİLANÇO-A'!F11)","v":94609.21}]
["4-Verilen Çekler ve Ödeme Emirleri (-)",{"$f":"IF('BİLANÇO-A'!D12=0,\"\",'BİLANÇO-A'!D12)","v":""},{"$f":"IF('BİLANÇO-A'!F12=0,\"\",'BİLANÇO-A'!F12)","v":""}]
["5-Diğer Hazır Değerler",{"$f":"IF('BİLANÇO-A'!D13=0,\"\",'BİLANÇO-A'!D13)","v":""},{"$f":"IF('BİLANÇO-A'!F13=0,\"\",'BİLANÇO-A'!F13)","v":""}]
["B-Menkul Kıymetler"]
["1-Hisse Senetleri",{"$f":"IF('BİLANÇO-A'!D15=0,\"\",'BİLANÇO-A'!D15)","v":""},{"$f":"IF('BİLANÇO-A'!F15=0,\"\",'BİLANÇO-A'!F15)","v":""}]
["2-Özel Kesim Tahvil, Senet ve Bonoları",{"$f":"IF('BİLANÇO-A'!D16=0,\"\",'BİLANÇO-A'!D16)","v":""},{"$f":"IF('BİLANÇO-A'!F16=0,\"\",'BİLANÇO-A'!F16)","v":""}]
["3-Kamu Kesimi Tahvil, Senet ve Bonoları",{"$f":"IF('BİLANÇO-A'!D17=0,\"\",'BİLANÇO-A'!D17)","v":""},{"$f":"IF('BİLANÇO-A'!F17=0,\"\",'BİLANÇO-A'!F17)","v":""}]
["4-Diğer Menkul Kıymetler",{"$f":"IF('BİLANÇO-A'!D18=0,\"\",'BİLANÇO-A'!D18)","v":""},{"$f":"IF('BİLANÇO-A'!F18=0,\"\",'BİLANÇO-A'!F18)","v":""}]
["5-Menkul Kıymetler Değer Düşüklüğü Karşılığı (-)",{"$f":"IF('BİLANÇO-A'!D19=0,\"\",'BİLANÇO-A'!D19)","v":""},{"$f":"IF('BİLANÇO-A'!F19=0,\"\",'BİLANÇO-A'!F19)","v":""}]
["C-Ticari Alacaklar"]
["1-Alıcılar",{"$f":"IF('BİLANÇO-A'!D21=0,\"\",'BİLANÇO-A'!D21)","v":2693583.5},{"$f":"IF('BİLANÇO-A'!F21=0,\"\",'BİLANÇO-A'!F21)","v":995299.07}]
["2-Alacak Senetleri",{"$f":"IF('BİLANÇO-A'!D22=0,\"\",'BİLANÇO-A'!D22)","v":""},{"$f":"IF('BİLANÇO-A'!F22=0,\"\",'BİLANÇO-A'!F22)","v":53236.15}]
["3-Alacak Senetleri Reeskontu (-)",{"$f":"IF('BİLANÇO-A'!D23=0,\"\",'BİLANÇO-A'!D23)","v":""},{"$f":"IF('BİLANÇO-A'!F23=0,\"\",'BİLANÇO-A'!F23)","v":""}]
["4-Kazanılmamış Finansal Kiralama Faiz Gelirleri (-)",{"$f":"IF('BİLANÇO-A'!D24=0,\"\",'BİLANÇO-A'!D24)","v":""},{"$f":"IF('BİLANÇO-A'!F24=0,\"\",'BİLANÇO-A'!F24)","v":""}]
["5-Verilen Depozito ve Teminatlar",{"$f":"IF('BİLANÇO-A'!D25=0,\"\",'BİLANÇO-A'!D25)","v":113.89},{"$f":"IF('BİLANÇO-A'!F25=0,\"\",'BİLANÇO-A'!F25)","v":49}]
["6-Diğer Ticari Alacaklar",{"$f":"IF('BİLANÇO-A'!D26=0,\"\",'BİLANÇO-A'!D26)","v":3545912.68},{"$f":"IF('BİLANÇO-A'!F26=0,\"\",'BİLANÇO-A'!F26)","v":3897380.84}]
["7-Şüpheli Ticari Alacaklar ",{"$f":"IF('BİLANÇO-A'!D27=0,\"\",'BİLANÇO-A'!D27)","v":30000},{"$f":"IF('BİLANÇO-A'!F27=0,\"\",'BİLANÇO-A'!F27)","v":""}]
["8-Şüpheli Ticari Alacaklar Karşılığı (-)",{"$f":"IF('BİLANÇO-A'!D28=0,\"\",'BİLANÇO-A'!D28)","v":""},{"$f":"IF('BİLANÇO-A'!F28=0,\"\",'BİLANÇO-A'!F28)","v":""}]
["D-Diğer Alacaklar"]
["1-Ortaklardan Alacaklar",{"$f":"IF('BİLANÇO-A'!D30=0,\"\",'BİLANÇO-A'!D30)","v":""},{"$f":"IF('BİLANÇO-A'!F30=0,\"\",'BİLANÇO-A'!F30)","v":""}]
["2-İştiraklerden Alacaklar",{"$f":"IF('BİLANÇO-A'!D31=0,\"\",'BİLANÇO-A'!D31)","v":""},{"$f":"IF('BİLANÇO-A'!F31=0,\"\",'BİLANÇO-A'!F31)","v":""}]
["3-Bağlı Ortaklıklardan Alacaklar",{"$f":"IF('BİLANÇO-A'!D32=0,\"\",'BİLANÇO-A'!D32)","v":""},{"$f":"IF('BİLANÇO-A'!F32=0,\"\",'BİLANÇO-A'!F32)","v":""}]
["4-Personelden Alacaklar",{"$f":"IF('BİLANÇO-A'!D33=0,\"\",'BİLANÇO-A'!D33)","v":""},{"$f":"IF('BİLANÇO-A'!F33=0,\"\",'BİLANÇO-A'!F33)","v":""}]
["5-Diğer Çeşitli Alacaklar",{"$f":"IF('BİLANÇO-A'!D34=0,\"\",'BİLANÇO-A'!D34)","v":""},{"$f":"IF('BİLANÇO-A'!F34=0,\"\",'BİLANÇO-A'!F34)","v":""}]
["6-Diğer Alacak Senetleri Reeskontu (-)",{"$f":"IF('BİLANÇO-A'!D35=0,\"\",'BİLANÇO-A'!D35)","v":""},{"$f":"IF('BİLANÇO-A'!F35=0,\"\",'BİLANÇO-A'!F35)","v":""}]
["7-Şüpheli Diğer Alacaklar",{"$f":"IF('BİLANÇO-A'!D36=0,\"\",'BİLANÇO-A'!D36)","v":""},{"$f":"IF('BİLANÇO-A'!F36=0,\"\",'BİLANÇO-A'!F36)","v":""}]
["8-Şüpheli Diğer Alacaklar Karşılığı (-)",{"$f":"IF('BİLANÇO-A'!D37=0,\"\",'BİLANÇO-A'!D37)","v":""},{"$f":"IF('BİLANÇO-A'!F37=0,\"\",'BİLANÇO-A'!F37)","v":""}]
["E-Stoklar"]
["1-İlk Madde ve Malzeme",{"$f":"IF('BİLANÇO-A'!D39=0,\"\",'BİLANÇO-A'!D39)","v":""},{"$f":"IF('BİLANÇO-A'!F39=0,\"\",'BİLANÇO-A'!F39)","v":""}]
["2-Yarı Mamuller-Üretim",{"$f":"IF('BİLANÇO-A'!D40=0,\"\",'BİLANÇO-A'!D40)","v":""},{"$f":"IF('BİLANÇO-A'!F40=0,\"\",'BİLANÇO-A'!F40)","v":""}]
["3-Mamuller",{"$f":"IF('BİLANÇO-A'!D41=0,\"\",'BİLANÇO-A'!D41)","v":""},{"$f":"IF('BİLANÇO-A'!F41=0,\"\",'BİLANÇO-A'!F41)","v":""}]
["4-Ticari Mallar",{"$f":"IF('BİLANÇO-A'!D42=0,\"\",'BİLANÇO-A'!D42)","v":""},{"$f":"IF('BİLANÇO-A'!F42=0,\"\",'BİLANÇO-A'!F42)","v":""}]
["5-Diğer Stoklar",{"$f":"IF('BİLANÇO-A'!D43=0,\"\",'BİLANÇO-A'!D43)","v":4631.26},{"$f":"IF('BİLANÇO-A'!F43=0,\"\",'BİLANÇO-A'!F43)","v":338.58}]
["6-Stok Değer Düşüklüğü Karşılığı (-)",{"$f":"IF('BİLANÇO-A'!D44=0,\"\",'BİLANÇO-A'!D44)","v":""},{"$f":"IF('BİLANÇO-A'!F44=0,\"\",'BİLANÇO-A'!F44)","v":""}]
["7-Verilen Sipariş Avansları",{"$f":"IF('BİLANÇO-A'!D45=0,\"\",'BİLANÇO-A'!D45)","v":""},{"$f":"IF('BİLANÇO-A'!F45=0,\"\",'BİLANÇO-A'!F45)","v":""}]
["F-Yıllara Yaygın İnşaat ve Onarım Maliyetleri"]
["1-Yıllara Yaygın İnşaat ve Onarım Maliyetleri",{"$f":"IF('BİLANÇO-A'!D47=0,\"\",'BİLANÇO-A'!D47)","v":""},{"$f":"IF('BİLANÇO-A'!F47=0,\"\",'BİLANÇO-A'!F47)","v":""}]
["2-Yıllara Yaygın İnşaat Enflasyon Düzeltme Hesabı",{"$f":"IF('BİLANÇO-A'!D55=0,\"\",'BİLANÇO-A'!D55)","v":""},{"$f":"IF('BİLANÇO-A'!F55=0,\"\",'BİLANÇO-A'!F55)","v":""}]
["3-Taşeronlara Verilen Avanslar",{"$f":"IF('BİLANÇO-A'!D56=0,\"\",'BİLANÇO-A'!D56)","v":""},{"$f":"IF('BİLANÇO-A'!F56=0,\"\",'BİLANÇO-A'!F56)","v":""}]
["G-Gelecek Aylara Ait Giderler ve Gelir Tahakkukları"]
["1-Gelecek Aylara Ait Giderler",{"$f":"IF('BİLANÇO-A'!D58=0,\"\",'BİLANÇO-A'!D58)","v":38572.86},{"$f":"IF('BİLANÇO-A'!F58=0,\"\",'BİLANÇO-A'!F58)","v":37136.339999999997}]
["2-Gelir Tahakkukları",{"$f":"IF('BİLANÇO-A'!D59=0,\"\",'BİLANÇO-A'!D59)","v":16809.849999999999},{"$f":"IF('BİLANÇO-A'!F59=0,\"\",'BİLANÇO-A'!F59)","v":""}]
["H-Diğer Dönen Varlıklar"]
["1-Devreden KDV",{"$f":"IF('BİLANÇO-A'!D61=0,\"\",'BİLANÇO-A'!D61)","v":""},{"$f":"IF('BİLANÇO-A'!F61=0,\"\",'BİLANÇO-A'!F61)","v":""}]
["2-İndirilecek KDV",{"$f":"IF('BİLANÇO-A'!D62=0,\"\",'BİLANÇO-A'!D62)","v":""},{"$f":"IF('BİLANÇO-A'!F62=0,\"\",'BİLANÇO-A'!F62)","v":""}]
["3-Diğer KDV",{"$f":"IF('BİLANÇO-A'!D63=0,\"\",'BİLANÇO-A'!D63)","v":""},{"$f":"IF('BİLANÇO-A'!F63=0,\"\",'BİLANÇO-A'!F63)","v":""}]
["4-Peşin Ödenen Vergiler ve Fonlar",{"$f":"IF('BİLANÇO-A'!D64=0,\"\",'BİLANÇO-A'!D64)","v":229386.67},{"$f":"IF('BİLANÇO-A'!F64=0,\"\",'BİLANÇO-A'!F64)","v":24378.61}]
["5-İş Avansları",{"$f":"IF('BİLANÇO-A'!D65=0,\"\",'BİLANÇO-A'!D65)","v":""},{"$f":"IF('BİLANÇO-A'!F65=0,\"\",'BİLANÇO-A'!F65)","v":""}]
["6-Personel Avansları",{"$f":"IF('BİLANÇO-A'!D66=0,\"\",'BİLANÇO-A'!D66)","v":36250},{"$f":"IF('BİLANÇO-A'!F66=0,\"\",'BİLANÇO-A'!F66)","v":""}]
["7-Sayım ve Tesellüm Noksanları",{"$f":"IF('BİLANÇO-A'!D67=0,\"\",'BİLANÇO-A'!D67)","v":""},{"$f":"IF('BİLANÇO-A'!F67=0,\"\",'BİLANÇO-A'!F67)","v":""}]
["8-Diğer Çeşitli Dönen Varlıklar",{"$f":"IF('BİLANÇO-A'!D68=0,\"\",'BİLANÇO-A'!D68)","v":""},{"$f":"IF('BİLANÇO-A'!F68=0,\"\",'BİLANÇO-A'!F68)","v":""}]
["9-Diğer Dönen Varlıklar Karşılığı (-)",{"$f":"IF('BİLANÇO-A'!D69=0,\"\",'BİLANÇO-A'!D69)","v":""},{"$f":"IF('BİLANÇO-A'!F69=0,\"\",'BİLANÇO-A'!F69)","v":""}]
["II. DURAN VARLIKLAR"]
["A-Ticari Alacaklar"]
["1-Alıcılar",{"$f":"IF('BİLANÇO-A'!D72=0,\"\",'BİLANÇO-A'!D72)","v":""},{"$f":"IF('BİLANÇO-A'!F72=0,\"\",'BİLANÇO-A'!F72)","v":""}]
["2-Alacak Senetleri",{"$f":"IF('BİLANÇO-A'!D73=0,\"\",'BİLANÇO-A'!D73)","v":""},{"$f":"IF('BİLANÇO-A'!F73=0,\"\",'BİLANÇO-A'!F73)","v":""}]
["3-Alacak Senetleri Reeskontu (-)",{"$f":"IF('BİLANÇO-A'!D74=0,\"\",'BİLANÇO-A'!D74)","v":""},{"$f":"IF('BİLANÇO-A'!F74=0,\"\",'BİLANÇO-A'!F74)","v":""}]
["4-Kazanılmamış Finansal Kiralama Faiz Gelirleri (-)",{"$f":"IF('BİLANÇO-A'!D75=0,\"\",'BİLANÇO-A'!D75)","v":""},{"$f":"IF('BİLANÇO-A'!F75=0,\"\",'BİLANÇO-A'!F75)","v":""}]
["5-Verilen Depozito ve Teminatlar",{"$f":"IF('BİLANÇO-A'!D76=0,\"\",'BİLANÇO-A'!D76)","v":""},{"$f":"IF('BİLANÇO-A'!F76=0,\"\",'BİLANÇO-A'!F76)","v":""}]
["6-Şüpheli Alacaklar Karşılığı (-)",{"$f":"IF('BİLANÇO-A'!D77=0,\"\",'BİLANÇO-A'!D77)","v":""},{"$f":"IF('BİLANÇO-A'!F77=0,\"\",'BİLANÇO-A'!F77)","v":""}]
["B-Diğer Alacaklar"]
["1-Ortaklardan Alacaklar",{"$f":"IF('BİLANÇO-A'!D79=0,\"\",'BİLANÇO-A'!D79)","v":""},{"$f":"IF('BİLANÇO-A'!F79=0,\"\",'BİLANÇO-A'!F79)","v":""}]
["2-İştiraklerden Alacaklar",{"$f":"IF('BİLANÇO-A'!D80=0,\"\",'BİLANÇO-A'!D80)","v":""},{"$f":"IF('BİLANÇO-A'!F80=0,\"\",'BİLANÇO-A'!F80)","v":""}]
["3-Bağlı Ortaklıklardan Alacaklar",{"$f":"IF('BİLANÇO-A'!D81=0,\"\",'BİLANÇO-A'!D81)","v":""},{"$f":"IF('BİLANÇO-A'!F81=0,\"\",'BİLANÇO-A'!F81)","v":""}]
["4-Personelden Alacaklar",{"$f":"IF('BİLANÇO-A'!D82=0,\"\",'BİLANÇO-A'!D82)","v":""},{"$f":"IF('BİLANÇO-A'!F82=0,\"\",'BİLANÇO-A'!F82)","v":""}]
["5-Diğer Çeşitli Alacaklar",{"$f":"IF('BİLANÇO-A'!D83=0,\"\",'BİLANÇO-A'!D83)","v":""},{"$f":"IF('BİLANÇO-A'!F83=0,\"\",'BİLANÇO-A'!F83)","v":""}]
["6-Diğer Alacak Senetleri Reeskontu (-)",{"$f":"IF('BİLANÇO-A'!D84=0,\"\",'BİLANÇO-A'!D84)","v":""},{"$f":"IF('BİLANÇO-A'!F84=0,\"\",'BİLANÇO-A'!F84)","v":""}]
["7-Şüpheli Diğer Alacaklar Karşılığı (-)",{"$f":"IF('BİLANÇO-A'!D85=0,\"\",'BİLANÇO-A'!D85)","v":""},{"$f":"IF('BİLANÇO-A'!F85=0,\"\",'BİLANÇO-A'!F85)","v":""}]
["C-Mali Duran Varlıklar"]
["1-Bağlı Menkul Kıymetler",{"$f":"IF('BİLANÇO-A'!D87=0,\"\",'BİLANÇO-A'!D87)","v":""},{"$f":"IF('BİLANÇO-A'!F87=0,\"\",'BİLANÇO-A'!F87)","v":""}]
["2-Bağlı Menkul Kıymetler Değer Düşüklüğü karşılığı (-)",{"$f":"IF('BİLANÇO-A'!D88=0,\"\",'BİLANÇO-A'!D88)","v":""},{"$f":"IF('BİLANÇO-A'!F88=0,\"\",'BİLANÇO-A'!F88)","v":""}]
["3-İştirakler",{"$f":"IF('BİLANÇO-A'!D89=0,\"\",'BİLANÇO-A'!D89)","v":""},{"$f":"IF('BİLANÇO-A'!F89=0,\"\",'BİLANÇO-A'!F89)","v":""}]
["4-İştiraklere Sermaye Taahhütleri (-)",{"$f":"IF('BİLANÇO-A'!D90=0,\"\",'BİLANÇO-A'!D90)","v":""},{"$f":"IF('BİLANÇO-A'!F90=0,\"\",'BİLANÇO-A'!F90)","v":""}]
["5-İştirakler Sermaye Payları değer Düşüklüğü Karşılığı (-)",{"$f":"IF('BİLANÇO-A'!D91=0,\"\",'BİLANÇO-A'!D91)","v":""},{"$f":"IF('BİLANÇO-A'!F91=0,\"\",'BİLANÇO-A'!F91)","v":""}]
["6-Bağlı Ortaklıklar",{"$f":"IF('BİLANÇO-A'!D92=0,\"\",'BİLANÇO-A'!D92)","v":""},{"$f":"IF('BİLANÇO-A'!F92=0,\"\",'BİLANÇO-A'!F92)","v":""}]
["7-Bağlı Ortaklıklara Sermaye Taahhütleri (-)",{"$f":"IF('BİLANÇO-A'!D93=0,\"\",'BİLANÇO-A'!D93)","v":""},{"$f":"IF('BİLANÇO-A'!F93=0,\"\",'BİLANÇO-A'!F93)","v":""}]
["8-Bağlı Ortaklıklara Sermaye Payları Değ.Düş.Karşılığı (-)",{"$f":"IF('BİLANÇO-A'!D94=0,\"\",'BİLANÇO-A'!D94)","v":""},{"$f":"IF('BİLANÇO-A'!F94=0,\"\",'BİLANÇO-A'!F94)","v":""}]
["9-Diğer Mali Duran Varlıklar",{"$f":"IF('BİLANÇO-A'!D95=0,\"\",'BİLANÇO-A'!D95)","v":""},{"$f":"IF('BİLANÇO-A'!F95=0,\"\",'BİLANÇO-A'!F95)","v":""}]
["10-Diğer Mali Duran Varlıklar Karşılığı (-)",{"$f":"IF('BİLANÇO-A'!D96=0,\"\",'BİLANÇO-A'!D96)","v":""},{"$f":"IF('BİLANÇO-A'!F96=0,\"\",'BİLANÇO-A'!F96)","v":""}]
["D-Maddi Duran Varlıklar"]
["1-Arazi ve Arsalar",{"$f":"IF('BİLANÇO-A'!D98=0,\"\",'BİLANÇO-A'!D98)","v":""},{"$f":"IF('BİLANÇO-A'!F98=0,\"\",'BİLANÇO-A'!F98)","v":""}]
["2-Yer altı ve Yer Üstü Düzenleri",{"$f":"IF('BİLANÇO-A'!D99=0,\"\",'BİLANÇO-A'!D99)","v":""},{"$f":"IF('BİLANÇO-A'!F99=0,\"\",'BİLANÇO-A'!F99)","v":""}]
["3-Binalar",{"$f":"IF('BİLANÇO-A'!D100=0,\"\",'BİLANÇO-A'!D100)","v":""},{"$f":"IF('BİLANÇO-A'!F100=0,\"\",'BİLANÇO-A'!F100)","v":""}]
["4-Tesis, Makine ve Cihazlar",{"$f":"IF('BİLANÇO-A'!D101=0,\"\",'BİLANÇO-A'!D101)","v":""},{"$f":"IF('BİLANÇO-A'!F101=0,\"\",'BİLANÇO-A'!F101)","v":""}]
["5-Taşıtlar",{"$f":"IF('BİLANÇO-A'!D102=0,\"\",'BİLANÇO-A'!D102)","v":1217541.8799999999},{"$f":"IF('BİLANÇO-A'!F102=0,\"\",'BİLANÇO-A'!F102)","v":446482.36}]
["6-Demirbaşlar",{"$f":"IF('BİLANÇO-A'!D103=0,\"\",'BİLANÇO-A'!D103)","v":374015.85},{"$f":"IF('BİLANÇO-A'!F103=0,\"\",'BİLANÇO-A'!F103)","v":374250.51}]
["7-Diğer Maddi Duran Varlıklar",{"$f":"IF('BİLANÇO-A'!D104=0,\"\",'BİLANÇO-A'!D104)","v":""},{"$f":"IF('BİLANÇO-A'!F104=0,\"\",'BİLANÇO-A'!F104)","v":""}]
["8-Birikmiş Amortismanlar (-)",{"$f":"IF('BİLANÇO-A'!D105=0,\"\",'BİLANÇO-A'!D105)","v":1515930.59},{"$f":"IF('BİLANÇO-A'!F105=0,\"\",'BİLANÇO-A'!F105)","v":800383.8}]
["9-Yapılmakta Olan Yatırımlar",{"$f":"IF('BİLANÇO-A'!D106=0,\"\",'BİLANÇO-A'!D106)","v":""},{"$f":"IF('BİLANÇO-A'!F106=0,\"\",'BİLANÇO-A'!F106)","v":""}]
["10-Verilen Avanslar",{"$f":"IF('BİLANÇO-A'!D107=0,\"\",'BİLANÇO-A'!D107)","v":""},{"$f":"IF('BİLANÇO-A'!F107=0,\"\",'BİLANÇO-A'!F107)","v":""}]
["E-Maddi Olmayan Duran Varlıklar"]
["1-Haklar",{"$f":"IF('BİLANÇO-A'!D109=0,\"\",'BİLANÇO-A'!D109)","v":1004.53},{"$f":"IF('BİLANÇO-A'!F109=0,\"\",'BİLANÇO-A'!F109)","v":1004.53}]
["2-Şerefiye",{"$f":"IF('BİLANÇO-A'!D110=0,\"\",'BİLANÇO-A'!D110)","v":""},{"$f":"IF('BİLANÇO-A'!F110=0,\"\",'BİLANÇO-A'!F110)","v":""}]
["3-Kuruluş ve Örgütlenme Giderleri",{"$f":"IF('BİLANÇO-A'!D111=0,\"\",'BİLANÇO-A'!D111)","v":""},{"$f":"IF('BİLANÇO-A'!F111=0,\"\",'BİLANÇO-A'!F111)","v":""}]
["4-Araştırma ve Geliştirme Giderleri",{"$f":"IF('BİLANÇO-A'!D112=0,\"\",'BİLANÇO-A'!D112)","v":""},{"$f":"IF('BİLANÇO-A'!F112=0,\"\",'BİLANÇO-A'!F112)","v":""}]
["5-Özel Maliyetler",{"$f":"IF('BİLANÇO-A'!D113=0,\"\",'BİLANÇO-A'!D113)","v":22008804.370000001},{"$f":"IF('BİLANÇO-A'!F113=0,\"\",'BİLANÇO-A'!F113)","v":""}]
["6-Diğer Maddi Olmayan Duran Varlıklar",{"$f":"IF('BİLANÇO-A'!D114=0,\"\",'BİLANÇO-A'!D114)","v":7447.37},{"$f":"IF('BİLANÇO-A'!F114=0,\"\",'BİLANÇO-A'!F114)","v":7447.37}]
["7-Birikmiş Amortismanlar (-)",{"$f":"IF('BİLANÇO-A'!D115=0,\"\",'BİLANÇO-A'!D115)","v":22015258.239999998},{"$f":"IF('BİLANÇO-A'!F115=0,\"\",'BİLANÇO-A'!F115)","v":6926.48}]
["8-Verilen Avanslar",{"$f":"IF('BİLANÇO-A'!D116=0,\"\",'BİLANÇO-A'!D116)","v":""},{"$f":"IF('BİLANÇO-A'!F116=0,\"\",'BİLANÇO-A'!F116)","v":""}]
["F-Özel Tükenmeye Tabi Varlıklar"]
["1-Arama Giderleri",{"$f":"IF('BİLANÇO-A'!D118=0,\"\",'BİLANÇO-A'!D118)","v":""},{"$f":"IF('BİLANÇO-A'!F118=0,\"\",'BİLANÇO-A'!F118)","v":""}]
["2-Hazırlık ve Geliştirme Giderleri",{"$f":"IF('BİLANÇO-A'!D119=0,\"\",'BİLANÇO-A'!D119)","v":""},{"$f":"IF('BİLANÇO-A'!F119=0,\"\",'BİLANÇO-A'!F119)","v":""}]
["3-Diğer Özel Tükenmeye Tabi Varlıklar",{"$f":"IF('BİLANÇO-A'!D120=0,\"\",'BİLANÇO-A'!D120)","v":""},{"$f":"IF('BİLANÇO-A'!F120=0,\"\",'BİLANÇO-A'!F120)","v":""}]
["4-Birikmiş Tükenme Payları (-)",{"$f":"IF('BİLANÇO-A'!D121=0,\"\",'BİLANÇO-A'!D121)","v":""},{"$f":"IF('BİLANÇO-A'!F121=0,\"\",'BİLANÇO-A'!F121)","v":""}]
["5-Verilen Avanslar",{"$f":"IF('BİLANÇO-A'!D122=0,\"\",'BİLANÇO-A'!D122)","v":""},{"$f":"IF('BİLANÇO-A'!F122=0,\"\",'BİLANÇO-A'!F122)","v":""}]
["G-Gelecek Yıllara Ait Giderler ve Gelir Tahakkukları"]
["1-Gelecek Yıllara Ait Giderler",{"$f":"IF('BİLANÇO-A'!D124=0,\"\",'BİLANÇO-A'!D124)","v":1620.32},{"$f":"IF('BİLANÇO-A'!F124=0,\"\",'BİLANÇO-A'!F124)","v":1620.32}]
["2-Gelir Tahakkukları",{"$f":"IF('BİLANÇO-A'!D125=0,\"\",'BİLANÇO-A'!D125)","v":""},{"$f":"IF('BİLANÇO-A'!F125=0,\"\",'BİLANÇO-A'!F125)","v":""}]
["H-Diğer Duran Varlıklar "]
["1-Gelecek Yıllarda İndirilecek KDV",{"$f":"IF('BİLANÇO-A'!D127=0,\"\",'BİLANÇO-A'!D127)","v":""},{"$f":"IF('BİLANÇO-A'!F127=0,\"\",'BİLANÇO-A'!F127)","v":""}]
["2-Diğer KDV",{"$f":"IF('BİLANÇO-A'!D128=0,\"\",'BİLANÇO-A'!D128)","v":""},{"$f":"IF('BİLANÇO-A'!F128=0,\"\",'BİLANÇO-A'!F128)","v":""}]
["3-Gelecek Yıllar İhtiyacı Stoklar",{"$f":"IF('BİLANÇO-A'!D129=0,\"\",'BİLANÇO-A'!D129)","v":""},{"$f":"IF('BİLANÇO-A'!F129=0,\"\",'BİLANÇO-A'!F129)","v":""}]
["4-Elden Çıkarılacak Stoklar ve Maddi Duran Varlıklar",{"$f":"IF('BİLANÇO-A'!D130=0,\"\",'BİLANÇO-A'!D130)","v":""},{"$f":"IF('BİLANÇO-A'!F130=0,\"\",'BİLANÇO-A'!F130)","v":""}]
["5-Peşin Ödenen Vergiler ve Fonlar",{"$f":"IF('BİLANÇO-A'!D131=0,\"\",'BİLANÇO-A'!D131)","v":""},{"$f":"IF('BİLANÇO-A'!F131=0,\"\",'BİLANÇO-A'!F131)","v":""}]
["6-Diğer Çeşitli Duran Varlıklar",{"$f":"IF('BİLANÇO-A'!D132=0,\"\",'BİLANÇO-A'!D132)","v":""},{"$f":"IF('BİLANÇO-A'!F132=0,\"\",'BİLANÇO-A'!F132)","v":""}]
["7-Stok Değer Düşüklüğü Karşılığı (-)",{"$f":"IF('BİLANÇO-A'!D133=0,\"\",'BİLANÇO-A'!D133)","v":""},{"$f":"IF('BİLANÇO-A'!F133=0,\"\",'BİLANÇO-A'!F133)","v":""}]
["8-Birikmiş Amortismanlar (-)",{"$f":"IF('BİLANÇO-A'!D134=0,\"\",'BİLANÇO-A'!D134)","v":""},{"$f":"IF('BİLANÇO-A'!F134=0,\"\",'BİLANÇO-A'!F134)","v":""}]
["AKTİF (VARLIKLAR) TOPLAMI"]

{"sheet":"BİLANÇO-P","index":9,"n_rows":120,"n_cols":7,"rows_kept":120,"cut":false,"hidden":true,"merged":[[5,3,5,4],[5,5,5,6],[0,2,0,6],[1,2,1,6],[2,2,2,6],[4,5,4,6],[4,3,4,4]]}
["CariDönemMizan",null,{"$f":"Bilgiler!B1","v":0}]
["ÖncekiDönemMizan",null,"AYRINTILI BİLANÇOLARI"]
[null,null,{"$f":"\"( \" &Bilgiler!B26 & \" )\"","v":"( TL )"}]
[]
[null,null,"PASİF ( KAYNAKLAR)","Önceki Dönem",null,"Cari Dönem"]
[null,null,null,{"$f":"Bilgiler!B11","v":"31.12.2012"},null,{"$f":"Bilgiler!B12","v":"31.12.2013"}]
[null,"*","KISA VADELİ YABANCI KAYNAKLAR TOPLAMI",null,{"$f":"SUM(E8:E51)","v":1221591.7},null,{"$f":"SUM(G8:G51)","v":1921902.0799999996}]
[null,"*","A-Mali Borçlar",null,{"$f":"SUM(D9:D10,D12:D15,D17)-SUM(D11,D16)","v":0},null,{"$f":"SUM(F9:F10,F12:F15,F17)-SUM(F11,F16)","v":0}]
[300,8,"1-Banka Kredileri",0,null,0]
[301,8,"2-Finansal Kiralama İşlemlerinden Borçlar ",0,null,0]
[302,7,"3-Ertelenmiş Finansal Kiralama Borçlanma Maliyetleri (-)",0,null,0]
[303,8,"4-Uzun Vadeli Kredilerin Anapara Taksitleri ve Faizleri",0,null,0]
[304,8,"5-Tahvil, Anapara, Borç Taksit ve Faizleri",0,null,0]
[305,8,"6-Çıkarılmış Bonolar ve Senetler",0,null,0]
[306,8,"7-Çıkarılmış Diğer Menkul Kıymetler",0,null,0]
[308,7,"8-Menkul Kıymetler İhraç Farkı (-)",0,null,0]
[309,8,"9-Diğer Mali Borçlar",0,null,0]
[null,"*","B-Ticari Borçlar",null,{"$f":"SUM(D19:D20,D22:D23)-D21","v":1106708.83},null,{"$f":"SUM(F19:F20,F22:F23)-F21","v":2276059.84}]
[320,8,"1-Satıcılar",124756.56,null,2038557.56]
[321,8,"2-Borç Senetleri ",0,null,0]
[322,7,"3-Borç Senetleri Reeskontu (-)",0,null,0]
[326,8,"4-Alınan Depozito ve Teminatlar",322654.90999999997,null,237025.48]
[329,8,"5-Diğer Ticari Borçlar",659297.36,null,476.8]
[null,"*","C-Diğer Borçlar",null,{"$f":"SUM(D25:D29)-D30","v":25604.48},null,{"$f":"SUM(F25:F29)-F30","v":227411.88}]
[331,8,"1-Ortaklara Borçlar",0,null,212400]
[332,8,"2-İştiraklere Borçlar",0,null,0]
[333,8,"3-Bağlı Ortaklıklara Borçlar",0,null,0]
[335,8,"4-Personele Borçlar",25604.48,null,15011.88]
[336,8,"5-Diğer Çeşitli Borçlar",0,null,0]
[337,7,"6-Diğer Borç Senetleri Reeskontu (-)",0,null,0]
[null,"*","D-Alınan Avanslar",null,{"$f":"SUM(D32:D33)","v":0},null,{"$f":"SUM(F32:F33)","v":0}]
[340,8,"1-Alınan Sipariş Avansları",0,null,0]
[349,8,"2-Alınan Diğer Avanslar",0,null,0]
[null,"*","E-Yıllara Yaygın İnşaat ve Onarım Hakedişleri",null,{"$f":"SUM(D35:D36)","v":0},null,{"$f":"SUM(F35:F36)","v":0}]
[350,8,"1-Yıllara Yaygın İnşaat ve Onarım Hakediş Bedelleri",0,null,0]
[358,8,"2-Yıllara Yaygın İnşaat Enflasyon Düzeltme Hesabı",0,null,0]
[null,"*","F-Ödenecek Vergi ve Diğer Yükümlülükler",null,{"$f":"SUM(D38:D41)","v":148045.96},null,{"$f":"SUM(F38:F41)","v":62380.19}]
[360,8,"1-Ödenecek Vergi ve Fonlar",129597.37,null,54487.17]
[361,8,"2-Ödenecek Sosyal Güvenlik Kesintileri",18448.59,null,7893.02]
[368,8,"3-Vadesi Geçm. Ert. veya Taks. Vergi ve Diğ. Yük.",0,null,0]
[369,8,"4-Ödenecek Diğer Yükümlülükler",0,null,0]
[null,"*","G-Borç ve Gider Karşılıkları",null,{"$f":"IF(D43=D44,0.00001+SUM(D45:D47),D43-D44+SUM(D45:D47))","v":-1858917.83},null,{"$f":"IF(F43=F44,0.00001+SUM(F45:F47),F43-F44+SUM(F45:F47))","v":-644345.31000000006}]
[370,8,"1-Dönem Kârı Vergi ve Diğer Yasal Yük.Karşılıkları",{"$f":"'GELİR TAB'!E58","v":0},null,{"$f":"'GELİR TAB'!G58","v":0}]
[371,7,"2-Dönem Kârının Peşin Ödenen Vergi ve Diğ.Yük.(-)",1858917.83,null,644345.31000000006]
[372,8,"3-Kıdem Tazminatı Karşılığı",0,null,0]
[373,8,"4-Maliyet Giderleri Karşılığı",0,null,0]
[379,8,"5-Diğer Borç ve Gider Karşılıkları",0,null,0]
[null,"*","H-Gelecek Aylara Ait Gelirler ve Gider Tahakkukları",null,{"$f":"SUM(D49:D50)","v":1800150.26},null,{"$f":"SUM(F49:F50)","v":395.48}]
[380,8,"1-Gelecek Aylara Ait Gelirler",121815.45,null,395.48]
[381,8,"2-Gider Tahakkukları",1678334.81,null,0]
[null,"*","I-Diğer Kısa Vadeli Yabancı Kaynaklar",null,{"$f":"SUM(D52:D56)","v":0},null,{"$f":"SUM(F52:F56)","v":0}]
[391,8,"1-Hesaplanan KDV",0,null,0]
[392,8,"2-Diğer KDV",0,null,0]
[393,8,"3-Merkez ve Şubeler Cari Hesabı",0,null,0]
[397,8,"4-Sayım ve Tesellüm Fazlaları",0,null,0]
[399,8,"5-Diğer Çeşitli Yabancı Kaynaklar",0,null,0]
[null,"*","UZUN VADELİ YABANCI KAYNAKLAR TOPLAMI",null,{"$f":"SUM(E58:E88)","v":3629.67},null,{"$f":"SUM(G58:G88)","v":0}]
[null,"*","A-Mali Borçlar",null,{"$f":"SUM(D59:D60,D62:D63,D65)-SUM(D61,D64)","v":0},null,{"$f":"SUM(F59:F60,F62:F63,F65)-SUM(F61,F64)","v":0}]
[400,8,"1-Banka Kredileri",0,null,0]
[401,8,"2-Finansal Kiralama İşlemlerinden Borçlar ",0,null,0]
[402,7,"3-Ertelenmiş Finansal Kiralama Borçlanma Maliyetleri (-)",0,null,0]
[405,8,"4-Çıkarılmış Tahviller",0,null,0]
[407,8,"5-Çıkarılmış Diğer Menkul Kıymetler",0,null,0]
[408,7,"6-Menkul Kıymetler İhraç Farkı (-)",0,null,0]
[409,8,"7-Diğer Mali Borçlar",0,null,0]
[null,"*","B-Ticari Borçlar",null,{"$f":"SUM(D67:D68,D70:D71)-D69","v":3629.67},null,{"$f":"SUM(F67:F68,F70:F71)-F69","v":0}]
[420,8,"1-Satıcılar",0,null,0]
[421,8,"2-Borç Senetleri ",0,null,0]
[422,7,"3-Borç Senetleri Reeskontu (-)",0,null,0]
[426,8,"4-Alınan Depozito ve Teminatlar",3629.67,null,0]
[429,8,"5-Diğer Ticari Borçlar",0,null,0]
[null,"*","C-Diğer Borçlar",null,{"$f":"SUM(D73:D76,D78)-D77","v":0},null,{"$f":"SUM(F73:F76,F78)-F77","v":0}]
[431,8,"1-Ortaklara Borçlar",0,null,0]
[432,8,"2-İştiraklere Borçlar",0,null,0]
[433,8,"3-Bağlı Ortaklıklara Borçlar",0,null,0]
[436,8,"4-Diğer Çeşitli Borçlar",0,null,0]
[437,7,"5-Diğer Borç Senetleri Reeskontu (-)",0,null,0]
[438,8,"6-Kamuya Olan Ertelenmiş ve Taks.Borçlar",0,null,0]
[null,"*","D-Alınan Avanslar",null,{"$f":"SUM(D80:D81)","v":0},null,{"$f":"SUM(F80:F81)","v":0}]
[440,8,"1- Alınan Sipariş Avansları",0,null,0]
[449,8,"2- Alınan Diğer Avanslar",0,null,0]
[null,"*","E-Borç ve Gider Karşılıkları",null,{"$f":"SUM(D83:D84)","v":0},null,{"$f":"SUM(F83:F84)","v":0}]
[472,8,"1-Kıdem Tazminatı Karşılıkları",0,null,0]
[479,8,"2-Diğer Borç ve Gider Karşılıkları",0,null,0]
[null,"*","F-Gelecek Yıllara Ait Gelirler ve Gider Tahakkukları",null,{"$f":"SUM(D86:D87)","v":0},null,{"$f":"SUM(F86:F87)","v":0}]
[480,8,"1-Gelecek Yıllara Ait Gelirler",0,null,0]
[481,8,"2-Gider Tahakkukları",0,null,0]
[null,"*","G-Diğer Uzun Vadeli Yabancı Kaynaklar",null,{"$f":"SUM(D89:D91)","v":0},null,{"$f":"SUM(F89:F91)","v":0}]
[492,8,"1-Gelecek Yıllara Ertelenen veya Terkin Edilen KDV",0,null,0]
[493,8,"2-Tesise Katılma Payları",0,null,0]
[499,8,"3-Diğer Uzun Vadeli Yabancı Kaynaklar Toplamı",0,null,0]
[null,"*","ÖZ KAYNAKLAR TOPLAMI",null,{"$f":"SUM(E93:E110)-E112+E114","v":8928499.5000000019},null,{"$f":"SUM(G93:G110)-G112+G114","v":3248739.88}]
[null,"*","A-Ödenmiş Sermaye",null,{"$f":"SUM(D94,D96)-D95-D97","v":169944.2},null,{"$f":"SUM(F94,F96)-F95-F97","v":169944.2}]
[500,8,"1-Sermaye",160000,null,160000]
[501,7,"2-Ödenmemiş Sermaye (-)",0,null,0]
[502,8,"3-Sermaye Düzeltmesi Olumlu Farkları",9944.2000000000007,null,9944.2000000000007]
[503,7,"4-Sermaye Düzeltmesi Olumsuz Farkları (-)",0,null,0]
[null,"*","B-Sermaye Yedekleri",null,{"$f":"SUM(D99:D103)","v":0},null,{"$f":"SUM(F99:F103)","v":0}]
[520,8,"1-Hisse Senedi İhraç Primleri",0,null,0]
[521,8,"2-Hisse Senedi İptal Karları",0,null,0]
[522,8,"3-M.D.V. Yeniden Değerleme Artışları",0,null,0]
[523,8,"4-İştirakler Yeniden Değerleme Artışları",0,null,0]
[529,8,"5-Diğer Sermaye Yedekleri",0,null,0]
[null,"*","C-Kar Yedekleri",null,{"$f":"SUM(D105:D109)","v":2829.22},null,{"$f":"SUM(F105:F109)","v":2829.22}]
[540,8,"1-Yasal Yedekler",2829.22,null,2829.22]
[541,8,"2-Statü Yedekleri",0,null,0]
[542,8,"3-Olağanüstü Yedekler",0,null,0]
[548,8,"4-Diğer Kar Yedekleri",0,null,0]
[549,8,"5-Özel Fonlar",0,null,0]
[null,"*","D-Geçmiş Yıl Karları",null,{"$f":"D111","v":0},null,{"$f":"F111","v":0}]
[570,8,"1-Geçmiş Yıl Karları",0,null,0]
[null,"*","E-Geçmiş Yıllar Zararları(-)",null,{"$f":"D113","v":0},null,{"$f":"F113","v":0}]
[580,7,"1- Geçmiş Yıllar Zararları (-)",0,null,0]
[null,"*","F-Dönem Net Karı (Zararı)",null,{"$f":"D115+D116","v":8755726.0800000019},null,{"$f":"F115+F116","v":3075966.46}]
[590,8,"1-Dönem Net Karı",{"$f":"IF('GELİR TAB'!E59>0,'GELİR TAB'!E59,0)","v":8755726.0800000019},null,{"$f":"IF('GELİR TAB'!G59>0,'GELİR TAB'!G59,0)","v":3075966.46}]
[591,7,"2-Dönem Net Zararı (-)",{"$f":"IF('GELİR TAB'!E59<0,'GELİR TAB'!E59,0)","v":0},null,{"$f":"IF('GELİR TAB'!G59<0,'GELİR TAB'!G59,0)","v":0}]
[null,"*","PASİF(KAYNAKLAR) TOPLAMI",null,{"$f":"E92+E57+E7","v":10153720.870000001},null,{"$f":"ROUND(G92+G57+G7,2)","v":5170641.96}]
[]
[null,null,null,null,{"$f":"IF(ROUND(E117,2)=ROUND('BİLANÇO-A'!E135,2),\"OK\", \"FARK VAR!\")","v":"OK"},null,{"$f":"IF(ROUND(G117,2)=ROUND('BİLANÇO-A'!G135,2),\"OK\", \"FARK VAR!\")","v":"OK"}]
[null,null,null,null,{"$f":"ROUND(E117-'BİLANÇO-A'!E135,2)","v":0},null,{"$f":"ROUND(G117-'BİLANÇO-A'!G135,2)","v":0}]

{"sheet":"e-pasif","index":10,"n_rows":111,"n_cols":3,"rows_kept":111,"cut":false,"hidden":true,"merged":[]}
["III. KISA VADELİ YABANCI KAYNAKLAR"]
["A-Mali Borçlar"]
["1-Banka Kredileri",{"$f":"IF('BİLANÇO-P'!D9=0,\"\",'BİLANÇO-P'!D9)","v":""},{"$f":"IF('BİLANÇO-P'!F9=0,\"\",'BİLANÇO-P'!F9)","v":""}]
["2-Finansal Kiralama İşlemlerinden Borçlar ",{"$f":"IF('BİLANÇO-P'!D10=0,\"\",'BİLANÇO-P'!D10)","v":""},{"$f":"IF('BİLANÇO-P'!F10=0,\"\",'BİLANÇO-P'!F10)","v":""}]
["3-Ertelenmiş Finansal Kiralama Borçlanma Maliyetleri (-)",{"$f":"IF('BİLANÇO-P'!D11=0,\"\",'BİLANÇO-P'!D11)","v":""},{"$f":"IF('BİLANÇO-P'!F11=0,\"\",'BİLANÇO-P'!F11)","v":""}]
["4-Uzun Vadeli Kredilerin Anapara Taksitleri ve Faizleri",{"$f":"IF('BİLANÇO-P'!D12=0,\"\",'BİLANÇO-P'!D12)","v":""},{"$f":"IF('BİLANÇO-P'!F12=0,\"\",'BİLANÇO-P'!F12)","v":""}]
["5-Tahvil, Anapara, Borç Taksit ve Faizleri",{"$f":"IF('BİLANÇO-P'!D13=0,\"\",'BİLANÇO-P'!D13)","v":""},{"$f":"IF('BİLANÇO-P'!F13=0,\"\",'BİLANÇO-P'!F13)","v":""}]
["6-Çıkarılmış Bonolar ve Senetler",{"$f":"IF('BİLANÇO-P'!D14=0,\"\",'BİLANÇO-P'!D14)","v":""},{"$f":"IF('BİLANÇO-P'!F14=0,\"\",'BİLANÇO-P'!F14)","v":""}]
["7-Çıkarılmış Diğer Menkul Kıymetler",{"$f":"IF('BİLANÇO-P'!D15=0,\"\",'BİLANÇO-P'!D15)","v":""},{"$f":"IF('BİLANÇO-P'!F15=0,\"\",'BİLANÇO-P'!F15)","v":""}]
["8-Menkul Kıymetler İhraç Farkı (-)",{"$f":"IF('BİLANÇO-P'!D16=0,\"\",'BİLANÇO-P'!D16)","v":""},{"$f":"IF('BİLANÇO-P'!F16=0,\"\",'BİLANÇO-P'!F16)","v":""}]
["9-Diğer Mali Borçlar",{"$f":"IF('BİLANÇO-P'!D17=0,\"\",'BİLANÇO-P'!D17)","v":""},{"$f":"IF('BİLANÇO-P'!F17=0,\"\",'BİLANÇO-P'!F17)","v":""}]
["B-Ticari Borçlar"]
["1-Satıcılar",{"$f":"IF('BİLANÇO-P'!D19=0,\"\",'BİLANÇO-P'!D19)","v":124756.56},{"$f":"IF('BİLANÇO-P'!F19=0,\"\",'BİLANÇO-P'!F19)","v":2038557.56}]
["2-Borç Senetleri ",{"$f":"IF('BİLANÇO-P'!D20=0,\"\",'BİLANÇO-P'!D20)","v":""},{"$f":"IF('BİLANÇO-P'!F20=0,\"\",'BİLANÇO-P'!F20)","v":""}]
["3-Borç Senetleri Reeskontu (-)",{"$f":"IF('BİLANÇO-P'!D21=0,\"\",'BİLANÇO-P'!D21)","v":""},{"$f":"IF('BİLANÇO-P'!F21=0,\"\",'BİLANÇO-P'!F21)","v":""}]
["4-Alınan Depozito ve Teminatlar",{"$f":"IF('BİLANÇO-P'!D22=0,\"\",'BİLANÇO-P'!D22)","v":322654.90999999997},{"$f":"IF('BİLANÇO-P'!F22=0,\"\",'BİLANÇO-P'!F22)","v":237025.48}]
["5-Diğer Ticari Borçlar",{"$f":"IF('BİLANÇO-P'!D23=0,\"\",'BİLANÇO-P'!D23)","v":659297.36},{"$f":"IF('BİLANÇO-P'!F23=0,\"\",'BİLANÇO-P'!F23)","v":476.8}]
["C-Diğer Borçlar"]
["1-Ortaklara Borçlar",{"$f":"IF('BİLANÇO-P'!D25=0,\"\",'BİLANÇO-P'!D25)","v":""},{"$f":"IF('BİLANÇO-P'!F25=0,\"\",'BİLANÇO-P'!F25)","v":212400}]
["2-İştiraklere Borçlar",{"$f":"IF('BİLANÇO-P'!D26=0,\"\",'BİLANÇO-P'!D26)","v":""},{"$f":"IF('BİLANÇO-P'!F26=0,\"\",'BİLANÇO-P'!F26)","v":""}]
["3-Bağlı Ortaklıklara Borçlar",{"$f":"IF('BİLANÇO-P'!D27=0,\"\",'BİLANÇO-P'!D27)","v":""},{"$f":"IF('BİLANÇO-P'!F27=0,\"\",'BİLANÇO-P'!F27)","v":""}]
["4-Personele Borçlar",{"$f":"IF('BİLANÇO-P'!D28=0,\"\",'BİLANÇO-P'!D28)","v":25604.48},{"$f":"IF('BİLANÇO-P'!F28=0,\"\",'BİLANÇO-P'!F28)","v":15011.88}]
["5-Diğer Çeşitli Borçlar",{"$f":"IF('BİLANÇO-P'!D29=0,\"\",'BİLANÇO-P'!D29)","v":""},{"$f":"IF('BİLANÇO-P'!F29=0,\"\",'BİLANÇO-P'!F29)","v":""}]
["6-Diğer Borç Senetleri Reeskontu (-)",{"$f":"IF('BİLANÇO-P'!D30=0,\"\",'BİLANÇO-P'!D30)","v":""},{"$f":"IF('BİLANÇO-P'!F30=0,\"\",'BİLANÇO-P'!F30)","v":""}]
["D-Alınan Avanslar"]
["1-Alınan Sipariş Avansları",{"$f":"IF('BİLANÇO-P'!D32=0,\"\",'BİLANÇO-P'!D32)","v":""},{"$f":"IF('BİLANÇO-P'!F32=0,\"\",'BİLANÇO-P'!F32)","v":""}]
["2-Alınan Diğer Avanslar",{"$f":"IF('BİLANÇO-P'!D33=0,\"\",'BİLANÇO-P'!D33)","v":""},{"$f":"IF('BİLANÇO-P'!F33=0,\"\",'BİLANÇO-P'!F33)","v":""}]
["E-Yıllara Yaygın İnşaat ve Onarım Hakedişleri"]
["1-Yıllara Yaygın İnşaat ve Onarım Hakediş Bedelleri",{"$f":"IF('BİLANÇO-P'!D35=0,\"\",'BİLANÇO-P'!D35)","v":""},{"$f":"IF('BİLANÇO-P'!F35=0,\"\",'BİLANÇO-P'!F35)","v":""}]
["2-Yıllara Yaygın İnşaat Enflasyon Düzeltme Hesabı",{"$f":"IF('BİLANÇO-P'!D36=0,\"\",'BİLANÇO-P'!D36)","v":""},{"$f":"IF('BİLANÇO-P'!F36=0,\"\",'BİLANÇO-P'!F36)","v":""}]
["F-Ödenecek Vergi ve Diğer Yükümlülükler"]
["1-Ödenecek Vergi ve Fonlar",{"$f":"IF('BİLANÇO-P'!D38=0,\"\",'BİLANÇO-P'!D38)","v":129597.37},{"$f":"IF('BİLANÇO-P'!F38=0,\"\",'BİLANÇO-P'!F38)","v":54487.17}]
["2-Ödenecek Sosyal Güvenlik Kesintileri",{"$f":"IF('BİLANÇO-P'!D39=0,\"\",'BİLANÇO-P'!D39)","v":18448.59},{"$f":"IF('BİLANÇO-P'!F39=0,\"\",'BİLANÇO-P'!F39)","v":7893.02}]
["3-Vadesi Geçm. Ert. veya Taks. Vergi ve Diğ. Yük.",{"$f":"IF('BİLANÇO-P'!D40=0,\"\",'BİLANÇO-P'!D40)","v":""},{"$f":"IF('BİLANÇO-P'!F40=0,\"\",'BİLANÇO-P'!F40)","v":""}]
["4-Ödenecek Diğer Yükümlülükler",{"$f":"IF('BİLANÇO-P'!D41=0,\"\",'BİLANÇO-P'!D41)","v":""},{"$f":"IF('BİLANÇO-P'!F41=0,\"\",'BİLANÇO-P'!F41)","v":""}]
["G-Borç ve Gider Karşılıkları"]
["1-Dönem Kârı Vergi ve Diğer Yasal Yük.Karşılıkları",{"$f":"IF('BİLANÇO-P'!D43=0,\"\",'BİLANÇO-P'!D43)","v":""},{"$f":"IF('BİLANÇO-P'!F43=0,\"\",'BİLANÇO-P'!F43)","v":""}]
["2-Dönem Kârının Peşin Ödenen Vergi ve Diğ.Yük.(-)",{"$f":"IF('BİLANÇO-P'!D44=0,\"\",'BİLANÇO-P'!D44)","v":1858917.83},{"$f":"IF('BİLANÇO-P'!F44=0,\"\",'BİLANÇO-P'!F44)","v":644345.31000000006}]
["3-Kıdem Tazminatı Karşılığı",{"$f":"IF('BİLANÇO-P'!D45=0,\"\",'BİLANÇO-P'!D45)","v":""},{"$f":"IF('BİLANÇO-P'!F45=0,\"\",'BİLANÇO-P'!F45)","v":""}]
["4-Maliyet Giderleri Karşılığı",{"$f":"IF('BİLANÇO-P'!D46=0,\"\",'BİLANÇO-P'!D46)","v":""},{"$f":"IF('BİLANÇO-P'!F46=0,\"\",'BİLANÇO-P'!F46)","v":""}]
["5-Diğer Borç ve Gider Karşılıkları",{"$f":"IF('BİLANÇO-P'!D47=0,\"\",'BİLANÇO-P'!D47)","v":""},{"$f":"IF('BİLANÇO-P'!F47=0,\"\",'BİLANÇO-P'!F47)","v":""}]
["H-Gelecek Aylara Ait Gelirler ve Gider Tahakkukları"]
["1-Gelecek Aylara Ait Gelirler",{"$f":"IF('BİLANÇO-P'!D49=0,\"\",'BİLANÇO-P'!D49)","v":121815.45},{"$f":"IF('BİLANÇO-P'!F49=0,\"\",'BİLANÇO-P'!F49)","v":395.48}]
["2-Gider Tahakkukları",{"$f":"IF('BİLANÇO-P'!D50=0,\"\",'BİLANÇO-P'!D50)","v":1678334.81},{"$f":"IF('BİLANÇO-P'!F50=0,\"\",'BİLANÇO-P'!F50)","v":""}]
["I-Diğer Kısa Vadeli Yabancı Kaynaklar"]
["1-Hesaplanan KDV",{"$f":"IF('BİLANÇO-P'!D52=0,\"\",'BİLANÇO-P'!D52)","v":""},{"$f":"IF('BİLANÇO-P'!F52=0,\"\",'BİLANÇO-P'!F52)","v":""}]
["2-Diğer KDV",{"$f":"IF('BİLANÇO-P'!D53=0,\"\",'BİLANÇO-P'!D53)","v":""},{"$f":"IF('BİLANÇO-P'!F53=0,\"\",'BİLANÇO-P'!F53)","v":""}]
["3-Merkez ve Şubeler Cari Hesabı",{"$f":"IF('BİLANÇO-P'!D54=0,\"\",'BİLANÇO-P'!D54)","v":""},{"$f":"IF('BİLANÇO-P'!F54=0,\"\",'BİLANÇO-P'!F54)","v":""}]
["4-Sayım ve Tesellüm Fazlaları",{"$f":"IF('BİLANÇO-P'!D55=0,\"\",'BİLANÇO-P'!D55)","v":""},{"$f":"IF('BİLANÇO-P'!F55=0,\"\",'BİLANÇO-P'!F55)","v":""}]
["5-Diğer Çeşitli Yabancı Kaynaklar",{"$f":"IF('BİLANÇO-P'!D56=0,\"\",'BİLANÇO-P'!D56)","v":""},{"$f":"IF('BİLANÇO-P'!F56=0,\"\",'BİLANÇO-P'!F56)","v":""}]
["IV. UZUN VADELİ YABANCI KAYNAKLAR"]
["A-Mali Borçlar"]
["1-Banka Kredileri",{"$f":"IF('BİLANÇO-P'!D59=0,\"\",'BİLANÇO-P'!D59)","v":""},{"$f":"IF('BİLANÇO-P'!F59=0,\"\",'BİLANÇO-P'!F59)","v":""}]
["2-Finansal Kiralama İşlemlerinden Borçlar ",{"$f":"IF('BİLANÇO-P'!D60=0,\"\",'BİLANÇO-P'!D60)","v":""},{"$f":"IF('BİLANÇO-P'!F60=0,\"\",'BİLANÇO-P'!F60)","v":""}]
["3-Ertelenmiş Finansal Kiralama Borçlanma Maliyetleri (-)",{"$f":"IF('BİLANÇO-P'!D61=0,\"\",'BİLANÇO-P'!D61)","v":""},{"$f":"IF('BİLANÇO-P'!F61=0,\"\",'BİLANÇO-P'!F61)","v":""}]
["4-Çıkarılmış Tahviller",{"$f":"IF('BİLANÇO-P'!D62=0,\"\",'BİLANÇO-P'!D62)","v":""},{"$f":"IF('BİLANÇO-P'!F62=0,\"\",'BİLANÇO-P'!F62)","v":""}]
["5-Çıkarılmış Diğer Menkul Kıymetler",{"$f":"IF('BİLANÇO-P'!D63=0,\"\",'BİLANÇO-P'!D63)","v":""},{"$f":"IF('BİLANÇO-P'!F63=0,\"\",'BİLANÇO-P'!F63)","v":""}]
["6-Menkul Kıymetler İhraç Farkı (-)",{"$f":"IF('BİLANÇO-P'!D64=0,\"\",'BİLANÇO-P'!D64)","v":""},{"$f":"IF('BİLANÇO-P'!F64=0,\"\",'BİLANÇO-P'!F64)","v":""}]
["7-Diğer Mali Borçlar",{"$f":"IF('BİLANÇO-P'!D65=0,\"\",'BİLANÇO-P'!D65)","v":""},{"$f":"IF('BİLANÇO-P'!F65=0,\"\",'BİLANÇO-P'!F65)","v":""}]
["B-Ticari Borçlar"]
["1-Satıcılar",{"$f":"IF('BİLANÇO-P'!D67=0,\"\",'BİLANÇO-P'!D67)","v":""},{"$f":"IF('BİLANÇO-P'!F67=0,\"\",'BİLANÇO-P'!F67)","v":""}]
["2-Borç Senetleri ",{"$f":"IF('BİLANÇO-P'!D68=0,\"\",'BİLANÇO-P'!D68)","v":""},{"$f":"IF('BİLANÇO-P'!F68=0,\"\",'BİLANÇO-P'!F68)","v":""}]
["3-Borç Senetleri Reeskontu (-)",{"$f":"IF('BİLANÇO-P'!D69=0,\"\",'BİLANÇO-P'!D69)","v":""},{"$f":"IF('BİLANÇO-P'!F69=0,\"\",'BİLANÇO-P'!F69)","v":""}]
["4-Alınan Depozito ve Teminatlar",{"$f":"IF('BİLANÇO-P'!D70=0,\"\",'BİLANÇO-P'!D70)","v":3629.67},{"$f":"IF('BİLANÇO-P'!F70=0,\"\",'BİLANÇO-P'!F70)","v":""}]
["5-Diğer Ticari Borçlar",{"$f":"IF('BİLANÇO-P'!D71=0,\"\",'BİLANÇO-P'!D71)","v":""},{"$f":"IF('BİLANÇO-P'!F71=0,\"\",'BİLANÇO-P'!F71)","v":""}]
["C-Diğer Borçlar"]
["1-Ortaklara Borçlar",{"$f":"IF('BİLANÇO-P'!D73=0,\"\",'BİLANÇO-P'!D73)","v":""},{"$f":"IF('BİLANÇO-P'!F73=0,\"\",'BİLANÇO-P'!F73)","v":""}]
["2-İştiraklere Borçlar",{"$f":"IF('BİLANÇO-P'!D74=0,\"\",'BİLANÇO-P'!D74)","v":""},{"$f":"IF('BİLANÇO-P'!F74=0,\"\",'BİLANÇO-P'!F74)","v":""}]
["3-Bağlı Ortaklıklara Borçlar",{"$f":"IF('BİLANÇO-P'!D75=0,\"\",'BİLANÇO-P'!D75)","v":""},{"$f":"IF('BİLANÇO-P'!F75=0,\"\",'BİLANÇO-P'!F75)","v":""}]
["4-Diğer Çeşitli Borçlar",{"$f":"IF('BİLANÇO-P'!D76=0,\"\",'BİLANÇO-P'!D76)","v":""},{"$f":"IF('BİLANÇO-P'!F76=0,\"\",'BİLANÇO-P'!F76)","v":""}]
["5-Diğer Borç Senetleri Reeskontu (-)",{"$f":"IF('BİLANÇO-P'!D77=0,\"\",'BİLANÇO-P'!D77)","v":""},{"$f":"IF('BİLANÇO-P'!F77=0,\"\",'BİLANÇO-P'!F77)","v":""}]
["6-Kamuya Olan Ertelenmiş ve Taks.Borçlar",{"$f":"IF('BİLANÇO-P'!D78=0,\"\",'BİLANÇO-P'!D78)","v":""},{"$f":"IF('BİLANÇO-P'!F78=0,\"\",'BİLANÇO-P'!F78)","v":""}]
["D-Alınan Avanslar"]
["1- Alınan Sipariş Avansları",{"$f":"IF('BİLANÇO-P'!D80=0,\"\",'BİLANÇO-P'!D80)","v":""},{"$f":"IF('BİLANÇO-P'!F80=0,\"\",'BİLANÇO-P'!F80)","v":""}]
["2- Alınan Diğer Avanslar",{"$f":"IF('BİLANÇO-P'!D81=0,\"\",'BİLANÇO-P'!D81)","v":""},{"$f":"IF('BİLANÇO-P'!F81=0,\"\",'BİLANÇO-P'!F81)","v":""}]
["E-Borç ve Gider Karşılıkları"]
["1-Kıdem Tazminatı Karşılıkları",{"$f":"IF('BİLANÇO-P'!D83=0,\"\",'BİLANÇO-P'!D83)","v":""},{"$f":"IF('BİLANÇO-P'!F83=0,\"\",'BİLANÇO-P'!F83)","v":""}]
["2-Diğer Borç ve Gider Karşılıkları",{"$f":"IF('BİLANÇO-P'!D84=0,\"\",'BİLANÇO-P'!D84)","v":""},{"$f":"IF('BİLANÇO-P'!F84=0,\"\",'BİLANÇO-P'!F84)","v":""}]
["F-Gelecek Yıllara Ait Gelirler ve Gider Tahakkukları"]
["1-Gelecek Yıllara Ait Gelirler",{"$f":"IF('BİLANÇO-P'!D86=0,\"\",'BİLANÇO-P'!D86)","v":""},{"$f":"IF('BİLANÇO-P'!F86=0,\"\",'BİLANÇO-P'!F86)","v":""}]
["2-Gider Tahakkukları",{"$f":"IF('BİLANÇO-P'!D87=0,\"\",'BİLANÇO-P'!D87)","v":""},{"$f":"IF('BİLANÇO-P'!F87=0,\"\",'BİLANÇO-P'!F87)","v":""}]
["G-Diğer Uzun Vadeli Yabancı Kaynaklar"]
["1-Gelecek Yıllara Ertelenen veya Terkin Edilen KDV",{"$f":"IF('BİLANÇO-P'!D89=0,\"\",'BİLANÇO-P'!D89)","v":""},{"$f":"IF('BİLANÇO-P'!F89=0,\"\",'BİLANÇO-P'!F89)","v":""}]
["2-Tesise Katılma Payları",{"$f":"IF('BİLANÇO-P'!D90=0,\"\",'BİLANÇO-P'!D90)","v":""},{"$f":"IF('BİLANÇO-P'!F90=0,\"\",'BİLANÇO-P'!F90)","v":""}]
["3-Diğer Uzun Vadeli Yabancı Kaynaklar Toplamı",{"$f":"IF('BİLANÇO-P'!D91=0,\"\",'BİLANÇO-P'!D91)","v":""},{"$f":"IF('BİLANÇO-P'!F91=0,\"\",'BİLANÇO-P'!F91)","v":""}]
["V. ÖZ KAYNAKLAR"]
["A-Ödenmiş Sermaye"]
["1-Sermaye",{"$f":"IF('BİLANÇO-P'!D94=0,\"\",'BİLANÇO-P'!D94)","v":160000},{"$f":"IF('BİLANÇO-P'!F94=0,\"\",'BİLANÇO-P'!F94)","v":160000}]
["2-Ödenmemiş Sermaye (-)",{"$f":"IF('BİLANÇO-P'!D95=0,\"\",'BİLANÇO-P'!D95)","v":""},{"$f":"IF('BİLANÇO-P'!F95=0,\"\",'BİLANÇO-P'!F95)","v":""}]
["3-Sermaye Düzeltmesi Olumlu Farkları",{"$f":"IF('BİLANÇO-P'!D96=0,\"\",'BİLANÇO-P'!D96)","v":9944.2000000000007},{"$f":"IF('BİLANÇO-P'!F96=0,\"\",'BİLANÇO-P'!F96)","v":9944.2000000000007}]
["4-Sermaye Düzeltmesi Olumsuz Farkları (-)",{"$f":"IF('BİLANÇO-P'!D97=0,\"\",'BİLANÇO-P'!D97)","v":""},{"$f":"IF('BİLANÇO-P'!F97=0,\"\",'BİLANÇO-P'!F97)","v":""}]
["B-Sermaye Yedekleri"]
["1-Hisse Senedi İhraç Primleri",{"$f":"IF('BİLANÇO-P'!D99=0,\"\",'BİLANÇO-P'!D99)","v":""},{"$f":"IF('BİLANÇO-P'!F99=0,\"\",'BİLANÇO-P'!F99)","v":""}]
["2-Hisse Senedi İptal Karları",{"$f":"IF('BİLANÇO-P'!D100=0,\"\",'BİLANÇO-P'!D100)","v":""},{"$f":"IF('BİLANÇO-P'!F100=0,\"\",'BİLANÇO-P'!F100)","v":""}]
["3-M.D.V. Yeniden Değerleme Artışları",{"$f":"IF('BİLANÇO-P'!D101=0,\"\",'BİLANÇO-P'!D101)","v":""},{"$f":"IF('BİLANÇO-P'!F101=0,\"\",'BİLANÇO-P'!F101)","v":""}]
["4-İştirakler Yeniden Değerleme Artışları",{"$f":"IF('BİLANÇO-P'!D102=0,\"\",'BİLANÇO-P'!D102)","v":""},{"$f":"IF('BİLANÇO-P'!F102=0,\"\",'BİLANÇO-P'!F102)","v":""}]
["5-Diğer Sermaye Yedekleri",{"$f":"IF('BİLANÇO-P'!D103=0,\"\",'BİLANÇO-P'!D103)","v":""},{"$f":"IF('BİLANÇO-P'!F103=0,\"\",'BİLANÇO-P'!F103)","v":""}]
["C-Kar Yedekleri"]
["1-Yasal Yedekler",{"$f":"IF('BİLANÇO-P'!D105=0,\"\",'BİLANÇO-P'!D105)","v":2829.22},{"$f":"IF('BİLANÇO-P'!F105=0,\"\",'BİLANÇO-P'!F105)","v":2829.22}]
["2-Statü Yedekleri",{"$f":"IF('BİLANÇO-P'!D106=0,\"\",'BİLANÇO-P'!D106)","v":""},{"$f":"IF('BİLANÇO-P'!F106=0,\"\",'BİLANÇO-P'!F106)","v":""}]
["3-Olağanüstü Yedekler",{"$f":"IF('BİLANÇO-P'!D107=0,\"\",'BİLANÇO-P'!D107)","v":""},{"$f":"IF('BİLANÇO-P'!F107=0,\"\",'BİLANÇO-P'!F107)","v":""}]
["4-Diğer Kar Yedekleri",{"$f":"IF('BİLANÇO-P'!D108=0,\"\",'BİLANÇO-P'!D108)","v":""},{"$f":"IF('BİLANÇO-P'!F108=0,\"\",'BİLANÇO-P'!F108)","v":""}]
["5-Özel Fonlar",{"$f":"IF('BİLANÇO-P'!D109=0,\"\",'BİLANÇO-P'!D109)","v":""},{"$f":"IF('BİLANÇO-P'!F109=0,\"\",'BİLANÇO-P'!F109)","v":""}]
["D-Geçmiş Yıl Karları"]
["1-Geçmiş Yıl Karları",{"$f":"IF('BİLANÇO-P'!D111=0,\"\",'BİLANÇO-P'!D111)","v":""},{"$f":"IF('BİLANÇO-P'!F111=0,\"\",'BİLANÇO-P'!F111)","v":""}]
["E-Geçmiş Yıllar Zararları(-)"]
["1- Geçmiş Yıllar Zararları (-)",{"$f":"IF('BİLANÇO-P'!D113=0,\"\",'BİLANÇO-P'!D113)","v":""},{"$f":"IF('BİLANÇO-P'!F113=0,\"\",'BİLANÇO-P'!F113)","v":""}]
["F-Dönem Net Karı (Zararı)"]
["1-Dönem Net Karı",{"$f":"IF('BİLANÇO-P'!D115=0,\"\",'BİLANÇO-P'!D115)","v":8755726.0800000019},{"$f":"IF('BİLANÇO-P'!F115=0,\"\",'BİLANÇO-P'!F115)","v":3075966.46}]
["2-Dönem Net Zararı (-)",{"$f":"IF('BİLANÇO-P'!D116=0,\"\",'BİLANÇO-P'!D116)","v":""},{"$f":"IF('BİLANÇO-P'!F116=0,\"\",'BİLANÇO-P'!F116)","v":""}]
["PASİF(KAYNAKLAR) TOPLAMI"]